{"text_format":"1","workbook":"xlsx","n_sheets":13,"sheets":["Hoofdmenu","Toelichting","Voorblad","Mededelingen","NAW_gegevens","Kostenverzamelstaat","Specifieke informatie A","Specifieke informatie C","Contractinformatie","Wanbetalers","Controleoverzicht","Datablad","Parameters"],"not_rendered":{"charts":0,"images":1,"macros":1,"external_links":0,"defined_names":98,"comments":0,"pivot_tables":0},"unopened":[],"bounds":{"document_bytes":16777216,"sheet_cells":100000,"rows_first":2000,"rows_last":500,"rows_between":2000,"halvings":0,"cell_chars":16384,"cell_head_chars":4096},"cells_cut":0,"cells_raw":0,"read":"whole","date_system":"1900"}

{"sheet":"Hoofdmenu","index":0,"n_rows":3,"n_cols":2,"rows_kept":3,"cut":false,"hidden":false,"merged":[[0,0,0,1],[1,0,1,1]]}
[" "]
[{"$f":"CONCATENATE(\"KWARTAALSTAAT ZVW \", jaar_id,\" \",kwartaal_id,\"E KWARTAAL\")","v":"KWARTAALSTAAT ZVW 2019 4E KWARTAAL"}]
["Navigatie","Afdrukken"]

{"sheet":"Toelichting","index":1,"n_rows":4,"n_cols":2,"rows_kept":4,"cut":false,"hidden":false,"merged":[]}
[]
[]
[]
[null,{"$f":"CONCATENATE(\" KWARTAALSTAAT ZVW \",jaar_id,\" \",kwartaal_id,\"E KWARTAAL (VERSIE: \",revisie_id,\")\")","v":" KWARTAALSTAAT ZVW 2019 4E KWARTAAL (VERSIE: C)"}]

{"sheet":"Voorblad","index":2,"n_rows":35,"n_cols":4,"rows_kept":35,"cut":false,"hidden":false,"merged":[[15,3,16,11],[13,3,14,11],[17,3,18,11]]}
[null,null,"VOORBLAD"]
[]
[]
[]
[]
["Pagina 1",null,null," "]
[]
[]
[]
[]
[]
[]
[]
[null,null,null,{"$f":"CONCATENATE(\"KWARTAALSTAAT ZVW \",jaar_id)","v":"KWARTAALSTAAT ZVW 2019"}]
[]
[null,null,null,{"$f":"CONCATENATE(kwartaal_id,\"E KWARTAAL\")","v":"4E KWARTAAL"}]
[]
[null,null,null,"SPECIFIEKE INFORMATIE"]
[]
[]
[]
[null,null,null,"    KOSTENVERZAMELSTAAT (SPECIFIEKE INFORMATIE A)"]
[null,null,null,"     ● Informatie risicoverevening (pagina 1 t/m 4)"]
[]
[null,null,null,"    SPECIFIEKE INFORMATIE A"]
[null,null,null,"     ● Informatie risicoverevening (pagina 1 t/m 4)"]
[]
[null,null,null,"    SPECIFIEKE INFORMATIE C"]
[null,null,null,"     ● Specificaties van kosten en productie (pagina 1 t/m 7)"]
[]
[null,null,null,"    CONTRACTINFORMATIE (SPECIFIEKE INFORMATIE C)"]
[null,null,null,"     ● Specificaties van kosten en productie (pagina 1 & 2)"]
[]
[null,null,null,"    WANBETALERS (SPECIFIEKE INFORMATIE C)"]
[null,null,null,"     ● Specificaties van aantallen (pagina 1)"]

{"sheet":"Mededelingen","index":3,"n_rows":49,"n_cols":12,"rows_kept":49,"cut":false,"hidden":false,"merged":[[48,3,48,4]]}
[]
[]
[]
[]
[]
["Pagina 1",null,null,{"$f":"CONCATENATE(\"KWARTAALSTAAT ZVW \", jaar_id,\" \",kwartaal_id,\"E KWARTAAL\")","v":"KWARTAALSTAAT ZVW 2019 4E KWARTAAL"}]
[null,null,null,{"$f":"IF(naw_uzovi_zorgverzekeraar<>\"0000\",CONCATENATE(UPPER(naw_naam_zorgverzekeraar),\", \",UPPER(naw_plaats_zorgverzekeraar)),\"\")","v":""},null,null,null,null,null,null,null,{"$f":"CONCATENATE(\"UZOVI: \",naw_uzovi_zorgverzekeraar)","v":"UZOVI: 0000"}]
[null,null,null,"MEDEDELINGEN :"]
[]
[]
[]
[]
[]
[]
[]
[]
[]
[]
[]
[]
[]
[]
[]
[]
[]
[]
[]
[]
[]
[]
[]
[]
[]
[]
[]
[]
[]
[]
[]
[]
[]
[]
[]
[]
[]
[]
[]
[]
[null,null,null,{"$f":"NOW()","v":"2020-01-08T11:22:50.090"},null,null,null,null,null,null,null,{"$f":"CONCATENATE(\"Mededelingen \",LOWER(A6))","v":"Mededelingen pagina 1"}]

{"sheet":"NAW_gegevens","index":4,"n_rows":43,"n_cols":6,"rows_kept":43,"cut":false,"hidden":false,"merged":[[2,1,2,2],[3,1,3,2]]}
[]
[]
[null,"NAW-GEGEVENS"]
[null,{"$f":"CONCATENATE(\"KWARTAALSTAAT ZVW \", jaar_id,\" \",kwartaal_id,\"E KWARTAAL\")","v":"KWARTAALSTAAT ZVW 2019 4E KWARTAAL"}]
[null," Selecteer uw nummer:","0000 KIES UW UZOVI-NUMMER"]
[null," Uzovi-nummer:",{"$f":"MID(keuze_uzovi_nummer,1,4)","v":"0000"}]
[null," Zorgverzekeraar:"]
[null," Plaats:"]
[null," Contactpersoon:"]
[null," Telefoonnummer:"]
[null," E-mail:"]
[]
[null,"Let op dat u het goede UZOVI-nummer invult, zie onderstaand overzicht:"]
[]
[null,"UZOVI","NAAM",null,null,"PLAATS"]
[null,"0101","N.V. UNIVÉ ZORG",null,null,"ARNHEM"]
[null,"0104","CENTRALE ZIEKTEKOSTENVERZEKERING NZV N.V.",null,null,"TILBURG"]
[null,"0201","OHRA ZIEKTEKOSTENVERZEKERINGEN N.V. ",null,null,"TILBURG"]
[null,"0211","FBTO ZORGVERZEKERINGEN N.V.",null,null,"LEEUWARDEN"]
[null,"0403","ASR BASIS ZIEKTENKOSTENVERZEKERINGEN N.V. ",null,null,"AMERSFOORT"]
[null,"0420","ZORGVERZEKERAAR CARES GOUDA  N.V.",null,null,"ARNHEM"]
[null,"0699","IZA ZORGVERZEKERAAR N.V.",null,null,"ARNHEM"]
[null,"0736","N.V. ZORGVERZEKERAAR UMC",null,null,"ARNHEM"]
[null,"3311","ZILVEREN KRUIS ACHMEA ZORGVERZEKERINGEN N.V.",null,null,"UTRECHT"]
[null,"3313","INTERPOLIS ZORGVERZEKERINGEN N.V.",null,null,"UTRECHT"]
[null,3314,"OZF ZORGVERZEKERINGEN",null,null,"UTRECHT"]
[null,3329,"AVÉRO ACHMEA ZORGVERZEKERINGEN N.V.",null,null,"UTRECHT"]
[null,3332,"MENZIS ZORGVERZEKERAAR NV",null,null,"WAGENINGEN"]
[null,3333,"ANDERZORG NV",null,null,"GRONINGEN"]
[null,3343,"ONVZ ZIEKTEKOSTENVERZEKERAAR N.V.",null,null,"HOUTEN"]
[null,3351,"FBTO ZORGVERZEKERINGEN N.V.",null,null,"LEEUWARDEN"]
[null,3352,"IPTIQ LIFE S.A.",null,null,"AMSTELVEEN"]
[null,3358,"DE FRIESLAND ZORGVERZEKERAAR N.V.",null,null,"LEEUWARDEN"]
[null,3359,"EUCARE INSURANCE PCC LTD",null,null,"TA' XBIEX"]
[null,"7029","OWM ZORGVERZEKERAAR 'DSW' U.A.",null,null,"SCHIEDAM"]
[null,"7032","ENO ZORGVERZEKERAAR N.V.",null,null,"DEVENTER"]
[null,"7037","STAD HOLLAND ZORGVERZEKERAAR OWM U.A.",null,null,"SCHIEDAM"]
[null,"7053","OHRA ZORGVERZEKERINGEN  N.V.",null,null,"TILBURG"]
[null,7084,"DE FRIESLAND ZORGVERZEKERAAR N.V.",null,null,"LEEUWARDEN"]
[null,"7085","OWM ZORGVERZEKERAAR ZORG EN ZEKERHEID U.A.",null,null,"LEIDEN"]
[null,"7095","VGZ ZORGVERZEKERAAR N.V.",null,null,"ARNHEM"]
[null,"7119","OWM CENTRALE ZORGVERZEKRAARS GROEP, ZORGVERZEKERAAR UA'",null,null,"TILBURG"]
[null,"9015","VGZ VOOR DE ZORG N.V.",null,null,"ARNHEM"]

{"sheet":"Kostenverzamelstaat","index":5,"n_rows":148,"n_cols":14,"rows_kept":148,"cut":false,"hidden":false,"merged":[[10,8,11,9],[15,3,15,6],[12,7,13,7],[19,3,19,6],[12,9,13,9],[12,8,13,8],[17,3,17,6],[48,11,49,11],[48,13,49,13],[10,12,11,13],[12,12,13,12],[12,13,13,13],[10,10,11,11],[12,11,13,11],[12,10,13,10],[46,10,47,11],[46,12,47,13],[48,12,49,12],[20,3,20,6],[21,3,21,6],[22,3,22,6],[24,3,24,7],[46,8,47,9],[36,3,36,7],[82,12,83,13],[75,3,75,4],[71,3,71,6],[58,3,58,6],[67,3,67,7],[68,3,68,7],[70,3,70,7],[73,3,73,6],[59,3,59,6],[69,3,69,6],[82,8,83,9],[82,10,83,11],[72,3,72,6],[14,3,14,7],[16,3,16,6],[18,3,18,6],[53,3,53,6],[48,10,49,10],[35,3,35,6],[34,3,34,6],[23,3,23,7],[50,3,50,7],[48,7,49,7],[48,8,49,8],[48,9,49,9],[39,3,39,4],[31,3,31,6],[32,3,32,7],[33,3,33,7],[25,3,25,6],[28,3,28,7],[26,3,26,7],[27,3,27,6],[93,3,93,6],[94,3,94,6],[106,3,106,6],[97,3,97,6],[98,3,98,7],[101,3,101,6],[147,3,147,4],[120,3,120,6],[121,3,121,6],[122,3,122,6],[104,3,104,6],[105,3,105,6],[92,3,92,7],[29,3,29,6],[30,3,30,6],[52,3,52,6],[57,3,57,6],[54,3,54,6],[88,3,88,6],[86,3,86,7],[89,3,89,6],[90,3,90,6],[87,3,87,6],[84,7,85,7],[51,3,51,6],[55,3,55,6],[56,3,56,6],[84,10,85,10],[118,11,119,11],[118,13,119,13],[118,12,119,12],[118,10,119,10],[84,9,85,9],[118,9,119,9],[108,3,108,6],[118,8,119,8],[119,3,119,6],[118,3,118,7],[84,13,85,13],[84,12,85,12],[84,8,85,8],[99,3,99,6],[84,11,85,11],[111,3,111,4],[107,3,107,7],[100,3,100,6],[109,3,109,7],[103,3,103,7],[102,3,102,6],[95,3,95,6],[96,3,96,7]]}
[null,null,"INVULSPECIFICATIES SPECIFIEKE INFORMATIE A"]
[]
[]
[]
[]
["Pagina 1",null,null,{"$f":"CONCATENATE(\"KWARTAALSTAAT ZVW \", jaar_id,\" \",kwartaal_id,\"E KWARTAAL\")","v":"KWARTAALSTAAT ZVW 2019 4E KWARTAAL"}]
[null,null,null,"KOSTENVERZAMELSTAAT (SPECIFIEKE INFORMATIE A)"]
[null,null,null,{"$f":"IF(naw_uzovi_zorgverzekeraar<>\"0000\",CONCATENATE(UPPER(naw_naam_zorgverzekeraar),\", \",UPPER(naw_plaats_zorgverzekeraar)),\"\")","v":""},null,null,null,null,null,null,null,null,null,{"$f":"CONCATENATE(\"UZOVI: \",naw_uzovi_zorgverzekeraar)","v":"UZOVI: 0000"}]
[null,null,null,"SPECIFICATIES INFORMATIE RISICOVEREVENING"]
[null,null,null,"KOSTENVERZAMELSTAAT"]
[null,null,null,null,null,null,null,null,{"$f":"CONCATENATE(\"LASTEN \",jaar_id,)","v":"LASTEN 2019"},null,{"$f":"CONCATENATE(\"LASTEN \",jaar_id-1,)","v":"LASTEN 2018"},null,{"$f":"CONCATENATE(\"LASTEN \",jaar_id-2,\" EN OUDER\")","v":"LASTEN 2017 EN OUDER"}]
[]
[null,null,null,null,null,null,null,"\ncode","Lasten 2019 inclusief balanspost ",{"$f":"CONCATENATE(\"Ontvangen en geaccepteerde declaraties t/m\",\" \",kwartaal_id,\"e Kwartaal\",\" \",jaar_id)","v":"Ontvangen en geaccepteerde declaraties t/m 4e Kwartaal 2019"},"Lasten 2018 inclusief balanspost","Ontvangen en geaccepteerde declaraties m.b.t. 2018","Lasten 2017 en ouder inclusief balanspost","Ontvangen en geaccepteerde declaraties m.b.t. 2017 en ouder"]
[null,null,null," KOSTENRUBRIEK",null,null,null,null,null,{"$f":"CONCATENATE(\"Ontvangen en geaccepteerde declaraties t/m\",\" \",kwartaal_id,\"e Kwartaal\",\" \",jaar_id)","v":"Ontvangen en geaccepteerde declaraties t/m 4e Kwartaal 2019"}]
[null,null,null," 01  HUISARTSENZORG en MDZ"]
[null,null,null," Bijzondere betalingen",null,null,null,"503   "]
[null,null,null," Avond-, nacht- en weekenddiensten",null,null,null,"504   "]
[null,null,null," Inschrijftarieven",null,null,null,"505   "]
[null,null,null," Consulttarieven",null,null,null,"506   "]
[null,null,null," Overige tarieven",null,null,null,"507   "]
[null,null,null," Multidisciplinaire zorg",null,null,null,"510   "]
[null,null,null," Resultaatbeloning en zorgvernieuwing huisartsen",null,null,null,"515   "]
[null,null,null," Resultaatbeloning en zorgvernieuwing MDZ",null,null,null,"516   "]
[null,null,null," TOTAAL RUBRIEK 01",null,null,null,null,{"$f":"SUM(I16:I23)","v":0},0,0,0,0,0]
[null,null,null," 02 FARMACEUTISCHE ZORG"]
[null,null,null," TOTAAL RUBRIEK 02",null,null,null,"520   "]
[null,null,null," 03 VERPLEGING EN VERZORGING "]
[null,null,null," Kosten van verpleging en verzorging ",null,null,null,"530   "]
[null,null,null," 04  MONDZORG"]
[null,null,null," Kosten mondzorg volwassen verzekerden",null,null,null,"560.1"]
[null,null,null," Kosten mondzorg jeugdige verzekerden",null,null,null,"560.2"]
[null,null,null," Kosten gebitsprothesen",null,null,null,"561   "]
[null,null,null," TOTAAL RUBRIEK 04",null,null,null,null,{"$f":"SUM(I30:I32)","v":0},0,0,0,0,0]
[null,null,null," 05  VERLOSKUNDIGE ZORG"]
[null,null,null," Kosten verloskundige zorg door verloskundigen",null,null,null,"580   "]
[null,null,null," Kosten verloskundige zorg door huisartsen",null,null,null,"581   "]
[null,null,null," TOTAAL RUBRIEK 05",null,null,null,null,{"$f":"SUM(I35:I36)","v":0},0,0,0,0,0]
[]
[]
[null,null,null,{"$f":"NOW()","v":"2020-01-08T11:22:50.090"},null,null,null,null,null,null,null,null,null,{"$f":"CONCATENATE(\"Specifieke informatie A, \",LOWER(A6))","v":"Specifieke informatie A, pagina 1"}]
[]
["Pagina 2",null,null,{"$f":"CONCATENATE(\"KWARTAALSTAAT ZVW \", jaar_id,\" \",kwartaal_id,\"E KWARTAAL\")","v":"KWARTAALSTAAT ZVW 2019 4E KWARTAAL"}]
[null,null,null,"KOSTENVERZAMELSTAAT (SPECIFIEKE INFORMATIE A)"]
[null,null,null,{"$f":"IF(naw_uzovi_zorgverzekeraar<>\"0000\",CONCATENATE(UPPER(naw_naam_zorgverzekeraar),\", \",UPPER(naw_plaats_zorgverzekeraar)),\"\")","v":""},null,null,null,null,null,null,null,null,null,{"$f":"CONCATENATE(\"UZOVI: \",naw_uzovi_zorgverzekeraar)","v":"UZOVI: 0000"}]
[null,null,null,"SPECIFICATIES INFORMATIE RISICOVEREVENING"]
[null,null,null,"KOSTENVERZAMELSTAAT - vervolg"]
[null,null,null,null,null,null,null,null,{"$f":"CONCATENATE(\"LASTEN \",jaar_id,)","v":"LASTEN 2019"},null,{"$f":"CONCATENATE(\"LASTEN \",jaar_id-1,)","v":"LASTEN 2018"},null,{"$f":"CONCATENATE(\"LASTEN \",jaar_id-2,\" EN OUDER\")","v":"LASTEN 2017 EN OUDER"}]
[]
[null,null,null,null,null,null,null,"\ncode","Lasten 2019 inclusief balanspost ",{"$f":"CONCATENATE(\"Ontvangen en geaccepteerde declaraties t/m\",\" \",kwartaal_id,\"e Kwartaal\",\" \",jaar_id)","v":"Ontvangen en geaccepteerde declaraties t/m 4e Kwartaal 2019"},"Lasten 2018 inclusief balanspost","Ontvangen en geaccepteerde declaraties m.b.t. 2018","Lasten 2017 en ouder inclusief balanspost","Ontvangen en geaccepteerde declaraties m.b.t. 2017 en ouder"]
[null,null,null," KOSTENRUBRIEK",null,null,null,null,null,{"$f":"CONCATENATE(\"Ontvangen en geaccepteerde declaraties t/m\",\" \",kwartaal_id,\"e Kwartaal\",\" \",jaar_id)","v":"Ontvangen en geaccepteerde declaraties t/m 4e Kwartaal 2019"}]
[null,null,null," 06  MEDISCH SPECIALISTISCHE ZORG"]
[null,null,null," Kosten specialisten mondziekten en kaakchirurgie",null,null,null,"545   "]
[null,null,null," Overige kosten ziekenhuiszorg en curatieve zorg",null,null,null,"610   "]
[null,null,null," Overige zorgproducten",null,null,null,"611   "]
[null,null,null," Kosten add-ons ",null,null,null,"612   "]
[null,null,null," Kosten add-ons - Dure geneesmiddelen",null,null,null,"612.1"]
[null,null,null," Kosten add-ons - IC",null,null,null,"612.2"]
[null,null,null," Integrale kosten van DBC-zorgproduct \n gereguleerde segment  ",null,null,null,"613.1 "]
[null,null,null," Integrale kosten DBC-zorgproduct vrije segment",null,null,null,"615.1 "]
[null,null,null," Integrale kosten extramuraal werkende \n specialisten",null,null,null,"619   "]
[null,null,null," TOTAAL RUBRIEK 06",null,null,null,null,{"$f":"SUM(I52:I60)","v":0},0,0,0,0,0]
[null,null,null," 07  PARAMEDISCHE ZORG"]
[null,null,null," Kosten fysiotherapie",null,null,null,"620   "]
[null,null,null," Kosten oefentherapie Mensendieck/Cesar",null,null,null,"621   "]
[null,null,null," Kosten logopedie",null,null,null,"623   "]
[null,null,null," Kosten ergotherapie",null,null,null,"624   "]
[null,null,null," Kosten dieetadvisering",null,null,null,"625   "]
[null,null,null," TOTAAL RUBRIEK 07",null,null,null,null,{"$f":"SUM(I63:I67)","v":0},0,0,0,0,0]
[null,null,null," 08  HULPMIDDELENZORG"]
[null,null,null," TOTAAL RUBRIEK 08",null,null,null,"640   "]
[null,null,null," 09  ZIEKENVERVOER"]
[null,null,null," Kosten vervoer per ambulance/helikopter",null,null,null,"650   "]
[null,null,null," Opbrengstenverrekeningen regionale ambulance-\n voorzieningen",null,null,null,"650.1"]
[null,null,null," Kosten vervoer per openbaar vervoer, taxi \n en eigen auto",null,null,null,"651   "]
[null,null,null," TOTAAL RUBRIEK 09",null,null,null,null,{"$f":"SUM(I72:I74)","v":0},0,0,0,0,0]
[null,null,null,{"$f":"NOW()","v":"2020-01-08T11:22:50.090"},null,null,null,null,null,null,null,null,null,{"$f":"CONCATENATE(\"Specifieke informatie A, \",LOWER(A42))","v":"Specifieke informatie A, pagina 2"}]
[]
["Pagina 3",null,null,{"$f":"CONCATENATE(\"KWARTAALSTAAT ZVW \", jaar_id,\" \",kwartaal_id,\"E KWARTAAL\")","v":"KWARTAALSTAAT ZVW 2019 4E KWARTAAL"}]
[null,null,null,"KOSTENVERZAMELSTAAT (SPECIFIEKE INFORMATIE A)"]
[null,null,null,{"$f":"IF(naw_uzovi_zorgverzekeraar<>\"0000\",CONCATENATE(UPPER(naw_naam_zorgverzekeraar),\", \",UPPER(naw_plaats_zorgverzekeraar)),\"\")","v":""},null,null,null,null,null,null,null,null,null,{"$f":"CONCATENATE(\"UZOVI: \",naw_uzovi_zorgverzekeraar)","v":"UZOVI: 0000"}]
[null,null,null,"SPECIFICATIES INFORMATIE RISICOVEREVENING"]
[null,null,null,"KOSTENVERZAMELSTAAT - vervolg"]
[null,null,null,null,null,null,null,null,{"$f":"CONCATENATE(\"LASTEN \",jaar_id,)","v":"LASTEN 2019"},null,{"$f":"CONCATENATE(\"LASTEN \",jaar_id-1,)","v":"LASTEN 2018"},null,{"$f":"CONCATENATE(\"LASTEN \",jaar_id-2,\" EN OUDER\")","v":"LASTEN 2017 EN OUDER"}]
[]
[null,null,null,null,null,null,null,"\ncode","Lasten 2019 inclusief balanspost ",{"$f":"CONCATENATE(\"Ontvangen en geaccepteerde declaraties t/m\",\" \",kwartaal_id,\"e Kwartaal\",\" \",jaar_id)","v":"Ontvangen en geaccepteerde declaraties t/m 4e Kwartaal 2019"},"Lasten 2018 inclusief balanspost","Ontvangen en geaccepteerde declaraties m.b.t. 2018","Lasten 2017 en ouder inclusief balanspost","Ontvangen en geaccepteerde declaraties m.b.t. 2017 en ouder"]
[null,null,null," KOSTENRUBRIEK",null,null,null,null,null,{"$f":"CONCATENATE(\"Ontvangen en geaccepteerde declaraties t/m\",\" \",kwartaal_id,\"e Kwartaal\",\" \",jaar_id)","v":"Ontvangen en geaccepteerde declaraties t/m 4e Kwartaal 2019"}]
[null,null,null," 10 GENEESKUNDIGE GEESTELIJKE GEZONDHEIDSZORG"]
[null,null,null," Kosten specialistische GGZ met verblijf",null,null,null,"661   "]
[null,null,null," Kosten LGGZ (langdurige GGZ, jaar 2 en 3)",null,null,null,"661.1 "]
[null,null,null," Kosten specialistische GGZ zonder verblijf",null,null,null,"662   "]
[null,null,null," Generalistische basis GGZ",null,null,null,"665"]
[null,null,null," TOTAAL RUBRIEK 10",null,null,null,null,{"$f":"SUM(I88:I91)","v":0},0,0,0,0,0]
[null,null,null," 11  GERIATRISCHE REVALIDATIEZORG"]
[null,null,null," Geriatrische Revalidatie",null,null,null,"670   "]
[null,null,null," Eerstelijnsverblijf ",null,null,null,"671   "]
[null,null,null," TOTAAL RUBRIEK 11",null,null,null,null,{"$f":"SUM(I94:I95)","v":0},{"$f":"SUM(J94:J95)","v":0},{"$f":"SUM(K94:K95)","v":0},{"$f":"SUM(L94:L95)","v":0},{"$f":"SUM(M94:M95)","v":0},0]
[null,null,null," 12  KRAAMZORG"]
[null,null,null," TOTAAL RUBRIEK 12",null,null,null,"680   "]
[null,null,null," 13  DIVERSE OVERIGE KOSTEN"]
[null,null,null," Overige kosten",null,null,null,"700   "]
[null,null,null," Overige geneeskundige zorg",null,null,null,"701"]
[null,null,null," Kosten van zorg zintuiglijk gehandicapten ",null,null,null,"702"]
[null,null,null," TOTAAL RUBRIEK 13",null,null,null,null,{"$f":"SUM(I100:I102)","v":0},0,0,0,0,0]
[null,null,null," 15  GRENSOVERSCHRIJDENDE ZORG"]
[null,null,null," Kosten via verzekeraar",null,null,null,"720"]
[null,null,null," Kosten via verbindingsorgaan",null,null,null,"721"]
[null,null,null," TOTAAL RUBRIEK 15",null,null,null,null,{"$f":"SUM(I105:I106)","v":0},0,0,0,0,0]
[null,null,null," 16  KWALITEITSGELDEN"]
[null,null,null," TOTAAL RUBRIEK 16",null,null,null,"730   "]
[null,null,null," TOTAAL LASTEN   (bruto-schade, definitie ZIN)",null,null,null,null,{"$f":"SUM(I24,I26,I28,I33,I37,I61,I68,I70,I75,I92,I96,I98,I103,I107,I109)","v":0},0,0,0,0,0]
[]
[null,null,null,{"$f":"NOW()","v":"2020-01-08T11:22:50.090"},null,null,null,null,null,null,null,null,null,{"$f":"CONCATENATE(\"Specifieke informatie A, \",LOWER(A78))","v":"Specifieke informatie A, pagina 3"}]
[]
["Pagina 4",null,null,{"$f":"CONCATENATE(\"KWARTAALSTAAT ZVW \", jaar_id,\" \",kwartaal_id,\"E KWARTAAL\")","v":"KWARTAALSTAAT ZVW 2019 4E KWARTAAL"}]
[null,null,null,"KOSTENVERZAMELSTAAT (SPECIFIEKE INFORMATIE A)"]
[null,null,null,{"$f":"IF(naw_uzovi_zorgverzekeraar<>\"0000\",CONCATENATE(UPPER(naw_naam_zorgverzekeraar),\", \",UPPER(naw_plaats_zorgverzekeraar)),\"\")","v":""},null,null,null,null,null,null,null,null,null,{"$f":"CONCATENATE(\"UZOVI: \",naw_uzovi_zorgverzekeraar)","v":"UZOVI: 0000"}]
[null,null,null,"SPECIFICATIES INFORMATIE RISICOVEREVENING"]
[null,null,null,"KOSTENVERZAMELSTAAT - vervolg"]
[null,null,null," BATEN ZVW",null,null,null,null,"Totale baten 2019 inclusief balanspost ",{"$f":"CONCATENATE(\"waarvan ontvangen  t/m \",kwartaal_id,\"e Kwartaal\",\" \",jaar_id)","v":"waarvan ontvangen  t/m 4e Kwartaal 2019"},"Totale baten 2018 inclusief balanspost ","waarvan ontvangen m.b.t. 2018","Totale baten 2017 inclusief balanspost ","waarvan ontvangen m.b.t. 2017 en ouder"]
[null,null,null,null,null,null,null,"code",null,{"$f":"CONCATENATE(\"waarvan ontvangen  t/m \",kwartaal_id,\"e Kwartaal\",\" \",jaar_id)","v":"waarvan ontvangen  t/m 4e Kwartaal 2019"}]
[null,null,null," OPBRENGSTEN VERHAAL",null,null,null,"890.1"]
[null,null,null," SCHADE T.L.V. HET VRIJWILLIG EIGEN RISICO",null,null,null,"910   "]
[null,null,null," SCHADE T.L.V. HET VERPLICHT EIGEN RISICO",null,null,null,"915   "]
[null,null,null," NETTO PREMIEOPBRENGSTEN",null,null,null,"940   "]
[]
[]
[]
[]
[]
[]
[]
[]
[]
[]
[]
[]
[]
[]
[]
[]
[]
[]
[]
[]
[]
[]
[]
[null,null,null,{"$f":"NOW()","v":"2020-01-08T11:22:50.090"},null,null,null,null,null,null,null,null,null,{"$f":"CONCATENATE(\"Specifieke informatie A, \",LOWER(A114))","v":"Specifieke informatie A, pagina 4"}]

{"sheet":"Specifieke informatie A","index":6,"n_rows":138,"n_cols":12,"rows_kept":138,"cut":false,"hidden":false,"merged":[[101,9,101,10],[101,11,102,11],[131,9,133,11],[137,3,137,4],[11,11,12,11],[13,3,13,10],[14,3,14,10],[11,3,12,10],[92,3,92,4],[15,3,15,10],[56,9,56,10],[16,3,16,10],[86,9,88,11],[47,3,47,4],[56,11,57,11]]}
[null,null,"INVULSPECIFICATIES SPECIFIEKE INFORMATIE A"]
[]
[]
[]
[]
["Pagina 1",null,null,{"$f":"CONCATENATE(\"KWARTAALSTAAT ZVW \", jaar_id,\" \",kwartaal_id,\"E KWARTAAL\")","v":"KWARTAALSTAAT ZVW 2019 4E KWARTAAL"}]
[null,null,null,"SPECIFIEKE INFORMATIE A"]
[null,null,null,{"$f":"IF(naw_uzovi_zorgverzekeraar<>\"0000\",CONCATENATE(UPPER(naw_naam_zorgverzekeraar),\", \",UPPER(naw_plaats_zorgverzekeraar)),\"\")","v":""},null,null,null,null,null,null,null,{"$f":"CONCATENATE(\"UZOVI: \",naw_uzovi_zorgverzekeraar)","v":"UZOVI: 0000"}]
[]
[null,null,null,"SPECIFICATIES INFORMATIE RISICOVEREVENING"]
[null,null,null,"KOSTEN NAAR DEELBIJDRAGE"]
[null,null,null," KOSTEN NAAR DEELBIJDRAGE",null,null,null,null,null,null,null,"Lasten 2019 inclusief balanspost "]
[]
[null,null,null," Variabele zorgkosten "]
[null,null,null," Vaste zorgkosten"]
[null,null,null," Kosten geneeskundige geestelijke gezondheidszorg "]
[null,null,null," TOTAAL lasten (bruto-schade, definitie ZIN)",null,null,null,null,null,null,null,{"$f":"SUM(L14:L16)","v":0}]
[]
[]
[]
[]
[]
[]
[]
[]
[]
[]
[]
[]
[]
[]
[]
[]
[]
[]
[]
[]
[]
[]
[]
[]
[]
[]
[]
[]
[]
[]
[null,null,null,{"$f":"NOW()","v":"2020-01-08T11:22:50.090"},null,null,null,null,null,null,null,{"$f":"CONCATENATE(\"Specifieke informatie A, \",LOWER(A6))","v":"Specifieke informatie A, pagina 1"}]
[]
["Pagina 2",null,null,{"$f":"CONCATENATE(\"KWARTAALSTAAT ZVW \", jaar_id,\" \",kwartaal_id,\"E KWARTAAL\")","v":"KWARTAALSTAAT ZVW 2019 4E KWARTAAL"}]
[null,null,null,"SPECIFIEKE INFORMATIE A"]
[null,null,null,{"$f":"IF(naw_uzovi_zorgverzekeraar<>\"0000\",CONCATENATE(UPPER(naw_naam_zorgverzekeraar),\", \",UPPER(naw_plaats_zorgverzekeraar)),\"\")","v":""},null,null,null,null,null,null,null,{"$f":"CONCATENATE(\"UZOVI: \",naw_uzovi_zorgverzekeraar)","v":"UZOVI: 0000"}]
[]
[null,null,null,"SPECIFICATIES INFORMATIE RISICOVEREVENING"]
[null,null,null,"VERZEKERDENSTAND NAAR RISICOKLASSE",null,null,null,null,null,null,null,"Peildatum: datum van nominale premieprolongatie"]
[null,null,null,null,null,null,null,null,null,null,null,"voor de maand NOVEMBER 2019"]
[null,null,null," LEEFTIJD",null,null,null,null,null,"AANTAL NAAR GESLACHT",null,"TOTAAL \nAANTAL"]
[null,null,null,null,null,null,null,null,null,"MAN","VROUW"]
[null,null,null,"  1a.   0  t/m   1",null,null,null,null,null,null,null,{"$f":"SUM(J59:K59)","v":0}]
[null,null,null,"  1b.   2  t/m   4",null,null,null,null,null,null,null,{"$f":"SUM(J60:K60)","v":0}]
[null,null,null,"  2.     5  t/m   9",null,null,null,null,null,null,null,0]
[null,null,null,"  3.   10  t/m 14",null,null,null,null,null,null,null,0]
[null,null,null,"  4.   15  t/m 19",null,null,null,null,null,null,null,0]
[null,null,null,"  5.   20  t/m 24",null,null,null,null,null,null,null,0]
[null,null,null,"  6.   25  t/m 29",null,null,null,null,null,null,null,0]
[null,null,null,"  7.   30  t/m 34",null,null,null,null,null,null,null,0]
[null,null,null,"  8.   35  t/m 39",null,null,null,null,null,null,null,0]
[null,null,null,"  9.   40  t/m 44",null,null,null,null,null,null,null,0]
[null,null,null," 10.  45  t/m 49",null,null,null,null,null,null,null,0]
[null,null,null," 11.  50  t/m 54",null,null,null,null,null,null,null,0]
[null,null,null," 12.  55  t/m 59",null,null,null,null,null,null,null,0]
[null,null,null," 13.  60  t/m 64",null,null,null,null,null,null,null,0]
[null,null,null," 14.  65  t/m 69",null,null,null,null,null,null,null,0]
[null,null,null," 15.  70  t/m 74",null,null,null,null,null,null,null,0]
[null,null,null," 16.  75  t/m 79",null,null,null,null,null,null,null,0]
[null,null,null," 17.  80  t/m 84",null,null,null,null,null,null,null,0]
[null,null,null," 18.  85  t/m 89",null,null,null,null,null,null,null,0]
[null,null,null," 19.  90 en ouder",null,null,null,null,null,null,null,0]
[null,null,null," TOTAAL",null,null,null,null,null,{"$f":"SUM(J59:J78)","v":0},{"$f":"SUM(K59:K78)","v":0},{"$f":"SUM(L59:L78)","v":0}]
[]
[null,null,null,"VERZEKERDENSTAND NAAR NOMINALE PREMIE",null,null,null,null,null,null,null,"Peildatum: datum van nominale premieprolongatie"]
[null,null,null,null,null,null,null,null,null,null,null,"voor de maand NOVEMBER 2019"]
[null,null,null,null,null,null,null,null,null,null,null,"AANTAL"]
[null,null,null," Verzekerden met nominale premie Zvw"]
[null,null,null," Verzekerden zonder nominale premie Zvw"]
[null,null,null," TOTAAL",null,null,null,null,null,null,null,{"$f":"SUM(L84:L85)","v":0}]
[null,null,null,null,null,null,null,null,null,{"$f":"IF(AND(ISBLANK(K78)=FALSE,ISBLANK(L84)=FALSE),IF(L84<SUM(L64:L78),\"ATTENTIE: is het juist dat het aantal verzekerden \nmet nominale premie kleiner is dan het totaal\naantal verzekerden van 20 jaar en ouder?\",\"\"),\"\")","v":""}]
[]
[]
[]
[]
[]
[null,null,null,{"$f":"NOW()","v":"2020-01-08T11:22:50.090"},null,null,null,null,null,null,null,{"$f":"CONCATENATE(\"Specifieke informatie A, \",LOWER(A50))","v":"Specifieke informatie A, pagina 2"}]
[]
["Pagina 3",null,null,{"$f":"CONCATENATE(\"KWARTAALSTAAT ZVW \", jaar_id,\" \",kwartaal_id,\"E KWARTAAL\")","v":"KWARTAALSTAAT ZVW 2019 4E KWARTAAL"}]
[null,null,null,"SPECIFIEKE INFORMATIE A"]
[null,null,null,{"$f":"IF(naw_uzovi_zorgverzekeraar<>\"0000\",CONCATENATE(UPPER(naw_naam_zorgverzekeraar),\", \",UPPER(naw_plaats_zorgverzekeraar)),\"\")","v":""},null,null,null,null,null,null,null,{"$f":"CONCATENATE(\"UZOVI: \",naw_uzovi_zorgverzekeraar)","v":"UZOVI: 0000"}]
[]
[null,null,null,"SPECIFICATIES INFORMATIE RISICOVEREVENING"]
[null,null,null,"VERZEKERDENSTAND NAAR RISICOKLASSE",null,null,null,null,null,null,null,"Peildatum: datum van nominale premieprolongatie"]
[null,null,null,null,null,null,null,null,null,null,null,"voor de maand DECEMBER 2019"]
[null,null,null," LEEFTIJD",null,null,null,null,null,"AANTAL NAAR GESLACHT",null,"TOTAAL \nAANTAL"]
[null,null,null,null,null,null,null,null,null,"MAN","VROUW"]
[null,null,null,"  1a.   0  t/m   1",null,null,null,null,null,null,null,{"$f":"SUM(J104:K104)","v":0}]
[null,null,null,"  1b.   2  t/m   4",null,null,null,null,null,null,null,{"$f":"SUM(J105:K105)","v":0}]
[null,null,null,"  2.     5  t/m   9",null,null,null,null,null,null,null,0]
[null,null,null,"  3.   10  t/m 14",null,null,null,null,null,null,null,0]
[null,null,null,"  4.   15  t/m 19",null,null,null,null,null,null,null,0]
[null,null,null,"  5.   20  t/m 24",null,null,null,null,null,null,null,0]
[null,null,null,"  6.   25  t/m 29",null,null,null,null,null,null,null,0]
[null,null,null,"  7.   30  t/m 34",null,null,null,null,null,null,null,0]
[null,null,null,"  8.   35  t/m 39",null,null,null,null,null,null,null,0]
[null,null,null,"  9.   40  t/m 44",null,null,null,null,null,null,null,0]
[null,null,null," 10.  45  t/m 49",null,null,null,null,null,null,null,0]
[null,null,null," 11.  50  t/m 54",null,null,null,null,null,null,null,0]
[null,null,null," 12.  55  t/m 59",null,null,null,null,null,null,null,0]
[null,null,null," 13.  60  t/m 64",null,null,null,null,null,null,null,0]
[null,null,null," 14.  65  t/m 69",null,null,null,null,null,null,null,0]
[null,null,null," 15.  70  t/m 74",null,null,null,null,null,null,null,0]
[null,null,null," 16.  75  t/m 79",null,null,null,null,null,null,null,0]
[null,null,null," 17.  80  t/m 84",null,null,null,null,null,null,null,0]
[null,null,null," 18.  85  t/m 89",null,null,null,null,null,null,null,0]
[null,null,null," 19.  90 en ouder",null,null,null,null,null,null,null,0]
[null,null,null," TOTAAL",null,null,null,null,null,{"$f":"SUM(J104:J123)","v":0},{"$f":"SUM(K104:K123)","v":0},{"$f":"SUM(L104:L123)","v":0}]
[]
[null,null,null,"VERZEKERDENSTAND NAAR NOMINALE PREMIE",null,null,null,null,null,null,null,"Peildatum: datum van nominale premieprolongatie"]
[null,null,null,null,null,null,null,null,null,null,null,"voor de maand DECEMBER 2019"]
[null,null,null,null,null,null,null,null,null,null,null,"AANTAL"]
[null,null,null," Verzekerden met nominale premie Zvw"]
[null,null,null," Verzekerden zonder nominale premie Zvw"]
[null,null,null," TOTAAL",null,null,null,null,null,null,null,{"$f":"SUM(L129:L130)","v":0}]
[null,null,null,null,null,null,null,null,null,{"$f":"IF(AND(ISBLANK(K123)=FALSE,ISBLANK(L129)=FALSE),IF(L129<SUM(L109:L123),\"ATTENTIE: is het juist dat het aantal verzekerden \nmet nominale premie kleiner is dan het totaal\naantal verzekerden van 20 jaar en ouder?\",\"\"),\"\")","v":""}]
[]
[]
[]
[]
[]
[null,null,null,{"$f":"NOW()","v":"2020-01-08T11:22:50.090"},null,null,null,null,null,null,null,{"$f":"CONCATENATE(\"Specifieke informatie A, \",LOWER(A95))","v":"Specifieke informatie A, pagina 3"}]

{"sheet":"Specifieke informatie C","index":7,"n_rows":309,"n_cols":12,"rows_kept":309,"cut":false,"hidden":false,"merged":[[308,3,308,4],[296,3,296,10],[297,3,297,10],[298,3,298,10],[300,3,301,10],[293,3,293,10],[291,3,291,10],[292,3,292,10],[302,3,302,10],[303,3,303,10],[305,3,305,10],[294,3,294,10],[295,3,295,10],[304,3,304,10],[233,3,233,5],[234,3,234,5],[167,3,167,5],[168,3,168,5],[169,3,169,5],[170,3,170,5],[171,3,171,5],[258,3,258,10],[255,3,255,10],[231,10,232,10],[231,6,232,6],[231,8,232,8],[230,8,230,9],[223,3,223,4],[179,3,179,4],[195,6,195,7],[195,8,195,9],[237,3,237,5],[203,3,203,5],[195,3,197,5],[198,3,198,5],[199,3,199,5],[209,3,209,5],[210,3,210,5],[300,11,301,11],[289,11,290,11],[287,3,287,10],[285,3,285,10],[286,3,286,10],[289,3,290,10],[273,3,274,10],[266,3,266,4],[277,3,277,10],[275,3,275,10],[278,3,278,10],[276,3,276,10],[284,3,284,10],[282,3,283,10],[282,11,283,11],[279,3,279,10],[62,3,62,10],[82,3,82,10],[80,3,80,10],[111,3,111,10],[195,10,195,11],[160,3,160,5],[156,7,157,7],[155,8,155,9],[151,3,152,4],[73,3,73,10],[81,3,81,10],[76,11,77,11],[95,11,96,11],[120,3,120,10],[156,6,157,6],[150,5,150,10],[141,3,141,10],[122,3,122,10],[123,3,123,10],[121,3,121,10],[143,3,143,10],[132,3,132,4],[151,5,151,10],[152,5,152,10],[58,3,59,10],[65,3,66,10],[76,3,77,10],[196,6,197,6],[58,11,59,11],[70,3,71,3],[71,4,71,10],[70,4,70,10],[67,3,67,10],[65,11,66,11],[115,3,115,10],[117,3,117,10],[116,3,116,10],[110,3,110,10],[108,3,109,10],[60,3,60,10],[61,3,61,10],[69,3,69,10],[74,3,74,10],[72,3,72,10],[68,3,68,10],[102,3,102,10],[100,3,100,10],[88,3,88,4],[37,3,38,10],[19,3,21,4],[56,3,56,10],[54,3,54,10],[21,5,21,10],[43,3,43,10],[24,3,24,10],[31,3,31,10],[55,3,55,10],[25,3,25,10],[33,3,33,10],[40,3,40,10],[45,3,45,4],[41,3,41,10],[23,5,23,10],[34,3,34,10],[52,3,53,10],[125,3,125,7],[125,8,125,10],[10,11,11,11],[12,3,12,10],[17,11,18,11],[10,3,11,10],[13,3,13,10],[15,3,15,10],[14,3,14,10],[52,11,53,11],[37,11,38,11],[32,3,32,10],[28,11,29,11],[39,3,39,10],[35,3,35,10],[30,3,30,10],[26,3,26,10],[42,3,42,10],[22,5,22,10],[22,3,23,4],[19,5,19,10],[20,5,20,10],[17,3,18,10],[28,3,29,10],[104,11,105,11],[97,3,97,10],[101,3,101,10],[119,3,119,10],[118,3,118,10],[114,3,114,10],[113,3,113,10],[112,3,112,10],[108,11,109,11],[106,8,106,10],[106,3,106,7],[79,3,79,10],[99,5,99,10],[98,5,98,10],[98,3,99,4],[95,3,96,10],[78,3,78,10],[144,3,144,10],[155,10,155,11],[156,10,157,10],[156,8,157,8],[139,11,140,11],[142,3,142,10],[149,3,150,4],[147,11,148,11],[156,11,157,11],[127,3,128,10],[130,3,130,10],[131,3,131,10],[124,3,124,10],[156,9,157,9],[139,3,140,10],[129,3,129,10],[147,3,148,10],[104,3,105,10],[158,3,158,5],[155,6,155,7],[161,3,161,5],[164,11,165,11],[164,7,165,7],[127,11,128,11],[149,5,149,10],[164,6,165,6],[164,8,165,8],[145,3,145,7],[145,8,145,10],[155,3,157,5],[164,10,165,10],[163,10,163,11],[163,8,163,9],[163,3,165,5],[163,6,163,7],[164,9,165,9],[211,3,211,5],[212,3,212,5],[231,7,232,7],[231,9,232,9],[230,10,230,11],[231,11,232,11],[159,3,159,5],[200,3,200,5],[201,3,201,5],[202,3,202,5],[230,6,230,7],[230,3,232,5],[166,3,166,11],[206,11,207,11],[186,3,188,5],[186,6,186,7],[186,8,186,9],[186,10,186,11],[187,6,188,6],[187,7,188,7],[187,8,188,8],[187,11,188,11],[187,9,188,9],[187,10,188,10],[252,11,253,11],[273,11,274,11],[242,3,242,10],[240,11,241,11],[248,3,248,10],[243,3,243,10],[259,3,259,10],[244,3,244,10],[250,3,250,10],[256,3,256,10],[246,3,247,10],[249,3,249,10],[257,3,257,10],[254,3,254,10],[252,3,253,10],[189,3,189,5],[190,3,190,5],[191,3,191,5],[192,3,192,5],[246,11,247,11],[240,3,241,10],[196,11,197,11],[205,3,207,5],[205,6,205,7],[205,8,205,9],[205,10,205,11],[206,6,207,6],[206,7,207,7],[206,8,207,8],[206,9,207,9],[206,10,207,10],[196,7,197,7],[196,8,197,8],[193,3,193,5],[196,9,197,9],[196,10,197,10],[235,3,235,5],[236,3,236,5],[208,3,208,5]]}
[" ",null,"INVULSPECIFICATIES SPECIFIEKE INFORMATIE C"]
[]
[]
[]
[]
["Pagina 1",null,null,{"$f":"CONCATENATE(\"KWARTAALSTAAT ZVW \", jaar_id,\" \",kwartaal_id,\"E KWARTAAL\")","v":"KWARTAALSTAAT ZVW 2019 4E KWARTAAL"}]
[null,null,null,"SPECIFIEKE INFORMATIE C "]
[null,null,null,{"$f":"IF(naw_uzovi_zorgverzekeraar<>\"0000\",CONCATENATE(UPPER(naw_naam_zorgverzekeraar),\", \",UPPER(naw_plaats_zorgverzekeraar)),\"\")","v":""},null,null,null,null,null,null,null,{"$f":"CONCATENATE(\"UZOVI: \",naw_uzovi_zorgverzekeraar)","v":"UZOVI: 0000"}]
[null,null,null,"SPECIFICATIES VAN KOSTEN EN PRODUCTIE"]
[null,null,null,"RUBRIEK 01 HUISARTSENZORG"]
[null,null,null,"  CODE 503 - BIJZONDERE BETALINGEN",null,null,null,null,null,null,null,{"$f":"CONCATENATE(\"Ontvangen en geaccepteerde declaraties t/m\",\" \",kwartaal_id,\"e Kwartaal\",\" \",jaar_id)","v":"Ontvangen en geaccepteerde declaraties t/m 4e Kwartaal 2019"}]
[null,null,null,null,null,null,null,null,null,null,null,{"$f":"CONCATENATE(\"Ontvangen en geaccepteerde declaraties t/m\",\" \",kwartaal_id,\"e Kwartaal\",\" \",jaar_id)","v":"Ontvangen en geaccepteerde declaraties t/m 4e Kwartaal 2019"}]
[null,null,null," Module achterstandsfonds"]
[null,null,null," Module modernisering en innovatie"]
[null,null,null," Overige kosten"]
[null,null,null," TOTAAL code 503",null,null,null,null,null,null,null,{"$f":"SUM(L13:L15)","v":0}]
[]
[null,null,null,"  CODE 506 - CONSULTTARIEVEN",null,null,null,null,null,null,null,{"$f":"CONCATENATE(\"Ontvangen en geaccepteerde declaraties t/m\",\" \",kwartaal_id,\"e Kwartaal\",\" \",jaar_id)","v":"Ontvangen en geaccepteerde declaraties t/m 4e Kwartaal 2019"}]
[null,null,null,null,null,null,null,null,null,null,null,{"$f":"CONCATENATE(\"Ontvangen en geaccepteerde declaraties t/m\",\" \",kwartaal_id,\"e Kwartaal\",\" \",jaar_id)","v":"Ontvangen en geaccepteerde declaraties t/m 4e Kwartaal 2019"}]
[null,null,null," Kosten consulten huisartsen",null," korter dan 5 minuten"]
[null,null,null,null,null," van 5 tot 20 minuten"]
[null,null,null,null,null," 20 minuten en langer"]
[null,null,null," Kosten visites huisartsen",null," ≤ 20 minuten"]
[null,null,null,null,null," > 20 minuten"]
[null,null,null," Kosten consulttarieven POH GGZ"]
[null,null,null," Kosten huisartsenzorg ELV en Intensieve zorg "]
[null,null,null," TOTAAL code 506",null,null,null,null,null,null,null,{"$f":"SUM(L20:L26)","v":0}]
[]
[null,null,null,"  CODE 507 - OVERIGE TARIEVEN",null,null,null,null,null,null,null,{"$f":"CONCATENATE(\"Ontvangen en geaccepteerde declaraties t/m\",\" \",kwartaal_id,\"e Kwartaal\",\" \",jaar_id)","v":"Ontvangen en geaccepteerde declaraties t/m 4e Kwartaal 2019"}]
[null,null,null,null,null,null,null,null,null,null,null,{"$f":"CONCATENATE(\"Ontvangen en geaccepteerde declaraties t/m\",\" \",kwartaal_id,\"e Kwartaal\",\" \",jaar_id)","v":"Ontvangen en geaccepteerde declaraties t/m 4e Kwartaal 2019"}]
[null,null,null," Module POH GGZ"]
[null,null,null," S1 Verrichtingen "]
[null,null,null," Vaccinaties"]
[null,null,null," Passantentarieven"]
[null,null,null," Verloskundige zorg door huisartsen"]
[null,null,null," TOTAAL code 507",null,null,null,null,null,null,null,{"$f":"SUM(L31:L35)","v":0}]
[]
[null,null,null,"  CODE 510 - MULTIDISCIPLINAIRE ZORG",null,null,null,null,null,null,null,{"$f":"CONCATENATE(\"Ontvangen en geaccepteerde declaraties t/m\",\" \",kwartaal_id,\"e Kwartaal\",\" \",jaar_id)","v":"Ontvangen en geaccepteerde declaraties t/m 4e Kwartaal 2019"}]
[null,null,null,null,null,null,null,null,null,null,null,{"$f":"CONCATENATE(\"Ontvangen en geaccepteerde declaraties t/m\",\" \",kwartaal_id,\"e Kwartaal\",\" \",jaar_id)","v":"Ontvangen en geaccepteerde declaraties t/m 4e Kwartaal 2019"}]
[null,null,null," Multidisciplinaire zorgverlening Diabetes Mellitus type 2 en multidisciplinaire zorgverlening Cardiovasculair risicomanagement \n (vergoedingscomponent te verzekeren prestatie Zvw)"]
[null,null,null," Multidisciplinaire zorgverlening COPD (vergoedingscomponent te verzekeren prestatie Zvw) "]
[null,null,null," Ondersteuning en infrastructuur"]
[null,null,null," Programma stoppen met roken"]
[null,null,null," TOTAAL code 510",null,null,null,null,null,null,null,{"$f":"SUM(L40:L43)","v":0}]
[]
[null,null,null,{"$f":"NOW()","v":"2020-01-08T11:22:50.090"},null,null,null,null,null,null,null,{"$f":"CONCATENATE(\"Specifieke informatie C, \",LOWER(A6))","v":"Specifieke informatie C, pagina 1"}]
[]
["Pagina 2",null,null,{"$f":"CONCATENATE(\"KWARTAALSTAAT ZVW \", jaar_id,\" \",kwartaal_id,\"E KWARTAAL\")","v":"KWARTAALSTAAT ZVW 2019 4E KWARTAAL"}]
[null,null,null,"SPECIFIEKE INFORMATIE C"]
[null,null,null,{"$f":"IF(naw_uzovi_zorgverzekeraar<>\"0000\",CONCATENATE(UPPER(naw_naam_zorgverzekeraar),\", \",UPPER(naw_plaats_zorgverzekeraar)),\"\")","v":""},null,null,null,null,null,null,null,{"$f":"CONCATENATE(\"UZOVI: \",naw_uzovi_zorgverzekeraar)","v":"UZOVI: 0000"}]
[null,null,null,"SPECIFICATIES VAN KOSTEN EN PRODUCTIE"]
[null,null,null,"RUBRIEK 01 HUISARTSENZORG - vervolg"]
[null,null,null,"  CODE 515 - RESULTAATBELONING EN ZORGVERNIEUWING HUISARTSEN",null,null,null,null,null,null,null,{"$f":"CONCATENATE(\"Ontvangen en geaccepteerde declaraties t/m\",\" \",kwartaal_id,\"e Kwartaal\",\" \",jaar_id)","v":"Ontvangen en geaccepteerde declaraties t/m 4e Kwartaal 2019"}]
[null,null,null,null,null,null,null,null,null,null,null,{"$f":"CONCATENATE(\"Ontvangen en geaccepteerde declaraties t/m\",\" \",kwartaal_id,\"e Kwartaal\",\" \",jaar_id)","v":"Ontvangen en geaccepteerde declaraties t/m 4e Kwartaal 2019"}]
[null,null,null," Kosten resultaatbeloning huisartsen"]
[null,null,null," Kosten zorgvernieuwing huisartsen"]
[null,null,null," TOTAAL code 515",null,null,null,null,null,null,null,{"$f":"SUM(L55:L56)","v":0}]
[]
[null,null,null,"  CODE 516 - RESULTAATBELONING EN ZORGVERNIEUWING MDZ",null,null,null,null,null,null,null,{"$f":"CONCATENATE(\"Ontvangen en geaccepteerde declaraties t/m\",\" \",kwartaal_id,\"e Kwartaal\",\" \",jaar_id)","v":"Ontvangen en geaccepteerde declaraties t/m 4e Kwartaal 2019"}]
[null,null,null,null,null,null,null,null,null,null,null,{"$f":"CONCATENATE(\"Ontvangen en geaccepteerde declaraties t/m\",\" \",kwartaal_id,\"e Kwartaal\",\" \",jaar_id)","v":"Ontvangen en geaccepteerde declaraties t/m 4e Kwartaal 2019"}]
[null,null,null," Kosten resultaatbeloning MDZ"]
[null,null,null," Kosten zorgvernieuwing MDZ"]
[null,null,null," TOTAAL code 516",null,null,null,null,null,null,null,{"$f":"SUM(L61:L62)","v":0}]
[]
[null,null,null,"RUBRIEK 03 VERPLEGING EN VERZORGING"]
[null,null,null,"  CODE 530 - VERPLEGING EN VERZORGING ",null,null,null,null,null,null,null,{"$f":"CONCATENATE(\"Ontvangen en geaccepteerde declaraties t/m\",\" \",kwartaal_id,\"e Kwartaal\",\" \",jaar_id)","v":"Ontvangen en geaccepteerde declaraties t/m 4e Kwartaal 2019"}]
[null,null,null,null,null,null,null,null,null,null,null,{"$f":"CONCATENATE(\"Ontvangen en geaccepteerde declaraties t/m\",\" \",kwartaal_id,\"e Kwartaal\",\" \",jaar_id)","v":"Ontvangen en geaccepteerde declaraties t/m 4e Kwartaal 2019"}]
[null,null,null," Kosten verpleging"]
[null,null,null," Kosten verzorging"]
[null,null,null," Kosten PGB"]
[null,null,null," Overige kosten"," Prestatie AIV, Beloning op maat, Experiment bekostiging VenV (prestaties op verzekerdenniveau)"]
[null,null,null,null," Wijkgericht werken, Experiment regelarme instelling, Regionale beschikbaarheidsfunctie, Experimenten \n ketenzorg dementie (prestaties niet op verzekerdenniveau)"]
[null,null,null," Kosten verpleegkundige dagopvang en verblijf bij Intensieve kindzorg"]
[null,null,null," Kosten verpleging en verzorging voor kinderen tot 18 jaar"]
[null,null,null," TOTAAL code 530",null,null,null,null,null,null,null,{"$f":"SUM(L68:L74)","v":0}]
[]
[null,null,null,"  CODE 530 - VERPLEGING EN VERZORGING ",null,null,null,null,null,null,null,{"$f":"CONCATENATE(\"AANTAL tot en met \",\" \",kwartaal_id,\"e Kwartaal\",\" \",jaar_id)","v":"AANTAL tot en met  4e Kwartaal 2019"}]
[null,null,null,null,null,null,null,null,null,null,null,{"$f":"CONCATENATE(\"AANTAL tot en met \",\" \",kwartaal_id,\"e Kwartaal\",\" \",jaar_id)","v":"AANTAL tot en met  4e Kwartaal 2019"}]
[null,null,null," Verpleging"]
[null,null,null," Verzorging"]
[null,null,null," PGB"]
[null,null,null," Verpleegkundige dagopvang en verblijf bij Intensieve kindzorg"]
[null,null,null," Verpleging en verzorging voor kinderen tot 18 jaar"]
[]
[]
[]
[]
[]
[null,null,null,{"$f":"NOW()","v":"2020-01-08T11:22:50.090"},null,null,null,null,null,null,null,{"$f":"CONCATENATE(\"Specifieke informatie C, \",LOWER(A48))","v":"Specifieke informatie C, pagina 2"}]
[]
["Pagina 3",null,null,{"$f":"CONCATENATE(\"KWARTAALSTAAT ZVW \", jaar_id,\" \",kwartaal_id,\"E KWARTAAL\")","v":"KWARTAALSTAAT ZVW 2019 4E KWARTAAL"}]
[null,null,null,"SPECIFIEKE INFORMATIE C"]
[null,null,null,{"$f":"IF(naw_uzovi_zorgverzekeraar<>\"0000\",CONCATENATE(UPPER(naw_naam_zorgverzekeraar),\", \",UPPER(naw_plaats_zorgverzekeraar)),\"\")","v":""},null,null,null,null,null,null,null,{"$f":"CONCATENATE(\"UZOVI: \",naw_uzovi_zorgverzekeraar)","v":"UZOVI: 0000"}]
[null,null,null,"SPECIFICATIES VAN KOSTEN EN PRODUCTIE"]
[null,null,null,"RUBRIEK 04 MONDZORG "]
[null,null,null,"  CODE 560.1 - MONDZORG VOLWASSEN VERZEKERDEN",null,null,null,null,null,null,null,{"$f":"CONCATENATE(\"Ontvangen en geaccepteerde declaraties t/m\",\" \",kwartaal_id,\"e Kwartaal\",\" \",jaar_id)","v":"Ontvangen en geaccepteerde declaraties t/m 4e Kwartaal 2019"}]
[null,null,null,null,null,null,null,null,null,null,null,{"$f":"CONCATENATE(\"Ontvangen en geaccepteerde declaraties t/m\",\" \",kwartaal_id,\"e Kwartaal\",\" \",jaar_id)","v":"Ontvangen en geaccepteerde declaraties t/m 4e Kwartaal 2019"}]
[null,null,null," X   Maken en beoordelen foto's (Röntgendiagnostiek)"]
[null,null,null," Bijzondere tandheelkundige zorg \n (art. 2.7, lid 1, sub a)",null," Implantaten "]
[null,null,null,null,null," Overig"]
[null,null,null," Bijzondere tandheelkundige zorg (art. 2.7, lid 1, b en c)"]
[null,null,null," Bijzondere tandheelkundige zorg (art. 2.7, lid 3), Orthodontie"]
[null,null,null," TOTAAL code 560.1",null,null,null,null,null,null,null,{"$f":"SUM(L98:L102)","v":0}]
[]
[null,null,null,"  CODE 560.1 - MONDZORG VOLWASSEN VERZEKERDEN - vervolg",null,null,null,null,null,null,null,{"$f":"CONCATENATE(\"AANTAL tot en met \",\" \",kwartaal_id,\"e Kwartaal\",\" \",jaar_id)","v":"AANTAL tot en met  4e Kwartaal 2019"}]
[null,null,null,null,null,null,null,null,null,null,null,{"$f":"CONCATENATE(\"AANTAL tot en met \",\" \",kwartaal_id,\"e Kwartaal\",\" \",jaar_id)","v":"AANTAL tot en met  4e Kwartaal 2019"}]
[null,null,null," Bijzondere tandheelkundige zorg (art. 2.7, lid 1, sub a)",null,null,null,null," Implantaten"]
[]
[null,null,null,"  CODE 560.2 - MONDZORG JEUGDIGE VERZEKERDEN",null,null,null,null,null,null,null,{"$f":"CONCATENATE(\"Ontvangen en geaccepteerde declaraties t/m\",\" \",kwartaal_id,\"e Kwartaal\",\" \",jaar_id)","v":"Ontvangen en geaccepteerde declaraties t/m 4e Kwartaal 2019"}]
[null,null,null,null,null,null,null,null,null,null,null,{"$f":"CONCATENATE(\"Ontvangen en geaccepteerde declaraties t/m\",\" \",kwartaal_id,\"e Kwartaal\",\" \",jaar_id)","v":"Ontvangen en geaccepteerde declaraties t/m 4e Kwartaal 2019"}]
[null,null,null," C        Consultatie en diagnostiek"]
[null,null,null," X        Maken en beoordelen foto's"]
[null,null,null," M        Preventieve mondzorg"]
[null,null,null," A+B    Verdoving"]
[null,null,null," V        Vullingen"]
[null,null,null," E        Wortelkanaalbehandelingen"]
[null,null,null," R        Kronen en bruggen"]
[null,null,null," G        Kaakgewrichtbehandelingen "]
[null,null,null," H        Chirurgische ingrepen"]
[null,null,null," P        Uitneembare prothetische voorzieningen"]
[null,null,null," T        Tandvleesbehandelingen "]
[null,null,null," J        Implantaten"]
[null,null,null," Z       Abbonementstarieven"]
[null,null,null," Bijzondere tandheelkundige zorg (art. 2.7, lid 1, sub a,b en c)"]
[null,null,null," Bijzondere tandheelkundige zorg (art. 2.7, lid 3), Orthodontie"]
[null,null,null," TOTAAL code 560.2",null,null,null,null,null,null,null,{"$f":"SUM(L111:L125)","v":0}]
[]
[null,null,null,"  CODE 560.2 - MONDZORG JEUGDIGE VERZEKERDEN - vervolg",null,null,null,null,null,null,null,{"$f":"CONCATENATE(\"AANTAL tot en met \",\" \",kwartaal_id,\"e Kwartaal\",\" \",jaar_id)","v":"AANTAL tot en met  4e Kwartaal 2019"}]
[null,null,null,null,null,null,null,null,null,null,null,{"$f":"CONCATENATE(\"AANTAL tot en met \",\" \",kwartaal_id,\"e Kwartaal\",\" \",jaar_id)","v":"AANTAL tot en met  4e Kwartaal 2019"}]
[null,null,null," C     Consultatie en diagnostiek (C11, Periodieke controle)"]
[null,null,null," M     Preventieve mondzorg (M01, Preventieve voorlichting en/of instructie) "]
[null,null,null," M     Preventieve mondzorg (M02, Consult voor evaluatie van preventie)"]
[null,null,null,{"$f":"NOW()","v":"2020-01-08T11:22:50.090"},null,null,null,null,null,null,null,{"$f":"CONCATENATE(\"Specifieke informatie C, \",LOWER(A91))","v":"Specifieke informatie C, pagina 3"}]
[]
["Pagina 4",null,null,{"$f":"CONCATENATE(\"KWARTAALSTAAT ZVW \", jaar_id,\" \",kwartaal_id,\"E KWARTAAL\")","v":"KWARTAALSTAAT ZVW 2019 4E KWARTAAL"}]
[null,null,null,"SPECIFIEKE INFORMATIE C "]
[null,null,null,{"$f":"IF(naw_uzovi_zorgverzekeraar<>\"0000\",CONCATENATE(UPPER(naw_naam_zorgverzekeraar),\", \",UPPER(naw_plaats_zorgverzekeraar)),\"\")","v":""},null,null,null,null,null,null,null,{"$f":"CONCATENATE(\"UZOVI: \",naw_uzovi_zorgverzekeraar)","v":"UZOVI: 0000"}]
[null,null,null,"SPECIFICATIES VAN KOSTEN EN PRODUCTIE"]
[null,null,null,"RUBRIEK 04 MONDZORG - vervolg"]
[null,null,null,"  CODE 561 - GEBITSPROTHESEN",null,null,null,null,null,null,null,{"$f":"CONCATENATE(\"Ontvangen en geaccepteerde declaraties t/m\",\" \",kwartaal_id,\"e Kwartaal\",\" \",jaar_id)","v":"Ontvangen en geaccepteerde declaraties t/m 4e Kwartaal 2019"}]
[null,null,null,null,null,null,null,null,null,null,null,{"$f":"CONCATENATE(\"Ontvangen en geaccepteerde declaraties t/m\",\" \",kwartaal_id,\"e Kwartaal\",\" \",jaar_id)","v":"Ontvangen en geaccepteerde declaraties t/m 4e Kwartaal 2019"}]
[null,null,null," Volledige conventionele gebitsprothesen voor onder- en/of bovenkaak"]
[null,null,null," Rebasings en reparaties van de conventionele gebitsprothesen "]
[null,null,null," Volledige implantaat gedragen gebitsprothesen voor onder- en/of bovenkaak"]
[null,null,null," Rebasings en reparaties implantaat gedragen gebitsprothesen "]
[null,null,null," TOTAAL code 561",null,null,null,null,null,null,null,{"$f":"SUM(L142:L145)","v":0}]
[]
[null,null,null,"  CODE 561 - GEBITSPROTHESEN - vervolg",null,null,null,null,null,null,null,{"$f":"CONCATENATE(\"AANTAL tot en met \",\" \",kwartaal_id,\"e Kwartaal\",\" \",jaar_id)","v":"AANTAL tot en met  4e Kwartaal 2019"}]
[null,null,null,null,null,null,null,null,null,null,null,{"$f":"CONCATENATE(\"AANTAL tot en met \",\" \",kwartaal_id,\"e Kwartaal\",\" \",jaar_id)","v":"AANTAL tot en met  4e Kwartaal 2019"}]
[null,null,null," Volledige conventionele \n gebitsprothesen \n ",null," onder en boven"]
[null,null,null,null,null," onder of boven (tellen per kaak) "]
[null,null,null," Volledige implantaat gedragen  \n gebitsprothesen \n ",null," onder en boven"]
[null,null,null,null,null," onder of boven (tellen per kaak) "]
[]
[null,null,null,"RUBRIEK 06 MEDISCH SPECIALISTISCHE ZORG"]
[null,null,null," CODE 610 - OVERIGE KOSTEN \n ZIEKENHUISZORG EN CURATIEVE ZORG",null,null,{"$f":"CONCATENATE(\"Lasten \",jaar_id,\"  t/m \",kwartaal_id,\"e Kwartaal\",)","v":"Lasten 2019  t/m 4e Kwartaal"},{"$f":"CONCATENATE(\"Lasten \",jaar_id,\"  t/m \",kwartaal_id,\"e Kwartaal\",)","v":"Lasten 2019  t/m 4e Kwartaal"},"Lasten 2018 ",null,"Lasten 2017 en ouder"]
[null,null,null,null,null,null,"Lasten 2019 inclusief balanspost",{"$f":"CONCATENATE(\"Ontvangen en geaccepteerde declaraties t/m\",\" \",kwartaal_id,\"e Kwartaal\",\" \",jaar_id)","v":"Ontvangen en geaccepteerde declaraties t/m 4e Kwartaal 2019"},"Lasten 2018 inclusief balanspost","Ontvangen en geaccepteerde declaraties m.b.t. 2018","Lasten 2017 en ouder inclusief balanspost ","Ontvangen en geaccepteerde declaraties m.b.t. 2017 en ouder"]
[null,null,null,null,null,null,null,{"$f":"CONCATENATE(\"Ontvangen en geaccepteerde declaraties t/m\",\" \",kwartaal_id,\"e Kwartaal\",\" \",jaar_id)","v":"Ontvangen en geaccepteerde declaraties t/m 4e Kwartaal 2019"},"Ontvangen en geaccepteerde declaraties mbt jaar T","Ontvangen en geaccepteerde declaraties mbt jaar T","Ontvangen en geaccepteerde declaraties mbt jaar T","Ontvangen en geaccepteerde declaraties mbt jaar T"]
[null,null,null," Kosten van eerstelijnsdiagnostiek \n aangevraagd door eerstelijnszorg-\n aanbieders geleverd door \n huisartsenlaboratoria "]
[null,null,null," Trombosediensten "]
[null,null,null," SKION en NTS"]
[null,null,null," TOTAAL code 610",null,null,{"$f":"SUM(G159:G161)","v":0},0,0,0,0,0]
[]
[null,null,null,"  CODE 611 - NAAR INSTELLING",null,null,{"$f":"CONCATENATE(\"Lasten \",jaar_id,\"  t/m \",kwartaal_id,\"e Kwartaal\",)","v":"Lasten 2019  t/m 4e Kwartaal"},{"$f":"CONCATENATE(\"Lasten \",jaar_id,\"  t/m \",kwartaal_id,\"e Kwartaal\",)","v":"Lasten 2019  t/m 4e Kwartaal"},"Lasten 2018 ",null,"Lasten 2017 en ouder"]
[null,null,null,null,null,null,"Lasten 2019 inclusief balanspost",{"$f":"CONCATENATE(\"Ontvangen en geaccepteerde declaraties t/m\",\" \",kwartaal_id,\"e Kwartaal\",\" \",jaar_id)","v":"Ontvangen en geaccepteerde declaraties t/m 4e Kwartaal 2019"},"Lasten 2018 inclusief balanspost","Ontvangen en geaccepteerde declaraties m.b.t. 2018","Lasten 2017 en ouder inclusief balanspost ","Ontvangen en geaccepteerde declaraties m.b.t. 2017 en ouder"]
[null,null,null,null,null,null,null,{"$f":"CONCATENATE(\"Ontvangen en geaccepteerde declaraties t/m\",\" \",kwartaal_id,\"e Kwartaal\",\" \",jaar_id)","v":"Ontvangen en geaccepteerde declaraties t/m 4e Kwartaal 2019"},"Ontvangen en geaccepteerde declaraties mbt jaar T","Ontvangen en geaccepteerde declaraties mbt jaar T","Ontvangen en geaccepteerde declaraties mbt jaar T","Ontvangen en geaccepteerde declaraties mbt jaar T"]
[null,null,null," Overige zorgproducten"]
[null,null,null," Academische ziekenhuizen"]
[null,null,null," Algemene ziekenhuizen"]
[null,null,null," Zelfstandige behandelcentra"]
[null,null,null," Overige zorgaanbieders"]
[null,null,null," TOTAAL code 611",null,null,{"$f":"SUM(G168:G171)","v":0},0,0,0,0,0]
[]
[]
[]
[]
[]
[]
[]
[null,null,null,{"$f":"NOW()","v":"2020-01-08T11:22:50.090"},null,null,null,null,null,null,null,{"$f":"CONCATENATE(\"Specifieke informatie C, \",LOWER(A135))","v":"Specifieke informatie C, pagina 4"}]
[]
["Pagina 5",null,null,{"$f":"CONCATENATE(\"KWARTAALSTAAT ZVW \", jaar_id,\" \",kwartaal_id,\"E KWARTAAL\")","v":"KWARTAALSTAAT ZVW 2019 4E KWARTAAL"}]
[null,null,null,"SPECIFIEKE INFORMATIE C "]
[null,null,null,{"$f":"IF(naw_uzovi_zorgverzekeraar<>\"0000\",CONCATENATE(UPPER(naw_naam_zorgverzekeraar),\", \",UPPER(naw_plaats_zorgverzekeraar)),\"\")","v":""},null,null,null,null,null,null,null,{"$f":"CONCATENATE(\"UZOVI: \",naw_uzovi_zorgverzekeraar)","v":"UZOVI: 0000"}]
[null,null,null,"SPECIFICATIES VAN KOSTEN EN PRODUCTIE"]
[null,null,null,"RUBRIEK 06 MEDISCH SPECIALISTISCHE ZORG - vervolg"]
[null,null,null," CODE 612.1 - KOSTEN ADD-ONS DURE \n GENEESMIDDELEN NAAR INSTELLING",null,null,{"$f":"CONCATENATE(\"Lasten \",jaar_id,\"  t/m \",kwartaal_id,\"e Kwartaal\",)","v":"Lasten 2019  t/m 4e Kwartaal"},{"$f":"CONCATENATE(\"Lasten \",jaar_id,\"  t/m \",kwartaal_id,\"e Kwartaal\",)","v":"Lasten 2019  t/m 4e Kwartaal"},"Lasten 2018 ",null,"Lasten 2017 en ouder"]
[null,null,null,null,null,null,"Lasten 2019 inclusief balanspost",{"$f":"CONCATENATE(\"Ontvangen en geaccepteerde declaraties t/m\",\" \",kwartaal_id,\"e Kwartaal\",\" \",jaar_id)","v":"Ontvangen en geaccepteerde declaraties t/m 4e Kwartaal 2019"},"Lasten 2018 inclusief balanspost","Ontvangen en geaccepteerde declaraties m.b.t. 2018","Lasten 2017 en ouder inclusief balanspost ","Ontvangen en geaccepteerde declaraties m.b.t. 2017 en ouder"]
[null,null,null,null,null,null,null,{"$f":"CONCATENATE(\"Ontvangen en geaccepteerde declaraties t/m\",\" \",kwartaal_id,\"e Kwartaal\",\" \",jaar_id)","v":"Ontvangen en geaccepteerde declaraties t/m 4e Kwartaal 2019"},"Ontvangen en geaccepteerde declaraties mbt jaar T","Ontvangen en geaccepteerde declaraties mbt jaar T","Ontvangen en geaccepteerde declaraties mbt jaar T","Ontvangen en geaccepteerde declaraties mbt jaar T"]
[null,null,null," Academische ziekenhuizen"]
[null,null,null," Algemene ziekenhuizen"]
[null,null,null," Zelfstandige behandelcentra"]
[null,null,null," Overige zorgaanbieders"]
[null,null,null," TOTAAL code 612.1",null,null,{"$f":"SUM(G190:G193)","v":0},0,0,0,0,0]
[]
[null,null,null," CODE 612.2 - KOSTEN ADD-ONS IC  \n NAAR INSTELLING",null,null,{"$f":"CONCATENATE(\"Lasten \",jaar_id,\"  t/m \",kwartaal_id,\"e Kwartaal\",)","v":"Lasten 2019  t/m 4e Kwartaal"},{"$f":"CONCATENATE(\"Lasten \",jaar_id,\"  t/m \",kwartaal_id,\"e Kwartaal\",)","v":"Lasten 2019  t/m 4e Kwartaal"},"Lasten 2018 ",null,"Lasten 2017 en ouder"]
[null,null,null,null,null,null,"Lasten 2019 inclusief balanspost",{"$f":"CONCATENATE(\"Ontvangen en geaccepteerde declaraties t/m\",\" \",kwartaal_id,\"e Kwartaal\",\" \",jaar_id)","v":"Ontvangen en geaccepteerde declaraties t/m 4e Kwartaal 2019"},"Lasten 2018 inclusief balanspost","Ontvangen en geaccepteerde declaraties m.b.t. 2018","Lasten 2017 en ouder inclusief balanspost ","Ontvangen en geaccepteerde declaraties m.b.t. 2017 en ouder"]
[null,null,null,null,null,null,null,{"$f":"CONCATENATE(\"Ontvangen en geaccepteerde declaraties t/m\",\" \",kwartaal_id,\"e Kwartaal\",\" \",jaar_id)","v":"Ontvangen en geaccepteerde declaraties t/m 4e Kwartaal 2019"},"Ontvangen en geaccepteerde declaraties mbt jaar T","Ontvangen en geaccepteerde declaraties mbt jaar T","Ontvangen en geaccepteerde declaraties mbt jaar T","Ontvangen en geaccepteerde declaraties mbt jaar T"]
[null,null,null," Academische ziekenhuizen"]
[null,null,null," Algemene ziekenhuizen"]
[null,null,null," Zelfstandige behandelcentra"]
[null,null,null," Overige zorgaanbieders"]
[null,null,null," TOTAAL code 612.2",null,null,{"$f":"SUM(G199:G202)","v":0},0,0,0,0,0]
[null,null,null," TOTAAL code 612",null,null,{"$f":"SUM(G199:G202)+SUM(G190:G193)","v":0},0,{"$f":"SUM(I199:I202)+SUM(I190:I193)","v":0},{"$f":"SUM(J199:J202)+SUM(J190:J193)","v":0},0,0]
[]
[null,null,null,"  CODE 613.1 - INTEGRALE KOSTEN VAN \n  DBC-ZORGPRODUCTEN GEREGULEERDE \n  SEGMENT NAAR \n  INSTELLING",null,null,{"$f":"CONCATENATE(\"Lasten \",jaar_id,\"  t/m \",kwartaal_id,\"e Kwartaal\",)","v":"Lasten 2019  t/m 4e Kwartaal"},{"$f":"CONCATENATE(\"Lasten \",jaar_id,\"  t/m \",kwartaal_id,\"e Kwartaal\",)","v":"Lasten 2019  t/m 4e Kwartaal"},"Lasten 2018 ",null,"Lasten 2017 en ouder"]
[null,null,null,null,null,null,"Lasten 2019 inclusief balanspost",{"$f":"CONCATENATE(\"Ontvangen en geaccepteerde declaraties t/m\",\" \",kwartaal_id,\"e Kwartaal\",\" \",jaar_id)","v":"Ontvangen en geaccepteerde declaraties t/m 4e Kwartaal 2019"},"Lasten 2018 inclusief balanspost","Ontvangen en geaccepteerde declaraties m.b.t. 2018","Lasten 2017 en ouder inclusief balanspost ","Ontvangen en geaccepteerde declaraties m.b.t. 2017 en ouder"]
[null,null,null,null,null,"code",null,{"$f":"CONCATENATE(\"Ontvangen en geaccepteerde declaraties t/m\",\" \",kwartaal_id,\"e Kwartaal\",\" \",jaar_id)","v":"Ontvangen en geaccepteerde declaraties t/m 4e Kwartaal 2019"},"Ontvangen en geaccepteerde declaraties mbt jaar T","Ontvangen en geaccepteerde declaraties mbt jaar T","Ontvangen en geaccepteerde declaraties mbt jaar T","Ontvangen en geaccepteerde declaraties mbt jaar T"]
[null,null,null," Academische ziekenhuizen"]
[null,null,null," Algemene ziekenhuizen"]
[null,null,null," Zelfstandige behandelcentra"]
[null,null,null," Overige zorgaanbieders"]
[null,null,null," TOTAAL code 613.1",null,null,{"$f":"SUM(G209:G212)","v":0},0,0,0,0,0]
[]
[]
[]
[]
[]
[]
[]
[]
[]
[]
[null,null,null,{"$f":"NOW()","v":"2020-01-08T11:22:50.090"},null,null,null,null,null,null,null,{"$f":"CONCATENATE(\"Specifieke informatie C, \",LOWER(A182))","v":"Specifieke informatie C, pagina 5"}]
[]
["Pagina 6",null,null,{"$f":"CONCATENATE(\"KWARTAALSTAAT ZVW \", jaar_id,\" \",kwartaal_id,\"E KWARTAAL\")","v":"KWARTAALSTAAT ZVW 2019 4E KWARTAAL"}]
[null,null,null,"SPECIFIEKE INFORMATIE C "]
[null,null,null,{"$f":"IF(naw_uzovi_zorgverzekeraar<>\"0000\",CONCATENATE(UPPER(naw_naam_zorgverzekeraar),\", \",UPPER(naw_plaats_zorgverzekeraar)),\"\")","v":""},null,null,null,null,null,null,null,{"$f":"CONCATENATE(\"UZOVI: \",naw_uzovi_zorgverzekeraar)","v":"UZOVI: 0000"}]
[null,null,null,"SPECIFICATIES VAN KOSTEN EN PRODUCTIE"]
[null,null,null,"RUBRIEK 06 MEDISCH SPECIALISTISCHE ZORG - vervolg"]
[null,null,null,"  CODE 615.1 - INTEGRALE KOSTEN VAN\n  DBC-ZORGPRODUCTEN VRIJE SEGMENT\n  NAAR INSTELLING",null,null,{"$f":"CONCATENATE(\"Lasten \",jaar_id,\"  t/m \",kwartaal_id,\"e Kwartaal\",)","v":"Lasten 2019  t/m 4e Kwartaal"},{"$f":"CONCATENATE(\"Lasten \",jaar_id,\"  t/m \",kwartaal_id,\"e Kwartaal\",)","v":"Lasten 2019  t/m 4e Kwartaal"},"Lasten 2018 ",null,"Lasten 2017 en ouder"]
[null,null,null,null,null,null,"Lasten 2019 inclusief balanspost",{"$f":"CONCATENATE(\"Ontvangen en geaccepteerde declaraties t/m\",\" \",kwartaal_id,\"e Kwartaal\",\" \",jaar_id)","v":"Ontvangen en geaccepteerde declaraties t/m 4e Kwartaal 2019"},"Lasten 2018 inclusief balanspost","Ontvangen en geaccepteerde declaraties m.b.t. 2018","Lasten 2017 en ouder inclusief balanspost ","Ontvangen en geaccepteerde declaraties m.b.t. 2017 en ouder"]
[null,null,null,null,null,"code",null,{"$f":"CONCATENATE(\"Ontvangen en geaccepteerde declaraties t/m\",\" \",kwartaal_id,\"e Kwartaal\",\" \",jaar_id)","v":"Ontvangen en geaccepteerde declaraties t/m 4e Kwartaal 2019"},"Ontvangen en geaccepteerde declaraties mbt jaar T","Ontvangen en geaccepteerde declaraties mbt jaar T","Ontvangen en geaccepteerde declaraties mbt jaar T","Ontvangen en geaccepteerde declaraties mbt jaar T"]
[null,null,null," Academische ziekenhuizen"]
[null,null,null," Algemene ziekenhuizen"]
[null,null,null," Zelfstandige behandelcentra"]
[null,null,null," Overige zorgaanbieders"]
[null,null,null," TOTAAL code 615.1",null,null,{"$f":"SUM(G234:G237)","v":0},0,0,0,0,0]
[]
[null,null,null,"RUBRIEK 10 GENEESKUNDIGE GEESTELIJKE GEZONDHEIDSZORG"]
[null,null,null,"  CODE 662 - SPECIALISTISCHE GGZ ZONDER VERBLIJF",null,null,null,null,null,null,null,{"$f":"CONCATENATE(\"Ontvangen en geaccepteerde declaraties t/m\",\" \",kwartaal_id,\"e Kwartaal\",\" \",jaar_id)","v":"Ontvangen en geaccepteerde declaraties t/m 4e Kwartaal 2019"}]
[null,null,null,null,null,null,null,null,null,null,null,{"$f":"CONCATENATE(\"Ontvangen en geaccepteerde declaraties t/m\",\" \",kwartaal_id,\"e Kwartaal\",\" \",jaar_id)","v":"Ontvangen en geaccepteerde declaraties t/m 4e Kwartaal 2019"}]
[null,null,null," Instellingen "]
[null,null,null," Zelfstandig gevestigden"]
[null,null,null," TOTAAL code 662",null,null,null,null,null,null,null,{"$f":"SUM(L243:L244)","v":0}]
[]
[null,null,null,"  CODE 665 - GENERALISTISCHE BASIS GGZ",null,null,null,null,null,null,null,{"$f":"CONCATENATE(\"Ontvangen en geaccepteerde declaraties t/m\",\" \",kwartaal_id,\"e Kwartaal\",\" \",jaar_id)","v":"Ontvangen en geaccepteerde declaraties t/m 4e Kwartaal 2019"}]
[null,null,null,null,null,null,null,null,null,null,null,{"$f":"CONCATENATE(\"Ontvangen en geaccepteerde declaraties t/m\",\" \",kwartaal_id,\"e Kwartaal\",\" \",jaar_id)","v":"Ontvangen en geaccepteerde declaraties t/m 4e Kwartaal 2019"}]
[null,null,null," Instellingen "]
[null,null,null," Zelfstandig gevestigden"]
[null,null,null," TOTAAL code 665",null,null,null,null,null,null,null,{"$f":"SUM(L249:L250)","v":0}]
[]
[null,null,null,"  CODE 665 - GENERALISTISCHE BASIS GGZ",null,null,null,null,null,null,null,{"$f":"CONCATENATE(\"Ontvangen en geaccepteerde declaraties t/m\",\" \",kwartaal_id,\"e Kwartaal\",\" \",jaar_id)","v":"Ontvangen en geaccepteerde declaraties t/m 4e Kwartaal 2019"}]
[null,null,null,null,null,null,null,null,null,null,null,{"$f":"CONCATENATE(\"Ontvangen en geaccepteerde declaraties t/m\",\" \",kwartaal_id,\"e Kwartaal\",\" \",jaar_id)","v":"Ontvangen en geaccepteerde declaraties t/m 4e Kwartaal 2019"}]
[null,null,null," Basis GGZ - Kort"]
[null,null,null," Basis GGZ - Middel"]
[null,null,null," Basis GGZ - Intensief "]
[null,null,null," Basis GGZ - Chronisch"]
[null,null,null," Onvolledig behandeltraject"]
[null,null,null," TOTAAL code 665",null,null,null,null,null,null,null,{"$f":"SUM(L255:L259)","v":0}]
[]
[]
[]
[]
[]
[]
[null,null,null,{"$f":"NOW()","v":"2020-01-08T11:22:50.090"},null,null,null,null,null,null,null,{"$f":"CONCATENATE(\"Specifieke informatie C, \",LOWER(A226))","v":"Specifieke informatie C, pagina 6"}]
[]
["Pagina 7",null,null,{"$f":"CONCATENATE(\"KWARTAALSTAAT ZVW \", jaar_id,\" \",kwartaal_id,\"E KWARTAAL\")","v":"KWARTAALSTAAT ZVW 2019 4E KWARTAAL"}]
[null,null,null,"SPECIFIEKE INFORMATIE C "]
[null,null,null,{"$f":"IF(naw_uzovi_zorgverzekeraar<>\"0000\",CONCATENATE(UPPER(naw_naam_zorgverzekeraar),\", \",UPPER(naw_plaats_zorgverzekeraar)),\"\")","v":""},null,null,null,null,null,null,null,{"$f":"CONCATENATE(\"UZOVI: \",naw_uzovi_zorgverzekeraar)","v":"UZOVI: 0000"}]
[null,null,null,"SPECIFICATIES VAN KOSTEN EN PRODUCTIE"]
[null,null,null,"RUBRIEK 10 GENEESKUNDIGE GEESTELIJKE GEZONDHEIDSZORG - vervolg"]
[null,null,null,"  CODE 665 - GENERALISTISCHE BASIS GGZ",null,null,null,null,null,null,null,{"$f":"CONCATENATE(\"AANTAL tot en met \",\" \",kwartaal_id,\"e Kwartaal\",\" \",jaar_id)","v":"AANTAL tot en met  4e Kwartaal 2019"}]
[null,null,null,null,null,null,null,null,null,null,null,{"$f":"CONCATENATE(\"AANTAL tot en met \",\" \",kwartaal_id,\"e Kwartaal\",\" \",jaar_id)","v":"AANTAL tot en met  4e Kwartaal 2019"}]
[null,null,null," Basis GGZ - Kort"]
[null,null,null," Basis GGZ - Middel"]
[null,null,null," Basis GGZ - Intensief "]
[null,null,null," Basis GGZ - Chronisch"]
[null,null,null," Onvolledig behandeltraject"]
[]
[null,null,null,"RUBRIEK 13 DIVERSE OVERIGE KOSTEN"]
[null,null,null,"  CODE 700 - OVERIGE KOSTEN",null,null,null,null,null,null,null,{"$f":"CONCATENATE(\"Ontvangen en geaccepteerde declaraties t/m\",\" \",kwartaal_id,\"e Kwartaal\",\" \",jaar_id)","v":"Ontvangen en geaccepteerde declaraties t/m 4e Kwartaal 2019"}]
[null,null,null,null,null,null,null,null,null,null,null,{"$f":"CONCATENATE(\"Ontvangen en geaccepteerde declaraties t/m\",\" \",kwartaal_id,\"e Kwartaal\",\" \",jaar_id)","v":"Ontvangen en geaccepteerde declaraties t/m 4e Kwartaal 2019"}]
[null,null,null," Kosten i.v.m. beleidsregel innovatie t.b.v. nieuwe zorgprestaties "]
[null,null,null," Kosten Integrale geboortezorg "]
[null,null,null," Kosten Gecombineerde Leefstijl Interventie"]
[null,null,null," TOTAAL code 700",null,null,null,null,null,null,null,{"$f":"SUM(L285:L287)","v":0}]
[]
[null,null,null," CODE 701 - OVERIGE GENEESKUNDIGE ZORG",null,null,null,null,null,null,null,{"$f":"CONCATENATE(\"Ontvangen en geaccepteerde declaraties t/m\",\" \",kwartaal_id,\"e Kwartaal\",\" \",jaar_id)","v":"Ontvangen en geaccepteerde declaraties t/m 4e Kwartaal 2019"}]
[null,null,null,null,null,null,null,null,null,null,null,{"$f":"CONCATENATE(\"Ontvangen en geaccepteerde declaraties t/m\",\" \",kwartaal_id,\"e Kwartaal\",\" \",jaar_id)","v":"Ontvangen en geaccepteerde declaraties t/m 4e Kwartaal 2019"}]
[null,null,null," Geneeskundige individuele zorg bij tuberculose en infectieziekten door GGD'en"]
[null,null,null," Huidtherapie"]
[null,null,null," Orthoptie"]
[null,null,null," Optometrie"]
[null,null,null," Kosten voetzorg bij Diabetes Mellitus type 2"]
[null,null,null," Koemelkallergietest (niet horend bij Multidisciplinaire Zorg) "]
[null,null,null," Regiefunctie complexe wondzorg"]
[null,null,null," TOTAAL code 701",null,null,null,null,null,null,null,{"$f":"SUM(L292:L298)","v":0}]
[]
[null,null,null," CODE 702 - ZINTUIGLIJK GEHANDICAPTEN",null,null,null,null,null,null,null,{"$f":"CONCATENATE(\"Ontvangen en geaccepteerde declaraties t/m\",\" \",kwartaal_id,\"e Kwartaal\",\" \",jaar_id)","v":"Ontvangen en geaccepteerde declaraties t/m 4e Kwartaal 2019"}]
[null,null,null,null,null,null,null,null,null,null,null,{"$f":"CONCATENATE(\"Ontvangen en geaccepteerde declaraties t/m\",\" \",kwartaal_id,\"e Kwartaal\",\" \",jaar_id)","v":"Ontvangen en geaccepteerde declaraties t/m 4e Kwartaal 2019"}]
[null,null,null," Kosten van zorg ivm visuele beperking"]
[null,null,null," Kosten van zorg ivm auditieve beperking"]
[null,null,null," Kosten van zorg ivm taalontwikkelingsstoornis"]
[null,null,null," TOTAAL code 702",null,null,null,null,null,null,null,{"$f":"SUM(L303:L305)","v":0}]
[]
[]
[null,null,null,{"$f":"NOW()","v":"2020-01-08T11:22:50.090"},null,null,null,null,null,null,null,{"$f":"CONCATENATE(\"Specifieke informatie C, \",LOWER(A269))","v":"Specifieke informatie C, pagina 7"}]

{"sheet":"Contractinformatie","index":8,"n_rows":92,"n_cols":11,"rows_kept":92,"cut":false,"hidden":false,"merged":[[70,3,70,10],[82,3,82,10],[77,3,77,10],[91,3,91,4],[23,3,23,9],[24,3,24,9],[31,3,31,9],[41,3,41,9],[44,3,44,4],[32,3,32,9],[28,3,28,9],[60,3,60,9],[61,3,61,9],[68,3,68,9],[65,3,65,9],[66,3,66,9],[67,3,67,9],[64,3,64,9],[71,3,71,9],[25,3,25,9],[27,3,27,9],[34,3,34,9],[35,3,35,9],[33,3,33,9],[37,3,37,9],[36,3,36,9],[57,3,57,9],[58,3,58,9],[38,3,38,9],[39,3,39,9],[42,3,42,9],[56,3,56,9],[9,3,9,9],[10,3,10,10],[12,3,12,9],[15,3,15,10],[17,3,17,9],[11,3,11,9],[13,3,13,9],[14,3,14,9],[19,3,19,9],[16,3,16,9],[18,3,18,9],[20,3,20,9],[26,3,26,9],[52,3,52,9],[53,3,53,9],[51,3,51,9],[50,3,50,9],[55,3,55,9],[54,3,54,9],[72,3,72,10],[73,3,73,9],[74,3,74,9],[75,3,75,9],[76,3,76,9],[87,3,87,9],[78,3,78,9],[79,3,79,9],[80,3,80,9],[81,3,81,9],[83,3,83,9],[84,3,84,9],[85,3,85,9],[86,3,86,9]]}
[null,null,"INVULSPECIFICATIES SPECIFIEKE INFORMATIE C"]
[]
[]
[]
[]
["Pagina 1",null,null,{"$f":"CONCATENATE(\"KWARTAALSTAAT ZVW \", jaar_id,\" \",kwartaal_id,\"E KWARTAAL\")","v":"KWARTAALSTAAT ZVW 2019 4E KWARTAAL"}]
[null,null,null,"SPECIFIEKE INFORMATIE C - CONTRACTINFORMATIE"]
[null,null,null,{"$f":"IF(naw_uzovi_zorgverzekeraar<>\"0000\",CONCATENATE(UPPER(naw_naam_zorgverzekeraar),\"\",),\"\")","v":""},null,null,null,null,null,null,{"$f":"CONCATENATE(\"UZOVI: \",naw_uzovi_zorgverzekeraar)","v":"UZOVI: 0000"}]
[null,null,null," CONTRACTINFORMATIE HUISARTSENZORG EN MULTIDISCIPLINAIRE ZORG, rubriek 01"]
[null,null,null,null,null,null,null,null,null,null,"Verwachte \nschadelast\n2020"]
[null,null,null," Huisartsenzorg, codes 503, 504, 505, 506, 507, 515"]
[null,null,null," Gecontracteerde zorg"]
[null,null,null," Lopende onderhandelingen"]
[null,null,null," Niet gecontracteerde zorg"]
[null,null,null," Subtotaal huisartsenzorg",null,null,null,null,null,null,{"$f":"SUM(K12:K14)","v":0}]
[null,null,null," Multidisciplinaire zorg, codes 510 en 516"]
[null,null,null," Gecontracteerde zorg"]
[null,null,null," Lopende onderhandelingen"]
[null,null,null," Niet gecontracteerde zorg"]
[null,null,null," Subtotaal multidisciplinaire zorg",null,null,null,null,null,null,{"$f":"SUM(K17:K19)","v":0}]
[null,null,null," TOTAAL RUBRIEK 01 ",null,null,null,null,null,null,{"$f":"SUM(K15+K20)","v":0}]
[]
[null,null,null," CONTRACTINFORMATIE VERPLEGING EN VERZORGING, rubriek 03"]
[null,null,null,null,null,null,null,null,null,null,"Verwachte \nschadelast\n2020"]
[null,null,null," Gecontracteerde zorg"]
[null,null,null," Lopende onderhandelingen"]
[null,null,null," Niet gecontracteerde zorg"]
[null,null,null," PGB"]
[null,null,null," TOTAAL RUBRIEK 03",null,null,null,null,null,null,{"$f":"SUM(K25:K28)","v":0}]
[]
[null,null,null," CONTRACTINFORMATIE MEDISCH SPECIALISTISCHE ZORG, rubriek 06"]
[null,null,null,null,null,null,null,null,null,null,"Verwachte \nschadelast\n2020"]
[null,null,null," Gecontracteerde zorg: aanneemsom"]
[null,null,null," Gecontracteerde zorg: plafond"]
[null,null,null," Gecontracteerde zorg: nacalculatie bij aanneemsommen en plafondcontracten"]
[null,null,null," Gecontracteerde zorg: open einde contract"]
[null,null,null," Subtotaal gecontracteerde zorg",null,null,null,null,null,null,{"$f":"SUM(K33:K36)","v":0}]
[null,null,null," Lopende onderhandelingen"]
[null,null,null," Niet gecontracteerde zorg"]
[null,null,null," TOTAAL RUBRIEK 06 ",null,null,null,null,null,null,{"$f":"SUM(K37:K39)","v":0}]
[]
[null,null,null,null,null,null,null,null,null,null,2020]
[null,null,null," Totaal afgesproken maximumomzet plafondcontracten"]
[]
[null,null,null,{"$f":"NOW()","v":"2020-01-08T11:22:50.090"},null,null,null,null,null,null,{"$f":"CONCATENATE(\"Specifieke informatie C - Contractinformatie, \",LOWER(A6))","v":"Specifieke informatie C - Contractinformatie, pagina 1"}]
[]
["Pagina 2",null,null,{"$f":"CONCATENATE(\"KWARTAALSTAAT ZVW \", jaar_id,\" \",kwartaal_id,\"E KWARTAAL\")","v":"KWARTAALSTAAT ZVW 2019 4E KWARTAAL"}]
[null,null,null,"SPECIFIEKE INFORMATIE C - CONTRACTINFORMATIE"]
[null,null,null,{"$f":"IF(naw_uzovi_zorgverzekeraar<>\"0000\",CONCATENATE(UPPER(naw_naam_zorgverzekeraar),\"\",),\"\")","v":""},null,null,null,null,null,null,{"$f":"CONCATENATE(\"UZOVI: \",naw_uzovi_zorgverzekeraar)","v":"UZOVI: 0000"}]
[null,null,null," CONTRACTINFORMATIE GENEESKUNDIGE GEESTELIJKE GEZONDHEIDSZORG, rubriek 10"]
[null,null,null,null,null,null,null,null,null,null,"Verwachte \nschadelast\n2020"]
[null,null,null," Gecontracteerde zorg: aanneemsom"]
[null,null,null," Gecontracteerde zorg: plafond"]
[null,null,null," Gecontracteerde zorg: nacalculatie bij aanneemsommen en plafondcontracten"]
[null,null,null," Gecontracteerde zorg: open einde contract"]
[null,null,null," Subtotaal gecontracteerde zorg",null,null,null,null,null,null,{"$f":"SUM(K52:K55)","v":0}]
[null,null,null," Lopende onderhandelingen"]
[null,null,null," Niet gecontracteerde zorg"]
[null,null,null," TOTAAL RUBRIEK 10 ",null,null,null,null,null,null,{"$f":"SUM(K56:K58)","v":0}]
[]
[null,null,null,null,null,null,null,null,null,null,2020]
[null,null,null," Totaal afgesproken maximumomzet plafondcontracten"]
[]
[null,null,null," CONTRACTINFORMATIE ZINTUIGLIJK GEHANDICAPTEN, code 702 "]
[null,null,null,null,null,null,null,null,null,null,"Lasten inclusief \nbalanspost \n2020"]
[null,null,null," Gecontracteerde zorg"]
[null,null,null," Lopende onderhandelingen"]
[null,null,null," Niet gecontracteerde zorg"]
[null,null,null," TOTAAL CODE 702",null,null,null,null,null,null,{"$f":"SUM(K66:K68)","v":0}]
[]
[null,null,null,"CONTRACTINFORMATIE GERIATRISCHE REVALIDATIE, EERSTELIJNSVERBLIJF EN GENEESKUNDIGE ZORG       SPECIFIEKE PATIENTGROEPEN, rubriek 11"]
[null,null,null,null,null,null,null,null,null,null,"Verwachte \nschadelast\n2020"]
[null,null,null," Geriatrische Revalidatie, code 670"]
[null,null,null," Gecontracteerde zorg"]
[null,null,null," Lopende onderhandelingen"]
[null,null,null," Niet gecontracteerde zorg"]
[null,null,null," Subtotaal Geriatrische Revalidatie zorg",null,null,null,null,null,null,{"$f":"SUM(K74:K76)","v":0}]
[null,null,null," Eerstelijnsverblijf, code 671"]
[null,null,null," Gecontracteerde zorg"]
[null,null,null," Lopende onderhandelingen"]
[null,null,null," Niet gecontracteerde zorg"]
[null,null,null," Subtotaal Eerstelijnsverblijf ",null,null,null,null,null,null,{"$f":"SUM(K79:K81)","v":0}]
[null,null,null," Geneeskundige Zorg Specifieke Patiëntgroepen, code 672"]
[null,null,null," Gecontracteerde zorg"]
[null,null,null," Lopende onderhandelingen"]
[null,null,null," Niet gecontracteerde zorg"]
[null,null,null," Subtotaal Geneeskundige Zorg Specifieke Patiëntgroepen",null,null,null,null,null,0,{"$f":"SUM(K83:K86)","v":0}]
[null,null,null," TOTAAL RUBRIEK 11 ",null,null,null,null,null,null,{"$f":"SUM(K77+K82+K87)","v":0}]
[]
[]
[]
[null,null,null,{"$f":"NOW()","v":"2020-01-08T11:22:50.090"},null,null,null,null,null,null,{"$f":"CONCATENATE(\"Specifieke informatie C - Contractinformatie, \",LOWER(A47))","v":"Specifieke informatie C - Contractinformatie, pagina 2"}]

{"sheet":"Wanbetalers","index":9,"n_rows":48,"n_cols":11,"rows_kept":48,"cut":false,"hidden":false,"merged":[[26,3,26,7],[47,3,47,4],[27,3,27,7],[17,3,17,7],[19,3,19,7],[20,3,20,7],[21,3,21,7],[22,3,22,7],[24,3,24,7],[25,3,25,7],[15,3,15,7],[16,3,16,7],[10,3,10,7],[11,3,11,7],[12,3,12,7],[13,3,13,7]]}
[null,null,"INVULSPECIFICATIES SPECIFIEKE INFORMATIE C"]
[]
[]
[]
[]
["Pagina 1",null,null,{"$f":"CONCATENATE(\"KWARTAALSTAAT ZVW \", jaar_id,\" \",kwartaal_id,\"E KWARTAAL\")","v":"KWARTAALSTAAT ZVW 2019 4E KWARTAAL"}]
[null,null,null,"SPECIFIEKE INFORMATIE C - WANBETALERS"]
[null,null,null,{"$f":"IF(naw_uzovi_zorgverzekeraar<>\"0000\",CONCATENATE(UPPER(naw_naam_zorgverzekeraar),\", \",UPPER(naw_plaats_zorgverzekeraar)),\"\")","v":""},null,null,null,null,null,null,{"$f":"CONCATENATE(\"UZOVI: \",naw_uzovi_zorgverzekeraar)","v":"UZOVI: 0000"}]
[]
[null,null,null,"SPECIFICATIES VAN WANBETALERS"]
[null,null,null,null,null,null,null,null,"AANTAL \nOktober","AANTAL \nNovember","AANTAL \nDecember"]
[null,null,null," Verzekeringnemers die een achterstand in de premiebetaling hebben van \n twee of meer, maar minder dan vier volle maandpremies."]
[null,null,null," Verzekeringnemers die een achterstand in de premiebetaling hebben van \n vier of meer, maar minder dan zes volle maandpremies."]
[null,null,null," Verzekeringnemers die een achterstand in de premiebetaling hebben van \n zes of meer volle maandpremies."]
[]
[null,null,null,null,null,null,null,null,"AANTAL \nOktober","AANTAL \nNovember","AANTAL \nDecember"]
[null,null,null," Verstuurde tweedemaandsbrieven"]
[null,null,null," Verstuurde vierdemaandsbrieven"]
[]
[null,null,null,null,null,null,null,null,"AANTAL \nOktober","AANTAL \nNovember","AANTAL \nDecember"]
[null,null,null," Debiteuren met een interne betalingsregeling, al dan niet uitsluitend \n voor premiebetaling."]
[null,null,null," Debiteuren met een externe betalingsregeling, al dan niet uitsluitend \n voor premiebetaling."]
[null,null,null," Actieve stabilisatieovereenkomsten voor premiebetaling."]
[]
[null,null,null,null,null,null,null,null,"AANTAL \nOktober","AANTAL \nNovember","AANTAL \nDecember"]
[null,null,null," Wanbetalers bij CAK aangemeld met een betalingsachterstand van minder \n dan € 250."]
[null,null,null," Wanbetalers bij CAK aangemeld met een betalingsachterstand van \n meer dan € 250, maar minder dan € 750."]
[null,null,null," Wanbetalers bij CAK aangemeld met een betalingsachterstand van meer \n dan € 750."]
[]
[]
[]
[]
[]
[]
[]
[]
[]
[]
[]
[]
[]
[]
[]
[]
[]
[]
[]
[null,null,null,{"$f":"NOW()","v":"2020-01-08T11:22:50.090"},null,null,null,null,null,null,{"$f":"CONCATENATE(\"Specifieke informatie C - Wanbetalers, \",LOWER(A6))","v":"Specifieke informatie C - Wanbetalers, pagina 1"}]

{"sheet":"Controleoverzicht","index":10,"n_rows":176,"n_cols":12,"rows_kept":176,"cut":false,"hidden":false,"merged":[[15,11,16,11],[15,9,16,9],[88,3,88,8],[89,3,89,8],[90,3,90,8],[91,3,91,8],[92,3,92,8],[93,3,93,8],[74,3,74,8],[71,3,71,8],[73,3,73,8],[72,3,72,8],[26,3,26,8],[23,3,23,8],[25,3,25,8],[76,3,76,8],[75,3,75,8],[40,3,40,8],[41,3,41,8],[56,3,57,8],[44,3,44,8],[46,3,46,8],[47,3,47,8],[31,3,31,8],[33,3,33,8],[38,3,38,8],[68,3,68,8],[61,3,61,8],[36,3,36,8],[34,3,34,8],[59,3,59,8],[35,3,35,8],[32,3,32,8],[42,3,42,8],[43,3,43,8],[39,3,39,8],[66,3,66,8],[64,3,64,8],[60,3,60,8],[58,3,58,8],[45,3,45,8],[62,3,62,8],[153,3,153,8],[137,3,137,8],[130,3,130,8],[134,3,135,8],[131,3,131,8],[79,10,80,10],[119,3,119,8],[117,3,117,8],[108,3,108,8],[79,3,80,8],[105,10,106,10],[129,3,129,8],[128,3,128,8],[127,3,127,8],[79,9,80,9],[81,3,81,8],[82,3,82,8],[83,3,83,8],[84,3,84,8],[95,3,95,8],[85,3,85,8],[86,3,86,8],[87,3,87,8],[94,3,94,8],[37,3,37,8],[67,3,67,8],[151,11,152,11],[151,10,152,10],[151,9,152,9],[151,3,152,8],[107,3,107,8],[105,9,106,9],[134,11,135,11],[134,9,135,9],[134,10,135,10],[138,3,138,8],[136,3,136,8],[140,3,140,8],[139,3,139,8],[96,3,96,8],[79,11,80,11],[65,3,65,8],[70,3,70,8],[63,3,63,8],[69,3,69,8],[156,3,156,8],[155,3,155,8],[154,3,154,8],[164,3,164,8],[163,3,163,8],[162,3,162,8],[161,3,161,8],[157,3,157,8],[170,3,170,11],[159,11,160,11],[159,10,160,10],[165,3,165,8],[159,9,160,9],[169,3,169,10],[159,3,160,8],[168,3,168,10],[125,11,126,11],[122,3,122,8],[105,3,106,8],[109,3,109,8],[115,11,116,11],[115,10,116,10],[115,3,116,8],[110,3,110,8],[105,11,106,11],[118,3,118,8],[125,10,126,10],[121,3,121,8],[125,9,126,9],[115,9,116,9],[125,3,126,8],[112,3,112,8],[111,3,111,8],[120,3,120,8],[56,11,57,11],[56,10,57,10],[56,9,57,9],[9,9,10,9],[9,3,10,8],[11,3,11,8],[9,11,10,11],[19,11,20,11],[19,9,20,9],[19,10,20,10],[21,3,21,8],[17,3,17,8],[19,3,20,8],[27,3,27,8],[22,3,22,8],[15,10,16,10],[15,3,16,8],[12,3,12,8],[13,3,13,8],[29,3,29,8],[30,3,30,8],[28,3,28,8],[9,10,10,10],[24,3,24,8]]}
[null,null,"CONTROLEOVERZICHT"]
[]
[]
[]
[]
["Pagina 1",null,null,{"$f":"CONCATENATE(\"KWARTAALSTAAT ZVW \", jaar_id,\" \",kwartaal_id,\"E KWARTAAL\")","v":"KWARTAALSTAAT ZVW 2019 4E KWARTAAL"}]
[null,null,null,"CONTROLEOVERZICHT"]
[null,null,null,{"$f":"IF(naw_uzovi_zorgverzekeraar<>\"0000\",CONCATENATE(UPPER(naw_naam_zorgverzekeraar),\", \",UPPER(naw_plaats_zorgverzekeraar)),\"\")","v":""},null,null,null,null,null,null,null,{"$f":"CONCATENATE(\"UZOVI: \",naw_uzovi_zorgverzekeraar)","v":"UZOVI: 0000"}]
[null,null,null,"SPECIFIEKE INFORMATIE A"]
[null,null,null," VERZEKERDENSTANDEN",null,null,null,null,null,"NOVEMBER","DECEMBER"]
[]
[null,null,null," Verzekerdenstand naar risicoklasse",null,null,null,null,null,{"$f":"'Specifieke informatie A'!L79","v":0},{"$f":"'Specifieke informatie A'!L124","v":0}]
[null,null,null," Verzekerdenstand naar nominale premie",null,null,null,null,null,{"$f":"'Specifieke informatie A'!L86","v":0},{"$f":"'Specifieke informatie A'!L131","v":0}]
[null,null,null," Verschil",null,null,null,null,null,{"$f":"IF(J12<>J13,J12-J13,\"\")","v":""},{"$f":"IF(K12<>K13,K12-K13,\"\")","v":""},{"$f":"IF(L12<>L13,L12-L13,\"\")","v":""}]
[]
[null,null,null," KOSTENSPECIFICATIES",null,null,null,null,null,"VOLGENS\nKOSTENVER- \nZAMELSTAAT","VOLGENS\nDETAIL- \nSPECIFICATIE ","VERSCHIL"]
[]
[null,null,null," Totaal kosten t.l.v. deelbijdragen (totaal lasten t/m rubriek 16)\n - inclusief balanspost",null,null,null,null,null,{"$f":"Kostenverzamelstaat!I110","v":0},{"$f":"'Specifieke informatie A'!L17","v":0},{"$f":"IF(J18<>K18,J18-K18,\"\")","v":""}]
[]
[null,null,null," KOSTENVERZAMELSTAAT",null,null,null,null,null,"Kosten balanspost 2017","Kosten balanspost 2018","Kosten balanspost 2019"]
[]
[null,null,null," 503 Bijzondere betalingen",null,null,null,null,null,{"$f":"Kostenverzamelstaat!M16-Kostenverzamelstaat!N16","v":0},{"$f":"Kostenverzamelstaat!K16-Kostenverzamelstaat!L16","v":0},{"$f":"Kostenverzamelstaat!I16-Kostenverzamelstaat!J16","v":0}]
[null,null,null," 504 Avond-, nacht- en weekenddiensten",null,null,null,null,null,{"$f":"Kostenverzamelstaat!M17-Kostenverzamelstaat!N17","v":0},{"$f":"Kostenverzamelstaat!K17-Kostenverzamelstaat!L17","v":0},{"$f":"Kostenverzamelstaat!I17-Kostenverzamelstaat!J17","v":0}]
[null,null,null," 505 Inschrijftarieven",null,null,null,null,null,{"$f":"Kostenverzamelstaat!M18-Kostenverzamelstaat!N18","v":0},{"$f":"Kostenverzamelstaat!K18-Kostenverzamelstaat!L18","v":0},{"$f":"Kostenverzamelstaat!I18-Kostenverzamelstaat!J18","v":0}]
[null,null,null," 506 Consulttarieven",null,null,null,null,null,{"$f":"Kostenverzamelstaat!M19-Kostenverzamelstaat!N19","v":0},{"$f":"Kostenverzamelstaat!K19-Kostenverzamelstaat!L19","v":0},{"$f":"Kostenverzamelstaat!I19-Kostenverzamelstaat!J19","v":0}]
[null,null,null," 507 Overige tarieven",null,null,null,null,null,{"$f":"Kostenverzamelstaat!M20-Kostenverzamelstaat!N20","v":0},{"$f":"Kostenverzamelstaat!K20-Kostenverzamelstaat!L20","v":0},{"$f":"Kostenverzamelstaat!I20-Kostenverzamelstaat!J20","v":0}]
[null,null,null," 510 Multidisciplinaire zorg",null,null,null,null,null,{"$f":"Kostenverzamelstaat!M21-Kostenverzamelstaat!N21","v":0},{"$f":"Kostenverzamelstaat!K21-Kostenverzamelstaat!L21","v":0},{"$f":"Kostenverzamelstaat!I21-Kostenverzamelstaat!J21","v":0}]
[null,null,null," 515 Resultaatbeloning en zorgvernieuwing huisartsen",null,null,null,null,null,{"$f":"Kostenverzamelstaat!M22-Kostenverzamelstaat!N22","v":0},{"$f":"Kostenverzamelstaat!K22-Kostenverzamelstaat!L22","v":0},{"$f":"Kostenverzamelstaat!I22-Kostenverzamelstaat!J22","v":0}]
[null,null,null," 516 Resultaatbeloning en zorgvernieuwing MDZ",null,null,null,null,null,{"$f":"Kostenverzamelstaat!M23-Kostenverzamelstaat!N23","v":0},{"$f":"Kostenverzamelstaat!K23-Kostenverzamelstaat!L23","v":0},{"$f":"Kostenverzamelstaat!I23-Kostenverzamelstaat!J23","v":0}]
[null,null,null," 520 Farmaceutische zorg",null,null,null,null,null,{"$f":"Kostenverzamelstaat!M26-Kostenverzamelstaat!N26","v":0},{"$f":"Kostenverzamelstaat!K26-Kostenverzamelstaat!L26","v":0},{"$f":"Kostenverzamelstaat!I26-Kostenverzamelstaat!J26","v":0}]
[null,null,null," 530 Kosten van verpleging en verzorging",null,null,null,null,null,{"$f":"Kostenverzamelstaat!M28-Kostenverzamelstaat!N28","v":0},{"$f":"Kostenverzamelstaat!K28-Kostenverzamelstaat!L28","v":0},{"$f":"Kostenverzamelstaat!I28-Kostenverzamelstaat!J28","v":0}]
[null,null,null," 545 Kosten specialisten mondziekten en kaakchirurgie",null,null,null,null,null,{"$f":"Kostenverzamelstaat!M52-Kostenverzamelstaat!N52","v":0},{"$f":"Kostenverzamelstaat!K52-Kostenverzamelstaat!L52","v":0},{"$f":"Kostenverzamelstaat!I52-Kostenverzamelstaat!J52","v":0}]
[null,null,null," 560.1 Kosten mondzorg volwassen verzekerden",null,null,null,null,null,{"$f":"Kostenverzamelstaat!M30-Kostenverzamelstaat!N30","v":0},{"$f":"Kostenverzamelstaat!K30-Kostenverzamelstaat!L30","v":0},{"$f":"Kostenverzamelstaat!I30-Kostenverzamelstaat!J30","v":0}]
[null,null,null," 560.2 Kosten mondzorg jeugdige verzekerden",null,null,null,null,null,{"$f":"Kostenverzamelstaat!M31-Kostenverzamelstaat!N31","v":0},{"$f":"Kostenverzamelstaat!K31-Kostenverzamelstaat!L31","v":0},{"$f":"Kostenverzamelstaat!I31-Kostenverzamelstaat!J31","v":0}]
[null,null,null," 561 Kosten gebitsprothesen",null,null,null,null,null,{"$f":"Kostenverzamelstaat!M32-Kostenverzamelstaat!N32","v":0},{"$f":"Kostenverzamelstaat!K32-Kostenverzamelstaat!L32","v":0},{"$f":"Kostenverzamelstaat!I32-Kostenverzamelstaat!J32","v":0}]
[null,null,null," 580 Kosten verloskundige zorg door verloskundigen",null,null,null,null,null,{"$f":"Kostenverzamelstaat!M35-Kostenverzamelstaat!N35","v":0},{"$f":"Kostenverzamelstaat!K35-Kostenverzamelstaat!L35","v":0},{"$f":"Kostenverzamelstaat!I35-Kostenverzamelstaat!J35","v":0}]
[null,null,null," 581 Kosten verloskundige zorg door huisartsen",null,null,null,null,null,{"$f":"Kostenverzamelstaat!M36-Kostenverzamelstaat!N36","v":0},{"$f":"Kostenverzamelstaat!K36-Kostenverzamelstaat!L36","v":0}]
[null,null,null," 610 Overige kosten ziekenhuiszorg en curatieve zorg",null,null,null,null,null,{"$f":"Kostenverzamelstaat!M53-Kostenverzamelstaat!N53","v":0},{"$f":"Kostenverzamelstaat!K53-Kostenverzamelstaat!L53","v":0},{"$f":"Kostenverzamelstaat!I53-Kostenverzamelstaat!J53","v":0}]
[null,null,null," 611 Overige zorgproducten",null,null,null,null,null,{"$f":"Kostenverzamelstaat!M54-Kostenverzamelstaat!N54","v":0},{"$f":"Kostenverzamelstaat!K54-Kostenverzamelstaat!L54","v":0},{"$f":"Kostenverzamelstaat!I54-Kostenverzamelstaat!J54","v":0}]
[null,null,null," 612 Kosten add-ons ",null,null,null,null,null,{"$f":"Kostenverzamelstaat!M55-Kostenverzamelstaat!N55","v":0},{"$f":"Kostenverzamelstaat!K55-Kostenverzamelstaat!L55","v":0}]
[null,null,null," 612.1 Kosten add-ons - Dure geneesmiddelen",null,null,null,null,null,null,null,{"$f":"Kostenverzamelstaat!I56-Kostenverzamelstaat!J56","v":0}]
[null,null,null," 612.2 Kosten add-ons - IC",null,null,null,null,null,null,null,{"$f":"Kostenverzamelstaat!I57-Kostenverzamelstaat!J57","v":0}]
[null,null,null," 613.1 Integrale kosten van DBC-zorgproduct gereguleerde segment ",null,null,null,null,null,{"$f":"Kostenverzamelstaat!M58-Kostenverzamelstaat!N58","v":0},{"$f":"Kostenverzamelstaat!K58-Kostenverzamelstaat!L58","v":0},{"$f":"Kostenverzamelstaat!I58-Kostenverzamelstaat!J58","v":0}]
[null,null,null," 615.1 Integrale kosten van DBC-zorgproduct vrije segment",null,null,null,null,null,{"$f":"Kostenverzamelstaat!M59-Kostenverzamelstaat!N59","v":0},{"$f":"Kostenverzamelstaat!K59-Kostenverzamelstaat!L59","v":0},{"$f":"Kostenverzamelstaat!I59-Kostenverzamelstaat!J59","v":0}]
[null,null,null," 619 Integrale kosten extramuraal werkende specialisten",null,null,null,null,null,{"$f":"Kostenverzamelstaat!M60-Kostenverzamelstaat!N60","v":0},{"$f":"Kostenverzamelstaat!K60-Kostenverzamelstaat!L60","v":0},{"$f":"Kostenverzamelstaat!I60-Kostenverzamelstaat!J60","v":0}]
[null,null,null," 620 Kosten fysiotherapie",null,null,null,null,null,{"$f":"Kostenverzamelstaat!M63-Kostenverzamelstaat!N63","v":0},{"$f":"Kostenverzamelstaat!K63-Kostenverzamelstaat!L63","v":0},{"$f":"Kostenverzamelstaat!I63-Kostenverzamelstaat!J63","v":0}]
[null,null,null," 621 Kosten oefentherapie Mensendieck/Cesar",null,null,null,null,null,{"$f":"Kostenverzamelstaat!M64-Kostenverzamelstaat!N64","v":0},{"$f":"Kostenverzamelstaat!K64-Kostenverzamelstaat!L64","v":0},{"$f":"Kostenverzamelstaat!I64-Kostenverzamelstaat!J64","v":0}]
[null,null,null," 623 Kosten logopedie",null,null,null,null,null,{"$f":"Kostenverzamelstaat!M65-Kostenverzamelstaat!N65","v":0},{"$f":"Kostenverzamelstaat!K65-Kostenverzamelstaat!L65","v":0},{"$f":"Kostenverzamelstaat!I65-Kostenverzamelstaat!J65","v":0}]
[]
[]
[null,null,null,{"$f":"NOW()","v":"2020-01-08T11:22:50.090"},null,null,null,null,null,null,null,{"$f":"CONCATENATE(\"Controleoverzicht \",LOWER(A6))","v":"Controleoverzicht pagina 1"}]
[]
["Pagina 2",null,null,{"$f":"CONCATENATE(\"KWARTAALSTAAT ZVW \", jaar_id,\" \",kwartaal_id,\"E KWARTAAL\")","v":"KWARTAALSTAAT ZVW 2019 4E KWARTAAL"}]
[null,null,null,"CONTROLEOVERZICHT"]
[null,null,null,{"$f":"IF(naw_uzovi_zorgverzekeraar<>\"0000\",CONCATENATE(UPPER(naw_naam_zorgverzekeraar),\", \",UPPER(naw_plaats_zorgverzekeraar)),\"\")","v":""},null,null,null,null,null,null,null,{"$f":"CONCATENATE(\"UZOVI: \",naw_uzovi_zorgverzekeraar)","v":"UZOVI: 0000"}]
[null,null,null,"SPECIFIEKE INFORMATIE A - vervolg"]
[null,null,null," KOSTENVERZAMELSTAAT",null,null,null,null,null,"Kosten balanspost 2017","Kosten balanspost 2018","Kosten balanspost 2019"]
[]
[null,null,null," 624 Kosten ergotherapie",null,null,null,null,null,{"$f":"Kostenverzamelstaat!M66-Kostenverzamelstaat!N66","v":0},{"$f":"Kostenverzamelstaat!K66-Kostenverzamelstaat!L66","v":0},{"$f":"Kostenverzamelstaat!I66-Kostenverzamelstaat!J66","v":0}]
[null,null,null," 625 Kosten dieetadvisering ",null,null,null,null,null,{"$f":"Kostenverzamelstaat!M67-Kostenverzamelstaat!N67","v":0},{"$f":"Kostenverzamelstaat!K67-Kostenverzamelstaat!L67","v":0},{"$f":"Kostenverzamelstaat!I67-Kostenverzamelstaat!J67","v":0}]
[null,null,null," 640 Hulpmiddelenzorg",null,null,null,null,null,{"$f":"Kostenverzamelstaat!M70-Kostenverzamelstaat!N70","v":0},{"$f":"Kostenverzamelstaat!K70-Kostenverzamelstaat!L70","v":0},{"$f":"Kostenverzamelstaat!I70-Kostenverzamelstaat!J70","v":0}]
[null,null,null," 650 Kosten vervoer per ambulance/helikopter",null,null,null,null,null,{"$f":"Kostenverzamelstaat!M72-Kostenverzamelstaat!N72","v":0},{"$f":"Kostenverzamelstaat!K72-Kostenverzamelstaat!L72","v":0},{"$f":"Kostenverzamelstaat!I72-Kostenverzamelstaat!J72","v":0}]
[null,null,null," 650.1  Opbrengstenverrekeningen regionale ambulancevoorzieningen",null,null,null,null,null,{"$f":"Kostenverzamelstaat!M73-Kostenverzamelstaat!N73","v":0},{"$f":"Kostenverzamelstaat!K73-Kostenverzamelstaat!L73","v":0},{"$f":"Kostenverzamelstaat!I73-Kostenverzamelstaat!J73","v":0}]
[null,null,null," 651 Kosten vervoer per openbaar vervoer, taxi en eigen auto",null,null,null,null,null,{"$f":"Kostenverzamelstaat!M74-Kostenverzamelstaat!N74","v":0},{"$f":"Kostenverzamelstaat!K74-Kostenverzamelstaat!L74","v":0},{"$f":"Kostenverzamelstaat!I74-Kostenverzamelstaat!J74","v":0}]
[null,null,null," 661 Kosten specialistische GGZ met verblijf",null,null,null,null,null,{"$f":"Kostenverzamelstaat!M88-Kostenverzamelstaat!N88","v":0},{"$f":"Kostenverzamelstaat!K88-Kostenverzamelstaat!L88","v":0},{"$f":"Kostenverzamelstaat!I88-Kostenverzamelstaat!J88","v":0}]
[null,null,null," 661.1 Kosten LGGZ (langdurige GGZ, jaar 2 en 3)",null,null,null,null,null,{"$f":"Kostenverzamelstaat!M89-Kostenverzamelstaat!N89","v":0},{"$f":"Kostenverzamelstaat!K89-Kostenverzamelstaat!L89","v":0},{"$f":"Kostenverzamelstaat!I89-Kostenverzamelstaat!J89","v":0}]
[null,null,null," 662 Kosten specialistische GGZ zonder verblijf",null,null,null,null,null,{"$f":"Kostenverzamelstaat!M90-Kostenverzamelstaat!N90","v":0},{"$f":"Kostenverzamelstaat!K90-Kostenverzamelstaat!L90","v":0},{"$f":"Kostenverzamelstaat!I90-Kostenverzamelstaat!J90","v":0}]
[null,null,null," 665 Generalistische basis GGZ",null,null,null,null,null,{"$f":"Kostenverzamelstaat!M91-Kostenverzamelstaat!N91","v":0},{"$f":"Kostenverzamelstaat!K91-Kostenverzamelstaat!L91","v":0},{"$f":"Kostenverzamelstaat!I91-Kostenverzamelstaat!J91","v":0}]
[null,null,null," 670 Geriatrische revalidatiezorg",null,null,null,null,null,{"$f":"Kostenverzamelstaat!M94-Kostenverzamelstaat!N94","v":0},{"$f":"Kostenverzamelstaat!K94-Kostenverzamelstaat!L94","v":0},{"$f":"Kostenverzamelstaat!I94-Kostenverzamelstaat!J94","v":0}]
[null,null,null," 671  Eerstelijnsverblijf",null,null,null,null,null,null,{"$f":"Kostenverzamelstaat!K95-Kostenverzamelstaat!L95","v":0},{"$f":"Kostenverzamelstaat!I95-Kostenverzamelstaat!J95","v":0}]
[null,null,null," 680 Kraamzorg",null,null,null,null,null,{"$f":"Kostenverzamelstaat!M98-Kostenverzamelstaat!N98","v":0},{"$f":"Kostenverzamelstaat!K98-Kostenverzamelstaat!L98","v":0},{"$f":"Kostenverzamelstaat!I98-Kostenverzamelstaat!J98","v":0}]
[null,null,null," 700 Overige kosten",null,null,null,null,null,{"$f":"Kostenverzamelstaat!M100-Kostenverzamelstaat!N100","v":0},{"$f":"Kostenverzamelstaat!K100-Kostenverzamelstaat!L100","v":0},{"$f":"Kostenverzamelstaat!I100-Kostenverzamelstaat!J100","v":0}]
[null,null,null," 701 Overige geneeskundige zorg",null,null,null,null,null,{"$f":"Kostenverzamelstaat!M101-Kostenverzamelstaat!N101","v":0},{"$f":"Kostenverzamelstaat!K101-Kostenverzamelstaat!L101","v":0},{"$f":"Kostenverzamelstaat!I101-Kostenverzamelstaat!J101","v":0}]
[null,null,null," 702 Kosten van zorg zintuiglijk gehandicapten ",null,null,null,null,null,{"$f":"Kostenverzamelstaat!M102-Kostenverzamelstaat!N102","v":0},{"$f":"Kostenverzamelstaat!K102-Kostenverzamelstaat!L102","v":0},{"$f":"Kostenverzamelstaat!I102-Kostenverzamelstaat!J102","v":0}]
[null,null,null," 720 Grensoverschrijdende zorg",null,null,null,null,null,{"$f":"Kostenverzamelstaat!M105-Kostenverzamelstaat!N105","v":0},{"$f":"Kostenverzamelstaat!K105-Kostenverzamelstaat!L105","v":0},{"$f":"Kostenverzamelstaat!I105-Kostenverzamelstaat!J105","v":0}]
[null,null,null," 721 Kosten via verbindingsorgaan",null,null,null,null,null,{"$f":"Kostenverzamelstaat!M106-Kostenverzamelstaat!N106","v":0},{"$f":"Kostenverzamelstaat!K106-Kostenverzamelstaat!L106","v":0},{"$f":"Kostenverzamelstaat!I106-Kostenverzamelstaat!J106","v":0}]
[null,null,null," 730 Kwaliteitsgelden",null,null,null,null,null,{"$f":"Kostenverzamelstaat!M109-Kostenverzamelstaat!N109","v":0},{"$f":"Kostenverzamelstaat!K109-Kostenverzamelstaat!L109","v":0},{"$f":"Kostenverzamelstaat!I109-Kostenverzamelstaat!J109","v":0}]
[]
[null,null,null,"VERGELIJKING SPECIFIEKE INFORMATIE A EN C"]
[null,null,null,"KOSTEN PER CODENUMMER\n(ONTVANGEN EN GEACCEPTEERDE DECLARATIES \nT/M 4E KWARTAAL 2019)",null,null,null,null,null,"Spec. inform. A\nkostenver-\nzamelstaat","Spec. inform. C\ndetail-\ninformatie","VERSCHIL"]
[]
[null,null,null," 503 Bijzondere betalingen",null,null,null,null,null,{"$f":"Kostenverzamelstaat!J16","v":0},{"$f":"'Specifieke informatie C'!L16","v":0},{"$f":"J82-K82","v":0}]
[null,null,null," 506 Consulttarieven",null,null,null,null,null,{"$f":"Kostenverzamelstaat!J19","v":0},{"$f":"'Specifieke informatie C'!L27","v":0},0]
[null,null,null," 507 Overige tarieven",null,null,null,null,null,{"$f":"Kostenverzamelstaat!J20","v":0},{"$f":"'Specifieke informatie C'!L36","v":0},0]
[null,null,null," 510 Multidisciplinaire zorg",null,null,null,null,null,{"$f":"Kostenverzamelstaat!J21","v":0},{"$f":"'Specifieke informatie C'!L44","v":0},0]
[null,null,null," 515 Resultaatbeloning en zorgvernieuwing huisartsen",null,null,null,null,null,{"$f":"Kostenverzamelstaat!J22","v":0},{"$f":"'Specifieke informatie C'!L57","v":0},0]
[null,null,null," 516 Resultaatbeloning en zorgvernieuwing MDZ",null,null,null,null,null,{"$f":"Kostenverzamelstaat!J23","v":0},{"$f":"'Specifieke informatie C'!L63","v":0},0]
[null,null,null," 530 Kosten van verpleging en verzorging",null,null,null,null,null,{"$f":"Kostenverzamelstaat!J28","v":0},{"$f":"'Specifieke informatie C'!L75","v":0},0]
[null,null,null," 560.1 Mondzorg volwassen verzekerden",null,null,null,null,null,{"$f":"Kostenverzamelstaat!J30","v":0},{"$f":"'Specifieke informatie C'!L103","v":0},0]
[null,null,null," 560.2 Mondzorg jeugdige verzekerden",null,null,null,null,null,{"$f":"Kostenverzamelstaat!J31","v":0},{"$f":"'Specifieke informatie C'!L126","v":0},0]
[null,null,null," 561 Gebitsprothesen",null,null,null,null,null,{"$f":"Kostenverzamelstaat!J32","v":0},{"$f":"'Specifieke informatie C'!L146","v":0},0]
[null,null,null," 610 Overige kosten ziekenhuiszorg en curatieve zorg",null,null,null,null,null,{"$f":"Kostenverzamelstaat!J53","v":0},{"$f":"'Specifieke informatie C'!H162","v":0},{"$f":"J92-K92","v":0}]
[null,null,null," 611 Overige zorgproducten (naar instelling)",null,null,null,null,null,{"$f":"Kostenverzamelstaat!J54","v":0},{"$f":"'Specifieke informatie C'!H172","v":0},0]
[null,null,null," 612.1 Kosten add-ons - Dure geneesmiddelen ",null,null,null,null,null,{"$f":"Kostenverzamelstaat!J56","v":0},{"$f":"'Specifieke informatie C'!H194","v":0},0]
[null,null,null," 612.2 Kosten add-ons - IC",null,null,null,null,null,{"$f":"Kostenverzamelstaat!J57","v":0},{"$f":"'Specifieke informatie C'!H203","v":0},0]
[null,null,null," 613.1 Integrale kosten DBC-zorgproduct gereguleerd segment",null,null,null,null,null,{"$f":"Kostenverzamelstaat!J58","v":0},{"$f":"'Specifieke informatie C'!H213","v":0},0]
[null,null,null," 615.1 Integrale kosten DBC-zorgproduct vrije segment",null,null,null,null,null,{"$f":"Kostenverzamelstaat!J59","v":0},{"$f":"'Specifieke informatie C'!H238","v":0},0]
[null,null,null,{"$f":"NOW()","v":"2020-01-08T11:22:50.090"},null,null,null,null,null,null,null,{"$f":"CONCATENATE(\"Controleoverzicht \",LOWER(A53))","v":"Controleoverzicht pagina 2"}]
[]
["Pagina 3",null,null,{"$f":"CONCATENATE(\"KWARTAALSTAAT ZVW \", jaar_id,\" \",kwartaal_id,\"E KWARTAAL\")","v":"KWARTAALSTAAT ZVW 2019 4E KWARTAAL"}]
[null,null,null,"CONTROLEOVERZICHT"]
[null,null,null,{"$f":"IF(naw_uzovi_zorgverzekeraar<>\"0000\",CONCATENATE(UPPER(naw_naam_zorgverzekeraar),\", \",UPPER(naw_plaats_zorgverzekeraar)),\"\")","v":""},null,null,null,null,null,null,null,{"$f":"CONCATENATE(\"UZOVI: \",naw_uzovi_zorgverzekeraar)","v":"UZOVI: 0000"}]
[]
[]
[null,null,null,"VERGELIJKING SPECIFIEKE INFORMATIE A EN C - vervolg"]
[null,null,null,"KOSTEN PER CODENUMMER \n(ONTVANGEN EN GEACCEPTEERDE DECLARATIES \n T/M 4E KWARTAAL 2019)",null,null,null,null,null,"Spec. inform. A\nkostenver-\nzamelstaat","Spec. inform. C\ndetail-\ninformatie","VERSCHIL"]
[]
[null,null,null," 662 GGZ zonder verblijf ",null,null,null,null,null,{"$f":"Kostenverzamelstaat!J90","v":0},{"$f":"'Specifieke informatie C'!L245","v":0},{"$f":"J108-K108","v":0}]
[null,null,null," 665 Generalistische basis GGZ (naar instelling)",null,null,null,null,null,{"$f":"Kostenverzamelstaat!J91","v":0},{"$f":"'Specifieke informatie C'!L251","v":0},{"$f":"J109-K109","v":0}]
[null,null,null," 665 Generalistische basis GGZ",null,null,null,null,null,{"$f":"Kostenverzamelstaat!J91","v":0},{"$f":"'Specifieke informatie C'!L260","v":0},{"$f":"J110-K110","v":0}]
[null,null,null," 700 Overige kosten",null,null,null,null,null,{"$f":"Kostenverzamelstaat!J100","v":0},{"$f":"'Specifieke informatie C'!L288","v":0},{"$f":"J111-K111","v":0}]
[null,null,null," 701 Overige geneeskundige zorg",null,null,null,null,null,{"$f":"Kostenverzamelstaat!J101","v":0},{"$f":"'Specifieke informatie C'!L299","v":0},0]
[null,null,null," 702 Kosten van zorg zintuiglijk gehandicapten ",null,null,null,null,null,{"$f":"Kostenverzamelstaat!J102","v":0},{"$f":"'Specifieke informatie C'!L306","v":0},0]
[]
[]
[null,null,null," KOSTEN PER CODENUMMER (KOSTEN INCLUSIEF BALANSPOST) 2019",null,null,null,null,null,"Spec. inform. A\nkostenver-\nzamelstaat","Spec. inform. C\ndetail-\ninformatie","VERSCHIL"]
[]
[null,null,null," 610 Overige kosten ziekenhuiszorg en curatieve zorg",null,null,null,null,null,{"$f":"Kostenverzamelstaat!I53","v":0},{"$f":"'Specifieke informatie C'!G162","v":0},{"$f":"J118-K118","v":0}]
[null,null,null," 611 Overige zorgproducten (naar instelling)",null,null,null,null,null,{"$f":"Kostenverzamelstaat!I54","v":0},{"$f":"'Specifieke informatie C'!G172","v":0},0]
[null,null,null," 612.1 Kosten add-ons - Dure geneesmiddelen ",null,null,null,null,null,{"$f":"Kostenverzamelstaat!I56","v":0},{"$f":"'Specifieke informatie C'!G194","v":0},0]
[null,null,null," 612.2 Kosten add-ons - IC",null,null,null,null,null,{"$f":"Kostenverzamelstaat!I57","v":0},{"$f":"'Specifieke informatie C'!G203","v":0},0]
[null,null,null," 613.1 Integrale kosten DBC-zorgproduct gereguleerd segment",null,null,null,null,null,{"$f":"Kostenverzamelstaat!I58","v":0},{"$f":"'Specifieke informatie C'!G213","v":0},0]
[null,null,null," 615.1 Integrale kosten DBC-zorgproduct vrije segment",null,null,null,null,null,{"$f":"Kostenverzamelstaat!I59","v":0},{"$f":"'Specifieke informatie C'!G238","v":0},0]
[]
[]
[null,null,null," KOSTEN PER CODENUMMER (KOSTEN INCLUSIEF BALANSPOST) 2018",null,null,null,null,null,"Spec. inform. A\nkostenver-\nzamelstaat","Spec. inform. C\ndetail-\ninformatie","VERSCHIL"]
[]
[null,null,null," 610 Overige kosten ziekenhuiszorg en curatieve zorg",null,null,null,null,null,{"$f":"Kostenverzamelstaat!K53","v":0},{"$f":"'Specifieke informatie C'!I162","v":0},{"$f":"J128-K128","v":0}]
[null,null,null," 611 Overige zorgproducten (naar instelling)",null,null,null,null,null,{"$f":"Kostenverzamelstaat!K54","v":0},{"$f":"'Specifieke informatie C'!I172","v":0},{"$f":"J129-K129","v":0}]
[null,null,null," 612 Kosten add-on's ",null,null,null,null,null,{"$f":"Kostenverzamelstaat!K55","v":0},{"$f":"'Specifieke informatie C'!I204","v":0},{"$f":"J130-K130","v":0}]
[null,null,null," 613.1 Integrale kosten DBC-zorgproduct gereguleerd segment",null,null,null,null,null,{"$f":"Kostenverzamelstaat!K58","v":0},{"$f":"'Specifieke informatie C'!I213","v":0},{"$f":"J131-K131","v":0}]
[null,null,null," 615.1 Integrale kosten DBC-zorgproduct vrije segment",null,null,null,null,null,{"$f":"Kostenverzamelstaat!K59","v":0},{"$f":"'Specifieke informatie C'!I238","v":0},{"$f":"J132-K132","v":0}]
[]
[]
[null,null,null," KOSTEN PER CODENUMMER \n (ONTVANGEN EN GEACCEPTEERDE DECLARATIES) M.B.T. 2018",null,null,null,null,null,"Spec. inform. A\nkostenver-\nzamelstaat","Spec. inform. C\ndetail-\ninformatie","VERSCHIL"]
[]
[null,null,null," 610 Overige kosten ziekenhuiszorg en curatieve zorg",null,null,null,null,null,{"$f":"Kostenverzamelstaat!L53","v":0},{"$f":"'Specifieke informatie C'!J162","v":0},{"$f":"J137-K137","v":0}]
[null,null,null," 611 Overige zorgproducten (naar instelling)",null,null,null,null,null,{"$f":"Kostenverzamelstaat!L54","v":0},{"$f":"'Specifieke informatie C'!J172","v":0},{"$f":"J138-K138","v":0}]
[null,null,null," 612 Kosten add-on's ",null,null,null,null,null,{"$f":"Kostenverzamelstaat!L55","v":0},{"$f":"'Specifieke informatie C'!J204","v":0},{"$f":"J139-K139","v":0}]
[null,null,null," 613.1 Integrale kosten DBC-zorgproduct gereguleerd segment",null,null,null,null,null,{"$f":"Kostenverzamelstaat!L58","v":0},{"$f":"'Specifieke informatie C'!J213","v":0},{"$f":"J140-K140","v":0}]
[null,null,null," 615.1 Integrale kosten DBC-zorgproduct vrije segment",null,null,null,null,null,{"$f":"Kostenverzamelstaat!L59","v":0},{"$f":"'Specifieke informatie C'!J238","v":0},{"$f":"J141-K141","v":0}]
[]
[]
[null,null,null,{"$f":"NOW()","v":"2020-01-08T11:22:50.090"},null,null,null,null,null,null,null,{"$f":"CONCATENATE(\"Controleoverzicht \",LOWER(A100))","v":"Controleoverzicht pagina 3"}]
[]
["Pagina 4",null,null,{"$f":"CONCATENATE(\"KWARTAALSTAAT ZVW \", jaar_id,\" \",kwartaal_id,\"E KWARTAAL\")","v":"KWARTAALSTAAT ZVW 2019 4E KWARTAAL"}]
[null,null,null,"CONTROLEOVERZICHT"]
[null,null,null,{"$f":"IF(naw_uzovi_zorgverzekeraar<>\"0000\",CONCATENATE(UPPER(naw_naam_zorgverzekeraar),\", \",UPPER(naw_plaats_zorgverzekeraar)),\"\")","v":""},null,null,null,null,null,null,null,{"$f":"CONCATENATE(\"UZOVI: \",naw_uzovi_zorgverzekeraar)","v":"UZOVI: 0000"}]
[]
[]
[null,null,null,"VERGELIJKING SPECIFIEKE INFORMATIE A EN C - vervolg"]
[null,null,null," KOSTEN PER CODENUMMER \n (KOSTEN INCLUSIEF BALANSPOST) 2017 EN OUDER",null,null,null,null,null,"Spec. inform. A\nkostenver-\nzamelstaat","Spec. inform. C\ndetail-\ninformatie","VERSCHIL"]
[]
[null,null,null," 610 Overige kosten ziekenhuiszorg en curatieve zorg",null,null,null,null,null,{"$f":"Kostenverzamelstaat!M53","v":0},{"$f":"'Specifieke informatie C'!K162","v":0},{"$f":"J154-K154","v":0}]
[null,null,null," 611 Overige zorgproducten (naar instelling)",null,null,null,null,null,{"$f":"Kostenverzamelstaat!M54","v":0},{"$f":"'Specifieke informatie C'!K172","v":0},0]
[null,null,null," 612 Kosten add-on's ",null,null,null,null,null,{"$f":"Kostenverzamelstaat!M55","v":0},{"$f":"'Specifieke informatie C'!K204","v":0},0]
[null,null,null," 613.1 Integrale kosten DBC-zorgproduct gereguleerd segment",null,null,null,null,null,{"$f":"Kostenverzamelstaat!M58","v":0},{"$f":"'Specifieke informatie C'!K213","v":0},0]
[null,null,null," 615.1 Integrale kosten DBC-zorgproduct vrije segment",null,null,null,null,null,{"$f":"Kostenverzamelstaat!M59","v":0},{"$f":"'Specifieke informatie C'!K238","v":0},0]
[]
[null,null,null,"KOSTEN PER CODENUMMER \n(ONTVANGEN EN GEACCEPTEERDE DECLARATIES \n M.B.T. 2017 EN OUDER)",null,null,null,null,null,"Spec. inform. A\nkostenver-\nzamelstaat","Spec. inform. C\ndetail-\ninformatie","VERSCHIL"]
[]
[null,null,null," 610 Overige kosten ziekenhuiszorg en curatieve zorg",null,null,null,null,null,{"$f":"Kostenverzamelstaat!N53","v":0},{"$f":"'Specifieke informatie C'!L162","v":0},{"$f":"J162-K162","v":0}]
[null,null,null," 611 Overige zorgproducten (naar instelling)",null,null,null,null,null,{"$f":"Kostenverzamelstaat!N54","v":0},{"$f":"'Specifieke informatie C'!L172","v":0},{"$f":"J163-K163","v":0}]
[null,null,null," 612 Kosten add-on's ",null,null,null,null,null,{"$f":"Kostenverzamelstaat!N55","v":0},{"$f":"'Specifieke informatie C'!L204","v":0},{"$f":"J164-K164","v":0}]
[null,null,null," 613.1 Integrale kosten DBC-zorgproduct gereguleerd segment",null,null,null,null,null,{"$f":"Kostenverzamelstaat!N58","v":0},{"$f":"'Specifieke informatie C'!L213","v":0},{"$f":"J165-K165","v":0}]
[null,null,null," 615.1 Integrale kosten DBC-zorgproduct vrije segment",null,null,null,null,null,{"$f":"Kostenverzamelstaat!N59","v":0},{"$f":"'Specifieke informatie C'!L238","v":0},{"$f":"J166-K166","v":0}]
[]
[]
[null,null,null," Controle code 505 kostenverzamelstaat",null,null,null,null,null,null,null,{"$f":"Kostenverzamelstaat!I18","v":0}]
[null,null,null," Kosten per verzekerde o.b.v. laatst bekende verzekerdenstand (in hele euro's)",null,null,null,null,null,null,null,{"$f":"IF(L169<>0,(L169/L12),0)","v":0}]
[null,null,null,{"$f":"IF(OR(L170>kwartaal_id*112),\"Attentiebericht: Kosten per verzekerde liggen buiten het verwachte bereik. Controleer de kostenverzamelstaat!\",\"\")","v":""}]
[]
[]
[]
[]
[null,null,null,{"$f":"NOW()","v":"2020-01-08T11:22:50.090"},null,null,null,null,null,null,null,{"$f":"CONCATENATE(\"Controleoverzicht \",LOWER(A146))","v":"Controleoverzicht pagina 4"}]

{"sheet":"Datablad","index":11,"n_rows":967,"n_cols":12,"rows_kept":967,"cut":false,"hidden":true,"merged":[]}
[]
[]
[]
[]
[]
[]
[]
[]
[]
[]
[]
[null,null,null,null,"vcd_spec_idvar","vcd_waarde_flt","vcd_waarde_txt","vcd_toelichting_txt","vcd_spec1_idvar","vcd_spec2_idvar","vcd_spec3_idvar","vcd_attrib_idvar"]
[null,null,null,null,"xstaat_kdrwet_id_","*=0","ZVQ4","Excel numeriek om te zetten sleutel kdrwet via waarden","xstaat","kdrwet","id",""]
[null,null,null,null,"xstaat_kdrwet_idjmd_","*=0","20191231","Excel numeriek om te zetten sleutel kdrwet periode","xstaat","kdrwet","idjmd",""]
[null,null,null,null,"xstaat_uzovi_filename_","*=0","*=CEL(\"bestandsnaam\")","Excel numeriek filenaam bevat ook sleutels","xstaat","uzovi","filename",""]
[null,null,null,null,"xstaat_uzovi_id_","*=0","*=NUMERIEKE.WAARDE(NAW_gegevens!$C$6)","Excel numeriek om te zetten sleutel uzovi","xstaat","uzovi","id",""]
[null,null,null,null,"xstaat_uzovi_idvrs_","*=0","01","Excel numeriek om te zetten sleutel uzovi versie levering","xstaat","uzovi","idvrs",""]
[null,null,null,null,"zvkx_a__TY0V01","*=Kostenverzamelstaat!$J$110","","-Rtot- - geaccepteerd","zvkx","a","","TY0V01"]
[null,null,null,null,"zvkx_a__TY1V01","*=Kostenverzamelstaat!$L$110","","-Rtot- - geaccepteerd","zvkx","a","","TY1V01"]
[null,null,null,null,"zvkx_a__TY2V01","*=Kostenverzamelstaat!$N$110","","-Rtot- - geaccepteerd","zvkx","a","","TY2V01"]
[null,null,null,null,"zvkx_c__TY0V01","*=Kostenverzamelstaat!$I$110","","-Rtot- - incl balans","zvkx","c","","TY0V01"]
[null,null,null,null,"zvkx_c__TY1V01","*=Kostenverzamelstaat!$K$110","","-Rtot- - incl balans","zvkx","c","","TY1V01"]
[null,null,null,null,"zvkx_c__TY2V01","*=Kostenverzamelstaat!$M$110","","-Rtot- - incl balans","zvkx","c","","TY2V01"]
[null,null,null,null,"zvkx01_a__TY0V01","*=Kostenverzamelstaat!$J$24","","Huisartsenzorg -Rtot- - geaccepteerd","zvkx01","a","","TY0V01"]
[null,null,null,null,"zvkx01_a__TY1V01","*=Kostenverzamelstaat!$L$24","","Huisartsenzorg -Rtot- - geaccepteerd","zvkx01","a","","TY1V01"]
[null,null,null,null,"zvkx01_a__TY2V01","*=Kostenverzamelstaat!$N$24","","Huisartsenzorg -Rtot- - geaccepteerd","zvkx01","a","","TY2V01"]
[null,null,null,null,"zvkx01_a503__TY0V01","*=Kostenverzamelstaat!$J$16","","Huisartsen- bijz betalingen- geaccepteerd","zvkx01","a503","","TY0V01"]
[null,null,null,null,"zvkx01_a503__TY1V01","*=Kostenverzamelstaat!$L$16","","Huisartsen- bijz betalingen- geaccepteerd","zvkx01","a503","","TY1V01"]
[null,null,null,null,"zvkx01_a503__TY2V01","*=Kostenverzamelstaat!$N$16","","Huisartsen- bijz betalingen- geaccepteerd","zvkx01","a503","","TY2V01"]
[null,null,null,null,"zvkx01_a504__TY0V01","*=Kostenverzamelstaat!$J$17","","Huisartsen- bijz diensttijden- geaccepteerd","zvkx01","a504","","TY0V01"]
[null,null,null,null,"zvkx01_a504__TY1V01","*=Kostenverzamelstaat!$L$17","","Huisartsen- bijz diensttijden- geaccepteerd","zvkx01","a504","","TY1V01"]
[null,null,null,null,"zvkx01_a504__TY2V01","*=Kostenverzamelstaat!$N$17","","Huisartsen- bijz diensttijden- geaccepteerd","zvkx01","a504","","TY2V01"]
[null,null,null,null,"zvkx01_a505__TY0V01","*=Kostenverzamelstaat!$J$18","","Huisartsen- Inschrijvingen- geaccepteerd","zvkx01","a505","","TY0V01"]
[null,null,null,null,"zvkx01_a505__TY1V01","*=Kostenverzamelstaat!$L$18","","Huisartsen- Inschrijvingen- geaccepteerd","zvkx01","a505","","TY1V01"]
[null,null,null,null,"zvkx01_a505__TY2V01","*=Kostenverzamelstaat!$N$18","","Huisartsen- Inschrijvingen- geaccepteerd","zvkx01","a505","","TY2V01"]
[null,null,null,null,"zvkx01_a506__TY0V01","*=Kostenverzamelstaat!$J$19","","Huisartsen- Consult- geaccepteerd","zvkx01","a506","","TY0V01"]
[null,null,null,null,"zvkx01_a506__TY1V01","*=Kostenverzamelstaat!$L$19","","Huisartsen- Consult- geaccepteerd","zvkx01","a506","","TY1V01"]
[null,null,null,null,"zvkx01_a506__TY2V01","*=Kostenverzamelstaat!$N$19","","Huisartsen- Consult- geaccepteerd","zvkx01","a506","","TY2V01"]
[null,null,null,null,"zvkx01_a507__TY0V01","*=Kostenverzamelstaat!$J$20","","Huisartsen- Overige- geaccepteerd","zvkx01","a507","","TY0V01"]
[null,null,null,null,"zvkx01_a507__TY1V01","*=Kostenverzamelstaat!$L$20","","Huisartsen- Overige- geaccepteerd","zvkx01","a507","","TY1V01"]
[null,null,null,null,"zvkx01_a507__TY2V01","*=Kostenverzamelstaat!$N$20","","Huisartsen- Overige- geaccepteerd","zvkx01","a507","","TY2V01"]
[null,null,null,null,"zvkx01_a510__TY0V01","*=Kostenverzamelstaat!$J$21","","Huisartsen- MDZ- geaccepteerd","zvkx01","a510","","TY0V01"]
[null,null,null,null,"zvkx01_a510__TY1V01","*=Kostenverzamelstaat!$L$21","","Huisartsen- MDZ- geaccepteerd","zvkx01","a510","","TY1V01"]
[null,null,null,null,"zvkx01_a510__TY2V01","*=Kostenverzamelstaat!$N$21","","Huisartsen- MDZ- geaccepteerd","zvkx01","a510","","TY2V01"]
[null,null,null,null,"zvkx01_a515__TY0V01","*=Kostenverzamelstaat!$J$22","","Huisartsen- Resultaatbel. huisartsen- geaccepteerd","zvkx01","a515","","TY0V01"]
[null,null,null,null,"zvkx01_a515__TY1V01","*=Kostenverzamelstaat!$L$22","","Huisartsen- Resultaatbel. huisartsen- geaccepteerd","zvkx01","a515","","TY1V01"]
[null,null,null,null,"zvkx01_a515__TY2V01","*=Kostenverzamelstaat!$N$22","","Huisartsen- Resultaatbel. huisartsen- geaccepteerd","zvkx01","a515","","TY2V01"]
[null,null,null,null,"zvkx01_a516__TY0V01","*=Kostenverzamelstaat!$J$23","","Huisartsen- Resultaatbel. MDZ- geaccepteerd","zvkx01","a516","","TY0V01"]
[null,null,null,null,"zvkx01_a516__TY1V01","*=Kostenverzamelstaat!$L$23","","Huisartsen- Resultaatbel. MDZ- geaccepteerd","zvkx01","a516","","TY1V01"]
[null,null,null,null,"zvkx01_a516__TY2V01","*=Kostenverzamelstaat!$N$23","","Huisartsen- Resultaatbel. MDZ- geaccepteerd","zvkx01","a516","","TY2V01"]
[null,null,null,null,"zvkx01_b503__TY0V01","*=Controleoverzicht!$L$22","","Huisartsen- bijz betalingen- balans","zvkx01","b503","","TY0V01"]
[null,null,null,null,"zvkx01_b503__TY1V01","*=Controleoverzicht!$K$22","","Huisartsen- bijz betalingen- balans","zvkx01","b503","","TY1V01"]
[null,null,null,null,"zvkx01_b503__TY2V01","*=Controleoverzicht!$J$22","","Huisartsen- bijz betalingen- balans","zvkx01","b503","","TY2V01"]
[null,null,null,null,"zvkx01_b504__TY0V01","*=Controleoverzicht!$L$23","","Huisartsen- bijz diensttijden- balans","zvkx01","b504","","TY0V01"]
[null,null,null,null,"zvkx01_b504__TY1V01","*=Controleoverzicht!$K$23","","Huisartsen- bijz diensttijden- balans","zvkx01","b504","","TY1V01"]
[null,null,null,null,"zvkx01_b504__TY2V01","*=Controleoverzicht!$J$23","","Huisartsen- bijz diensttijden- balans","zvkx01","b504","","TY2V01"]
[null,null,null,null,"zvkx01_b505__TY0V01","*=Controleoverzicht!$L$24","","Huisartsen- Inschrijvingen- balans","zvkx01","b505","","TY0V01"]
[null,null,null,null,"zvkx01_b505__TY1V01","*=Controleoverzicht!$K$24","","Huisartsen- Inschrijvingen- balans","zvkx01","b505","","TY1V01"]
[null,null,null,null,"zvkx01_b505__TY2V01","*=Controleoverzicht!$J$24","","Huisartsen- Inschrijvingen- balans","zvkx01","b505","","TY2V01"]
[null,null,null,null,"zvkx01_b506__TY0V01","*=Controleoverzicht!$L$25","","Huisartsen- Consult- balans","zvkx01","b506","","TY0V01"]
[null,null,null,null,"zvkx01_b506__TY1V01","*=Controleoverzicht!$K$25","","Huisartsen- Consult- balans","zvkx01","b506","","TY1V01"]
[null,null,null,null,"zvkx01_b506__TY2V01","*=Controleoverzicht!$J$25","","Huisartsen- Consult- balans","zvkx01","b506","","TY2V01"]
[null,null,null,null,"zvkx01_b507__TY0V01","*=Controleoverzicht!$L$26","","Huisartsen- Overige- balans","zvkx01","b507","","TY0V01"]
[null,null,null,null,"zvkx01_b507__TY1V01","*=Controleoverzicht!$K$26","","Huisartsen- Overige- balans","zvkx01","b507","","TY1V01"]
[null,null,null,null,"zvkx01_b507__TY2V01","*=Controleoverzicht!$J$26","","Huisartsen- Overige- balans","zvkx01","b507","","TY2V01"]
[null,null,null,null,"zvkx01_b510__TY0V01","*=Controleoverzicht!$L$27","","Huisartsen- MDZ- balans","zvkx01","b510","","TY0V01"]
[null,null,null,null,"zvkx01_b510__TY1V01","*=Controleoverzicht!$K$27","","Huisartsen- MDZ- balans","zvkx01","b510","","TY1V01"]
[null,null,null,null,"zvkx01_b510__TY2V01","*=Controleoverzicht!$J$27","","Huisartsen- MDZ- balans","zvkx01","b510","","TY2V01"]
[null,null,null,null,"zvkx01_b515__TY0V01","*=Controleoverzicht!$L$28","","Huisartsen- Resultaatbel. huisartsen- balans","zvkx01","b515","","TY0V01"]
[null,null,null,null,"zvkx01_b515__TY1V01","*=Controleoverzicht!$K$28","","Huisartsen- Resultaatbel. huisartsen- balans","zvkx01","b515","","TY1V01"]
[null,null,null,null,"zvkx01_b515__TY2V01","*=Controleoverzicht!$J$28","","Huisartsen- Resultaatbel. huisartsen- balans","zvkx01","b515","","TY2V01"]
[null,null,null,null,"zvkx01_b516__TY0V01","*=Controleoverzicht!$L$29","","Huisartsen- Resultaatbel. MDZ- balans","zvkx01","b516","","TY0V01"]
[null,null,null,null,"zvkx01_b516__TY1V01","*=Controleoverzicht!$K$29","","Huisartsen- Resultaatbel. MDZ- balans","zvkx01","b516","","TY1V01"]
[null,null,null,null,"zvkx01_b516__TY2V01","*=Controleoverzicht!$J$29","","Huisartsen- Resultaatbel. MDZ- balans","zvkx01","b516","","TY2V01"]
[null,null,null,null,"zvkx01_c__TY0V01","*=Kostenverzamelstaat!$I$24","","Huisartsenzorg -Rtot- - incl balans","zvkx01","c","","TY0V01"]
[null,null,null,null,"zvkx01_c__TY1V01","*=Kostenverzamelstaat!$K$24","","Huisartsenzorg -Rtot- - incl balans","zvkx01","c","","TY1V01"]
[null,null,null,null,"zvkx01_c__TY2V01","*=Kostenverzamelstaat!$M$24","","Huisartsenzorg -Rtot- - incl balans","zvkx01","c","","TY2V01"]
[null,null,null,null,"zvkx01_c503__TY0V01","*=Kostenverzamelstaat!$I$16","","Huisartsen- bijz betalingen- incl balans","zvkx01","c503","","TY0V01"]
[null,null,null,null,"zvkx01_c503__TY1V01","*=Kostenverzamelstaat!$K$16","","Huisartsen- bijz betalingen- incl balans","zvkx01","c503","","TY1V01"]
[null,null,null,null,"zvkx01_c503__TY2V01","*=Kostenverzamelstaat!$M$16","","Huisartsen- bijz betalingen- incl balans","zvkx01","c503","","TY2V01"]
[null,null,null,null,"zvkx01_c504__TY0V01","*=Kostenverzamelstaat!$I$17","","Huisartsen- bijz diensttijden- incl balans","zvkx01","c504","","TY0V01"]
[null,null,null,null,"zvkx01_c504__TY1V01","*=Kostenverzamelstaat!$K$17","","Huisartsen- bijz diensttijden- incl balans","zvkx01","c504","","TY1V01"]
[null,null,null,null,"zvkx01_c504__TY2V01","*=Kostenverzamelstaat!$M$17","","Huisartsen- bijz diensttijden- incl balans","zvkx01","c504","","TY2V01"]
[null,null,null,null,"zvkx01_c505__TY0V01","*=Kostenverzamelstaat!$I$18","","Huisartsen- Inschrijvingen- incl balans","zvkx01","c505","","TY0V01"]
[null,null,null,null,"zvkx01_c505__TY1V01","*=Kostenverzamelstaat!$K$18","","Huisartsen- Inschrijvingen- incl balans","zvkx01","c505","","TY1V01"]
[null,null,null,null,"zvkx01_c505__TY2V01","*=Kostenverzamelstaat!$M$18","","Huisartsen- Inschrijvingen- incl balans","zvkx01","c505","","TY2V01"]
[null,null,null,null,"zvkx01_c506__TY0V01","*=Kostenverzamelstaat!$I$19","","Huisartsen- Consult- incl balans","zvkx01","c506","","TY0V01"]
[null,null,null,null,"zvkx01_c506__TY1V01","*=Kostenverzamelstaat!$K$19","","Huisartsen- Consult- incl balans","zvkx01","c506","","TY1V01"]
[null,null,null,null,"zvkx01_c506__TY2V01","*=Kostenverzamelstaat!$M$19","","Huisartsen- Consult- incl balans","zvkx01","c506","","TY2V01"]
[null,null,null,null,"zvkx01_c507__TY0V01","*=Kostenverzamelstaat!$I$20","","Huisartsen- Overige- incl balans","zvkx01","c507","","TY0V01"]
[null,null,null,null,"zvkx01_c507__TY1V01","*=Kostenverzamelstaat!$K$20","","Huisartsen- Overige- incl balans","zvkx01","c507","","TY1V01"]
[null,null,null,null,"zvkx01_c507__TY2V01","*=Kostenverzamelstaat!$M$20","","Huisartsen- Overige- incl balans","zvkx01","c507","","TY2V01"]
[null,null,null,null,"zvkx01_c510__TY0V01","*=Kostenverzamelstaat!$I$21","","Huisartsen- MDZ- incl balans","zvkx01","c510","","TY0V01"]
[null,null,null,null,"zvkx01_c510__TY1V01","*=Kostenverzamelstaat!$K$21","","Huisartsen- MDZ- incl balans","zvkx01","c510","","TY1V01"]
[null,null,null,null,"zvkx01_c510__TY2V01","*=Kostenverzamelstaat!$M$21","","Huisartsen- MDZ- incl balans","zvkx01","c510","","TY2V01"]
[null,null,null,null,"zvkx01_c515__TY0V01","*=Kostenverzamelstaat!$I$22","","Huisartsen- Resultaatbel. huisartsen- incl balans","zvkx01","c515","","TY0V01"]
[null,null,null,null,"zvkx01_c515__TY1V01","*=Kostenverzamelstaat!$K$22","","Huisartsen- Resultaatbel. huisartsen- incl balans","zvkx01","c515","","TY1V01"]
[null,null,null,null,"zvkx01_c515__TY2V01","*=Kostenverzamelstaat!$M$22","","Huisartsen- Resultaatbel. huisartsen- incl balans","zvkx01","c515","","TY2V01"]
[null,null,null,null,"zvkx01_c516__TY0V01","*=Kostenverzamelstaat!$I$23","","Huisartsen- Resultaatbel. MDZ- incl balans","zvkx01","c516","","TY0V01"]
[null,null,null,null,"zvkx01_c516__TY1V01","*=Kostenverzamelstaat!$K$23","","Huisartsen- Resultaatbel. MDZ- incl balans","zvkx01","c516","","TY1V01"]
[null,null,null,null,"zvkx01_c516__TY2V01","*=Kostenverzamelstaat!$M$23","","Huisartsen- Resultaatbel. MDZ- incl balans","zvkx01","c516","","TY2V01"]
[null,null,null,null,"zvkx02_a__TY0V01","*=Kostenverzamelstaat!$J$26","","Farmaceutische hulp -Rtot- - geaccepteerd","zvkx02","a","","TY0V01"]
[null,null,null,null,"zvkx02_a__TY1V01","*=Kostenverzamelstaat!$L$26","","Farmaceutische hulp -Rtot- - geaccepteerd","zvkx02","a","","TY1V01"]
[null,null,null,null,"zvkx02_a__TY2V01","*=Kostenverzamelstaat!$N$26","","Farmaceutische hulp -Rtot- - geaccepteerd","zvkx02","a","","TY2V01"]
[null,null,null,null,"zvkx02_a520__TY0V01","*=Kostenverzamelstaat!$J$26","","Farmaceutische hulp- geaccepteerd","zvkx02","a520","","TY0V01"]
[null,null,null,null,"zvkx02_a520__TY1V01","*=Kostenverzamelstaat!$L$26","","Farmaceutische hulp- geaccepteerd","zvkx02","a520","","TY1V01"]
[null,null,null,null,"zvkx02_a520__TY2V01","*=Kostenverzamelstaat!$N$26","","Farmaceutische hulp- geaccepteerd","zvkx02","a520","","TY2V01"]
[null,null,null,null,"zvkx02_b520__TY0V01","*=Controleoverzicht!$L$30","","Farmaceutische hulp- balans","zvkx02","b520","","TY0V01"]
[null,null,null,null,"zvkx02_b520__TY1V01","*=Controleoverzicht!$K$30","","Farmaceutische hulp- balans","zvkx02","b520","","TY1V01"]
[null,null,null,null,"zvkx02_b520__TY2V01","*=Controleoverzicht!$J$30","","Farmaceutische hulp- balans","zvkx02","b520","","TY2V01"]
[null,null,null,null,"zvkx02_c__TY0V01","*=Kostenverzamelstaat!$I$26","","Farmaceutische hulp -Rtot- - incl balans","zvkx02","c","","TY0V01"]
[null,null,null,null,"zvkx02_c__TY1V01","*=Kostenverzamelstaat!$K$26","","Farmaceutische hulp -Rtot- - incl balans","zvkx02","c","","TY1V01"]
[null,null,null,null,"zvkx02_c__TY2V01","*=Kostenverzamelstaat!$M$26","","Farmaceutische hulp -Rtot- - incl balans","zvkx02","c","","TY2V01"]
[null,null,null,null,"zvkx02_c520__TY0V01","*=Kostenverzamelstaat!$I$26","","Farmaceutische hulp- incl balans","zvkx02","c520","","TY0V01"]
[null,null,null,null,"zvkx02_c520__TY1V01","*=Kostenverzamelstaat!$K$26","","Farmaceutische hulp- incl balans","zvkx02","c520","","TY1V01"]
[null,null,null,null,"zvkx02_c520__TY2V01","*=Kostenverzamelstaat!$M$26","","Farmaceutische hulp- incl balans","zvkx02","c520","","TY2V01"]
[null,null,null,null,"zvkx03_a__TY0V01","*=Kostenverzamelstaat!$J$28","","Verpleging en verzorging -Rtot- - geaccepteerd","zvkx03","a","","TY0V01"]
[null,null,null,null,"zvkx03_a__TY1V01","*=Kostenverzamelstaat!$L$28","","Verpleging en verzorging -Rtot- - geaccepteerd","zvkx03","a","","TY1V01"]
[null,null,null,null,"zvkx03_a__TY2V01","*=Kostenverzamelstaat!$N$28","","Verpleging en verzorging -Rtot- - geaccepteerd","zvkx03","a","","TY2V01"]
[null,null,null,null,"zvkx03_a530__TY0V01","*=Kostenverzamelstaat!$J$28","","Verpleging en verzorging- geaccepteerd","zvkx03","a530","","TY0V01"]
[null,null,null,null,"zvkx03_a530__TY1V01","*=Kostenverzamelstaat!$L$28","","Verpleging en verzorging- geaccepteerd","zvkx03","a530","","TY1V01"]
[null,null,null,null,"zvkx03_a530__TY2V01","*=Kostenverzamelstaat!$N$28","","Verpleging en verzorging- geaccepteerd","zvkx03","a530","","TY2V01"]
[null,null,null,null,"zvkx03_b530__TY0V01","*=Controleoverzicht!$L$31","","Verpleging en verzorging- balans","zvkx03","b530","","TY0V01"]
[null,null,null,null,"zvkx03_b530__TY1V01","*=Controleoverzicht!$K$31","","Verpleging en verzorging- balans","zvkx03","b530","","TY1V01"]
[null,null,null,null,"zvkx03_b530__TY2V01","*=Controleoverzicht!$J$31","","Verpleging en verzorging- balans","zvkx03","b530","","TY2V01"]
[null,null,null,null,"zvkx03_c__TY0V01","*=Kostenverzamelstaat!$I$28","","Verpleging en verzorging -Rtot- - incl balans","zvkx03","c","","TY0V01"]
[null,null,null,null,"zvkx03_c__TY1V01","*=Kostenverzamelstaat!$K$28","","Verpleging en verzorging -Rtot- - incl balans","zvkx03","c","","TY1V01"]
[null,null,null,null,"zvkx03_c__TY2V01","*=Kostenverzamelstaat!$M$28","","Verpleging en verzorging -Rtot- - incl balans","zvkx03","c","","TY2V01"]
[null,null,null,null,"zvkx03_c530__TY0V01","*=Kostenverzamelstaat!$I$28","","Verpleging en verzorging- incl balans","zvkx03","c530","","TY0V01"]
[null,null,null,null,"zvkx03_c530__TY1V01","*=Kostenverzamelstaat!$K$28","","Verpleging en verzorging- incl balans","zvkx03","c530","","TY1V01"]
[null,null,null,null,"zvkx03_c530__TY2V01","*=Kostenverzamelstaat!$M$28","","Verpleging en verzorging- incl balans","zvkx03","c530","","TY2V01"]
[null,null,null,null,"zvkx04_a__TY0V01","*=Kostenverzamelstaat!$J$33","","Mondzorg -Rtot- - geaccepteerd","zvkx04","a","","TY0V01"]
[null,null,null,null,"zvkx04_a__TY1V01","*=Kostenverzamelstaat!$L$33","","Mondzorg -Rtot- - geaccepteerd","zvkx04","a","","TY1V01"]
[null,null,null,null,"zvkx04_a__TY2V01","*=Kostenverzamelstaat!$N$33","","Mondzorg -Rtot- - geaccepteerd","zvkx04","a","","TY2V01"]
[null,null,null,null,"zvkx04_a5601__TY0V01","*=Kostenverzamelstaat!$J$30","","Mondzorg- volwassen verzekerden- geaccepteerd","zvkx04","a5601","","TY0V01"]
[null,null,null,null,"zvkx04_a5601__TY1V01","*=Kostenverzamelstaat!$L$30","","Mondzorg- volwassen verzekerden- geaccepteerd","zvkx04","a5601","","TY1V01"]
[null,null,null,null,"zvkx04_a5601__TY2V01","*=Kostenverzamelstaat!$N$30","","Mondzorg- volwassen verzekerden- geaccepteerd","zvkx04","a5601","","TY2V01"]
[null,null,null,null,"zvkx04_a5602__TY0V01","*=Kostenverzamelstaat!$J$31","","Mondzorg- jeugdige verzekerden- geaccepteerd","zvkx04","a5602","","TY0V01"]
[null,null,null,null,"zvkx04_a5602__TY1V01","*=Kostenverzamelstaat!$L$31","","Mondzorg- jeugdige verzekerden- geaccepteerd","zvkx04","a5602","","TY1V01"]
[null,null,null,null,"zvkx04_a5602__TY2V01","*=Kostenverzamelstaat!$N$31","","Mondzorg- jeugdige verzekerden- geaccepteerd","zvkx04","a5602","","TY2V01"]
[null,null,null,null,"zvkx04_a561__TY0V01","*=Kostenverzamelstaat!$J$32","","Mondzorg- gebitsprothesen- geaccepteerd","zvkx04","a561","","TY0V01"]
[null,null,null,null,"zvkx04_a561__TY1V01","*=Kostenverzamelstaat!$L$32","","Mondzorg- gebitsprothesen- geaccepteerd","zvkx04","a561","","TY1V01"]
[null,null,null,null,"zvkx04_a561__TY2V01","*=Kostenverzamelstaat!$N$32","","Mondzorg- gebitsprothesen- geaccepteerd","zvkx04","a561","","TY2V01"]
[null,null,null,null,"zvkx04_b5601__TY0V01","*=Controleoverzicht!$L$33","","Mondzorg- volwassen verzekerden- balans","zvkx04","b5601","","TY0V01"]
[null,null,null,null,"zvkx04_b5601__TY1V01","*=Controleoverzicht!$K$33","","Mondzorg- volwassen verzekerden- balans","zvkx04","b5601","","TY1V01"]
[null,null,null,null,"zvkx04_b5601__TY2V01","*=Controleoverzicht!$J$33","","Mondzorg- volwassen verzekerden- balans","zvkx04","b5601","","TY2V01"]
[null,null,null,null,"zvkx04_b5602__TY0V01","*=Controleoverzicht!$L$34","","Mondzorg- jeugdige verzekerden- balans","zvkx04","b5602","","TY0V01"]
[null,null,null,null,"zvkx04_b5602__TY1V01","*=Controleoverzicht!$K$34","","Mondzorg- jeugdige verzekerden- balans","zvkx04","b5602","","TY1V01"]
[null,null,null,null,"zvkx04_b5602__TY2V01","*=Controleoverzicht!$J$34","","Mondzorg- jeugdige verzekerden- balans","zvkx04","b5602","","TY2V01"]
[null,null,null,null,"zvkx04_b561__TY0V01","*=Controleoverzicht!$L$35","","Mondzorg- gebitsprothesen- balans","zvkx04","b561","","TY0V01"]
[null,null,null,null,"zvkx04_b561__TY1V01","*=Controleoverzicht!$K$35","","Mondzorg- gebitsprothesen- balans","zvkx04","b561","","TY1V01"]
[null,null,null,null,"zvkx04_b561__TY2V01","*=Controleoverzicht!$J$35","","Mondzorg- gebitsprothesen- balans","zvkx04","b561","","TY2V01"]
[null,null,null,null,"zvkx04_c__TY0V01","*=Kostenverzamelstaat!$I$33","","Mondzorg -Rtot- - incl balans","zvkx04","c","","TY0V01"]
[null,null,null,null,"zvkx04_c__TY1V01","*=Kostenverzamelstaat!$K$33","","Mondzorg -Rtot- - incl balans","zvkx04","c","","TY1V01"]
[null,null,null,null,"zvkx04_c__TY2V01","*=Kostenverzamelstaat!$M$33","","Mondzorg -Rtot- - incl balans","zvkx04","c","","TY2V01"]
[null,null,null,null,"zvkx04_c5601__TY0V01","*=Kostenverzamelstaat!$I$30","","Mondzorg- volwassen verzekerden- incl balans","zvkx04","c5601","","TY0V01"]
[null,null,null,null,"zvkx04_c5601__TY1V01","*=Kostenverzamelstaat!$K$30","","Mondzorg- volwassen verzekerden- incl balans","zvkx04","c5601","","TY1V01"]
[null,null,null,null,"zvkx04_c5601__TY2V01","*=Kostenverzamelstaat!$M$30","","Mondzorg- volwassen verzekerden- incl balans","zvkx04","c5601","","TY2V01"]
[null,null,null,null,"zvkx04_c5602__TY0V01","*=Kostenverzamelstaat!$I$31","","Mondzorg- jeugdige verzekerden- incl balans","zvkx04","c5602","","TY0V01"]
[null,null,null,null,"zvkx04_c5602__TY1V01","*=Kostenverzamelstaat!$K$31","","Mondzorg- jeugdige verzekerden- incl balans","zvkx04","c5602","","TY1V01"]
[null,null,null,null,"zvkx04_c5602__TY2V01","*=Kostenverzamelstaat!$M$31","","Mondzorg- jeugdige verzekerden- incl balans","zvkx04","c5602","","TY2V01"]
[null,null,null,null,"zvkx04_c561__TY0V01","*=Kostenverzamelstaat!$I$32","","Mondzorg- gebitsprothesen- incl balans","zvkx04","c561","","TY0V01"]
[null,null,null,null,"zvkx04_c561__TY1V01","*=Kostenverzamelstaat!$K$32","","Mondzorg- gebitsprothesen- incl balans","zvkx04","c561","","TY1V01"]
[null,null,null,null,"zvkx04_c561__TY2V01","*=Kostenverzamelstaat!$M$32","","Mondzorg- gebitsprothesen- incl balans","zvkx04","c561","","TY2V01"]
[null,null,null,null,"zvkx05_a__TY0V01","*=Kostenverzamelstaat!$J$37","","Verloskundige hulp -Rtot- - geaccepteerd","zvkx05","a","","TY0V01"]
[null,null,null,null,"zvkx05_a__TY1V01","*=Kostenverzamelstaat!$L$37","","Verloskundige hulp -Rtot- - geaccepteerd","zvkx05","a","","TY1V01"]
[null,null,null,null,"zvkx05_a__TY2V01","*=Kostenverzamelstaat!$N$37","","Verloskundige hulp -Rtot- - geaccepteerd","zvkx05","a","","TY2V01"]
[null,null,null,null,"zvkx05_a580__TY0V01","*=Kostenverzamelstaat!$J$35","","Verloskundige hulp- door verloskundigen- geaccepteerd","zvkx05","a580","","TY0V01"]
[null,null,null,null,"zvkx05_a580__TY1V01","*=Kostenverzamelstaat!$L$35","","Verloskundige hulp- door verloskundigen- geaccepteerd","zvkx05","a580","","TY1V01"]
[null,null,null,null,"zvkx05_a580__TY2V01","*=Kostenverzamelstaat!$N$35","","Verloskundige hulp- door verloskundigen- geaccepteerd","zvkx05","a580","","TY2V01"]
[null,null,null,null,"zvkx05_a581__TY1V01","*=Kostenverzamelstaat!$L$36","","Verloskundige hulp- door huisartsen- geaccepteerd","zvkx05","a581","","TY1V01"]
[null,null,null,null,"zvkx05_a581__TY2V01","*=Kostenverzamelstaat!$N$36","","Verloskundige hulp- door huisartsen- geaccepteerd","zvkx05","a581","","TY2V01"]
[null,null,null,null,"zvkx05_b580__TY0V01","*=Controleoverzicht!$L$36","","Verloskundige hulp- door verloskundigen- balans","zvkx05","b580","","TY0V01"]
[null,null,null,null,"zvkx05_b580__TY1V01","*=Controleoverzicht!$K$36","","Verloskundige hulp- door verloskundigen- balans","zvkx05","b580","","TY1V01"]
[null,null,null,null,"zvkx05_b580__TY2V01","*=Controleoverzicht!$J$36","","Verloskundige hulp- door verloskundigen- balans","zvkx05","b580","","TY2V01"]
[null,null,null,null,"zvkx05_b581__TY1V01","*=Controleoverzicht!$K$37","","Verloskundige hulp- door huisartsen- balans","zvkx05","b581","","TY1V01"]
[null,null,null,null,"zvkx05_b581__TY2V01","*=Controleoverzicht!$J$37","","Verloskundige hulp- door huisartsen- balans","zvkx05","b581","","TY2V01"]
[null,null,null,null,"zvkx05_c__TY0V01","*=Kostenverzamelstaat!$I$37","","Verloskundige hulp -Rtot- - incl balans","zvkx05","c","","TY0V01"]
[null,null,null,null,"zvkx05_c__TY1V01","*=Kostenverzamelstaat!$K$37","","Verloskundige hulp -Rtot- - incl balans","zvkx05","c","","TY1V01"]
[null,null,null,null,"zvkx05_c__TY2V01","*=Kostenverzamelstaat!$M$37","","Verloskundige hulp -Rtot- - incl balans","zvkx05","c","","TY2V01"]
[null,null,null,null,"zvkx05_c580__TY0V01","*=Kostenverzamelstaat!$I$35","","Verloskundige hulp- door verloskundigen- incl balans","zvkx05","c580","","TY0V01"]
[null,null,null,null,"zvkx05_c580__TY1V01","*=Kostenverzamelstaat!$K$35","","Verloskundige hulp- door verloskundigen- incl balans","zvkx05","c580","","TY1V01"]
[null,null,null,null,"zvkx05_c580__TY2V01","*=Kostenverzamelstaat!$M$35","","Verloskundige hulp- door verloskundigen- incl balans","zvkx05","c580","","TY2V01"]
[null,null,null,null,"zvkx05_c581__TY1V01","*=Kostenverzamelstaat!$K$36","","Verloskundige hulp- door huisartsen- incl balans","zvkx05","c581","","TY1V01"]
[null,null,null,null,"zvkx05_c581__TY2V01","*=Kostenverzamelstaat!$M$36","","Verloskundige hulp- door huisartsen- incl balans","zvkx05","c581","","TY2V01"]
[null,null,null,null,"zvkx06_a__TY0V01","*=Kostenverzamelstaat!$J$61","","Medisch specialistische hulp -Rtot- - geaccepteerd","zvkx06","a","","TY0V01"]
[null,null,null,null,"zvkx06_a__TY1V01","*=Kostenverzamelstaat!$L$61","","Medisch specialistische hulp -Rtot- - geaccepteerd","zvkx06","a","","TY1V01"]
[null,null,null,null,"zvkx06_a__TY2V01","*=Kostenverzamelstaat!$N$61","","Medisch specialistische hulp -Rtot- - geaccepteerd","zvkx06","a","","TY2V01"]
[null,null,null,null,"zvkx06_a545__TY0V01","*=Kostenverzamelstaat!$J$52","","Medisch specialistische hulp- mondziekten en kaakchirurgie- geaccepteerd","zvkx06","a545","","TY0V01"]
[null,null,null,null,"zvkx06_a545__TY1V01","*=Kostenverzamelstaat!$L$52","","Medisch specialistische hulp- mondziekten en kaakchirurgie- geaccepteerd","zvkx06","a545","","TY1V01"]
[null,null,null,null,"zvkx06_a545__TY2V01","*=Kostenverzamelstaat!$N$52","","Medisch specialistische hulp- mondziekten en kaakchirurgie- geaccepteerd","zvkx06","a545","","TY2V01"]
[null,null,null,null,"zvkx06_a610__TY0V01","*=Kostenverzamelstaat!$J$53","","Medisch specialistische hulp- Overige ziekenhuiszorg,curatief- geaccepteerd","zvkx06","a610","","TY0V01"]
[null,null,null,null,"zvkx06_a610__TY1V01","*=Kostenverzamelstaat!$L$53","","Medisch specialistische hulp- Overige ziekenhuiszorg,curatief- geaccepteerd","zvkx06","a610","","TY1V01"]
[null,null,null,null,"zvkx06_a610__TY2V01","*=Kostenverzamelstaat!$N$53","","Medisch specialistische hulp- Overige ziekenhuiszorg,curatief- geaccepteerd","zvkx06","a610","","TY2V01"]
[null,null,null,null,"zvkx06_a611__TY0V01","*=Kostenverzamelstaat!$J$54","","Medisch specialistische hulp- Overige zorg- geaccepteerd","zvkx06","a611","","TY0V01"]
[null,null,null,null,"zvkx06_a611__TY1V01","*=Kostenverzamelstaat!$L$54","","Medisch specialistische hulp- Overige zorg- geaccepteerd","zvkx06","a611","","TY1V01"]
[null,null,null,null,"zvkx06_a611__TY2V01","*=Kostenverzamelstaat!$N$54","","Medisch specialistische hulp- Overige zorg- geaccepteerd","zvkx06","a611","","TY2V01"]
[null,null,null,null,"zvkx06_a612__TY1V01","*=Kostenverzamelstaat!$L$55","","Medisch specialistische hulp- add-on's- geaccepteerd","zvkx06","a612","","TY1V01"]
[null,null,null,null,"zvkx06_a612__TY2V01","*=Kostenverzamelstaat!$N$55","","Medisch specialistische hulp- add-on's- geaccepteerd","zvkx06","a612","","TY2V01"]
[null,null,null,null,"zvkx06_a6121__TY0V01","*=Kostenverzamelstaat!$J$56","","Medisch specialistische hulp- add-on's Dure geneesmiddelen- geaccepteerd","zvkx06","a6121","","TY0V01"]
[null,null,null,null,"zvkx06_a6122__TY0V01","*=Kostenverzamelstaat!$J$57","","Medisch specialistische hulp- IC- geaccepteerd","zvkx06","a6122","","TY0V01"]
[null,null,null,null,"zvkx06_a6131__TY0V01","*=Kostenverzamelstaat!$J$58","","Medisch specialistische hulp- Integraal DBC-zorgproduct gereguleerd- geaccepteerd","zvkx06","a6131","","TY0V01"]
[null,null,null,null,"zvkx06_a6131__TY1V01","*=Kostenverzamelstaat!$L$58","","Medisch specialistische hulp- Integraal DBC-zorgproduct gereguleerd- geaccepteerd","zvkx06","a6131","","TY1V01"]
[null,null,null,null,"zvkx06_a6131__TY2V01","*=Kostenverzamelstaat!$N$58","","Medisch specialistische hulp- Integraal DBC-zorgproduct gereguleerd- geaccepteerd","zvkx06","a6131","","TY2V01"]
[null,null,null,null,"zvkx06_a6151__TY0V01","*=Kostenverzamelstaat!$J$59","","Medisch specialistische hulp- Integraal DBC-zorgproduct vrije segment- geaccepteerd","zvkx06","a6151","","TY0V01"]
[null,null,null,null,"zvkx06_a6151__TY1V01","*=Kostenverzamelstaat!$L$59","","Medisch specialistische hulp- Integraal DBC-zorgproduct vrije segment- geaccepteerd","zvkx06","a6151","","TY1V01"]
[null,null,null,null,"zvkx06_a6151__TY2V01","*=Kostenverzamelstaat!$N$59","","Medisch specialistische hulp- Integraal DBC-zorgproduct vrije segment- geaccepteerd","zvkx06","a6151","","TY2V01"]
[null,null,null,null,"zvkx06_a619__TY0V01","*=Kostenverzamelstaat!$J$60","","Medisch specialistische hulp- honoraria extramuraal- geaccepteerd","zvkx06","a619","","TY0V01"]
[null,null,null,null,"zvkx06_a619__TY1V01","*=Kostenverzamelstaat!$L$60","","Medisch specialistische hulp- honoraria extramuraal- geaccepteerd","zvkx06","a619","","TY1V01"]
[null,null,null,null,"zvkx06_a619__TY2V01","*=Kostenverzamelstaat!$N$60","","Medisch specialistische hulp- honoraria extramuraal- geaccepteerd","zvkx06","a619","","TY2V01"]
[null,null,null,null,"zvkx06_b545__TY0V01","*=Controleoverzicht!$L$32","","Medisch specialistische hulp- mondziekten en kaakchirurgie- balans","zvkx06","b545","","TY0V01"]
[null,null,null,null,"zvkx06_b545__TY1V01","*=Controleoverzicht!$K$32","","Medisch specialistische hulp- mondziekten en kaakchirurgie- balans","zvkx06","b545","","TY1V01"]
[null,null,null,null,"zvkx06_b545__TY2V01","*=Controleoverzicht!$J$32","","Medisch specialistische hulp- mondziekten en kaakchirurgie- balans","zvkx06","b545","","TY2V01"]
[null,null,null,null,"zvkx06_b610__TY0V01","*=Controleoverzicht!$L$38","","Medisch specialistische hulp- Overige ziekenhuiszorg,curatief- balans","zvkx06","b610","","TY0V01"]
[null,null,null,null,"zvkx06_b610__TY1V01","*=Controleoverzicht!$K$38","","Medisch specialistische hulp- Overige ziekenhuiszorg,curatief- balans","zvkx06","b610","","TY1V01"]
[null,null,null,null,"zvkx06_b610__TY2V01","*=Controleoverzicht!$J$38","","Medisch specialistische hulp- Overige ziekenhuiszorg,curatief- balans","zvkx06","b610","","TY2V01"]
[null,null,null,null,"zvkx06_b611__TY0V01","*=Controleoverzicht!$L$39","","Medisch specialistische hulp- Overige zorg- balans","zvkx06","b611","","TY0V01"]
[null,null,null,null,"zvkx06_b611__TY1V01","*=Controleoverzicht!$K$39","","Medisch specialistische hulp- Overige zorg- balans","zvkx06","b611","","TY1V01"]
[null,null,null,null,"zvkx06_b611__TY2V01","*=Controleoverzicht!$J$39","","Medisch specialistische hulp- Overige zorg- balans","zvkx06","b611","","TY2V01"]
[null,null,null,null,"zvkx06_b612__TY1V01","*=Controleoverzicht!$K$40","","Medisch specialistische hulp- add-on's- balans","zvkx06","b612","","TY1V01"]
[null,null,null,null,"zvkx06_b612__TY2V01","*=Controleoverzicht!$J$40","","Medisch specialistische hulp- add-on's- balans","zvkx06","b612","","TY2V01"]
[null,null,null,null,"zvkx06_b6121__TY0V01","*=Controleoverzicht!$L$41","","Medisch specialistische hulp- add-on's Dure geneesmiddelen- balans","zvkx06","b6121","","TY0V01"]
[null,null,null,null,"zvkx06_b6122__TY0V01","*=Controleoverzicht!$L$42","","Medisch specialistische hulp- IC- balans","zvkx06","b6122","","TY0V01"]
[null,null,null,null,"zvkx06_b6131__TY0V01","*=Controleoverzicht!$L$43","","Medisch specialistische hulp- Integraal DBC-zorgproduct gereguleerd- balans","zvkx06","b6131","","TY0V01"]
[null,null,null,null,"zvkx06_b6131__TY1V01","*=Controleoverzicht!$K$43","","Medisch specialistische hulp- Integraal DBC-zorgproduct gereguleerd- balans","zvkx06","b6131","","TY1V01"]
[null,null,null,null,"zvkx06_b6131__TY2V01","*=Controleoverzicht!$J$43","","Medisch specialistische hulp- Integraal DBC-zorgproduct gereguleerd- balans","zvkx06","b6131","","TY2V01"]
[null,null,null,null,"zvkx06_b6151__TY0V01","*=Controleoverzicht!$L$44","","Medisch specialistische hulp- Integraal DBC-zorgproduct vrije segment- balans","zvkx06","b6151","","TY0V01"]
[null,null,null,null,"zvkx06_b6151__TY1V01","*=Controleoverzicht!$K$44","","Medisch specialistische hulp- Integraal DBC-zorgproduct vrije segment- balans","zvkx06","b6151","","TY1V01"]
[null,null,null,null,"zvkx06_b6151__TY2V01","*=Controleoverzicht!$J$44","","Medisch specialistische hulp- Integraal DBC-zorgproduct vrije segment- balans","zvkx06","b6151","","TY2V01"]
[null,null,null,null,"zvkx06_b619__TY0V01","*=Controleoverzicht!$L$45","","Medisch specialistische hulp- honoraria extramuraal- balans","zvkx06","b619","","TY0V01"]
[null,null,null,null,"zvkx06_b619__TY1V01","*=Controleoverzicht!$K$45","","Medisch specialistische hulp- honoraria extramuraal- balans","zvkx06","b619","","TY1V01"]
[null,null,null,null,"zvkx06_b619__TY2V01","*=Controleoverzicht!$J$45","","Medisch specialistische hulp- honoraria extramuraal- balans","zvkx06","b619","","TY2V01"]
[null,null,null,null,"zvkx06_c__TY0V01","*=Kostenverzamelstaat!$I$61","","Medisch specialistische hulp -Rtot- - incl balans","zvkx06","c","","TY0V01"]
[null,null,null,null,"zvkx06_c__TY1V01","*=Kostenverzamelstaat!$K$61","","Medisch specialistische hulp -Rtot- - incl balans","zvkx06","c","","TY1V01"]
[null,null,null,null,"zvkx06_c__TY2V01","*=Kostenverzamelstaat!$M$61","","Medisch specialistische hulp -Rtot- - incl balans","zvkx06","c","","TY2V01"]
[null,null,null,null,"zvkx06_c545__TY0V01","*=Kostenverzamelstaat!$I$52","","Medisch specialistische hulp- mondziekten en kaakchirurgie- incl balans","zvkx06","c545","","TY0V01"]
[null,null,null,null,"zvkx06_c545__TY1V01","*=Kostenverzamelstaat!$K$52","","Medisch specialistische hulp- mondziekten en kaakchirurgie- incl balans","zvkx06","c545","","TY1V01"]
[null,null,null,null,"zvkx06_c545__TY2V01","*=Kostenverzamelstaat!$M$52","","Medisch specialistische hulp- mondziekten en kaakchirurgie- incl balans","zvkx06","c545","","TY2V01"]
[null,null,null,null,"zvkx06_c610__TY0V01","*=Kostenverzamelstaat!$I$53","","Medisch specialistische hulp- Overige ziekenhuiszorg,curatief- incl balans","zvkx06","c610","","TY0V01"]
[null,null,null,null,"zvkx06_c610__TY1V01","*=Kostenverzamelstaat!$K$53","","Medisch specialistische hulp- Overige ziekenhuiszorg,curatief- incl balans","zvkx06","c610","","TY1V01"]
[null,null,null,null,"zvkx06_c610__TY2V01","*=Kostenverzamelstaat!$M$53","","Medisch specialistische hulp- Overige ziekenhuiszorg,curatief- incl balans","zvkx06","c610","","TY2V01"]
[null,null,null,null,"zvkx06_c611__TY0V01","*=Kostenverzamelstaat!$I$54","","Medisch specialistische hulp- Overige zorg- incl balans","zvkx06","c611","","TY0V01"]
[null,null,null,null,"zvkx06_c611__TY1V01","*=Kostenverzamelstaat!$K$54","","Medisch specialistische hulp- Overige zorg- incl balans","zvkx06","c611","","TY1V01"]
[null,null,null,null,"zvkx06_c611__TY2V01","*=Kostenverzamelstaat!$M$54","","Medisch specialistische hulp- Overige zorg- incl balans","zvkx06","c611","","TY2V01"]
[null,null,null,null,"zvkx06_c612__TY1V01","*=Kostenverzamelstaat!$K$55","","Medisch specialistische hulp- add-on's- incl balans","zvkx06","c612","","TY1V01"]
[null,null,null,null,"zvkx06_c612__TY2V01","*=Kostenverzamelstaat!$M$55","","Medisch specialistische hulp- add-on's- incl balans","zvkx06","c612","","TY2V01"]
[null,null,null,null,"zvkx06_c6121__TY0V01","*=Kostenverzamelstaat!$I$56","","Medisch specialistische hulp- add-on's Dure geneesmiddelen- incl balans","zvkx06","c6121","","TY0V01"]
[null,null,null,null,"zvkx06_c6122__TY0V01","*=Kostenverzamelstaat!$I$57","","Medisch specialistische hulp- IC- incl balans","zvkx06","c6122","","TY0V01"]
[null,null,null,null,"zvkx06_c6131__TY0V01","*=Kostenverzamelstaat!$I$58","","Medisch specialistische hulp- Integraal DBC-zorgproduct gereguleerd- incl balans","zvkx06","c6131","","TY0V01"]
[null,null,null,null,"zvkx06_c6131__TY1V01","*=Kostenverzamelstaat!$K$58","","Medisch specialistische hulp- Integraal DBC-zorgproduct gereguleerd- incl balans","zvkx06","c6131","","TY1V01"]
[null,null,null,null,"zvkx06_c6131__TY2V01","*=Kostenverzamelstaat!$M$58","","Medisch specialistische hulp- Integraal DBC-zorgproduct gereguleerd- incl balans","zvkx06","c6131","","TY2V01"]
[null,null,null,null,"zvkx06_c6151__TY0V01","*=Kostenverzamelstaat!$I$59","","Medisch specialistische hulp- Integraal DBC-zorgproduct vrije segment- incl balans","zvkx06","c6151","","TY0V01"]
[null,null,null,null,"zvkx06_c6151__TY1V01","*=Kostenverzamelstaat!$K$59","","Medisch specialistische hulp- Integraal DBC-zorgproduct vrije segment- incl balans","zvkx06","c6151","","TY1V01"]
[null,null,null,null,"zvkx06_c6151__TY2V01","*=Kostenverzamelstaat!$M$59","","Medisch specialistische hulp- Integraal DBC-zorgproduct vrije segment- incl balans","zvkx06","c6151","","TY2V01"]
[null,null,null,null,"zvkx06_c619__TY0V01","*=Kostenverzamelstaat!$I$60","","Medisch specialistische hulp- honoraria extramuraal- incl balans","zvkx06","c619","","TY0V01"]
[null,null,null,null,"zvkx06_c619__TY1V01","*=Kostenverzamelstaat!$K$60","","Medisch specialistische hulp- honoraria extramuraal- incl balans","zvkx06","c619","","TY1V01"]
[null,null,null,null,"zvkx06_c619__TY2V01","*=Kostenverzamelstaat!$M$60","","Medisch specialistische hulp- honoraria extramuraal- incl balans","zvkx06","c619","","TY2V01"]
[null,null,null,null,"zvkx07_a__TY0V01","*=Kostenverzamelstaat!$J$68","","Paramedische hulp -Rtot- - geaccepteerd","zvkx07","a","","TY0V01"]
[null,null,null,null,"zvkx07_a__TY1V01","*=Kostenverzamelstaat!$L$68","","Paramedische hulp -Rtot- - geaccepteerd","zvkx07","a","","TY1V01"]
[null,null,null,null,"zvkx07_a__TY2V01","*=Kostenverzamelstaat!$N$68","","Paramedische hulp -Rtot- - geaccepteerd","zvkx07","a","","TY2V01"]
[null,null,null,null,"zvkx07_a620__TY0V01","*=Kostenverzamelstaat!$J$63","","Paramedische hulp- fysiotherapie- geaccepteerd","zvkx07","a620","","TY0V01"]
[null,null,null,null,"zvkx07_a620__TY1V01","*=Kostenverzamelstaat!$L$63","","Paramedische hulp- fysiotherapie- geaccepteerd","zvkx07","a620","","TY1V01"]
[null,null,null,null,"zvkx07_a620__TY2V01","*=Kostenverzamelstaat!$N$63","","Paramedische hulp- fysiotherapie- geaccepteerd","zvkx07","a620","","TY2V01"]
[null,null,null,null,"zvkx07_a621__TY0V01","*=Kostenverzamelstaat!$J$64","","Paramedische hulp- Mensendieck/Cesar- geaccepteerd","zvkx07","a621","","TY0V01"]
[null,null,null,null,"zvkx07_a621__TY1V01","*=Kostenverzamelstaat!$L$64","","Paramedische hulp- Mensendieck/Cesar- geaccepteerd","zvkx07","a621","","TY1V01"]
[null,null,null,null,"zvkx07_a621__TY2V01","*=Kostenverzamelstaat!$N$64","","Paramedische hulp- Mensendieck/Cesar- geaccepteerd","zvkx07","a621","","TY2V01"]
[null,null,null,null,"zvkx07_a623__TY0V01","*=Kostenverzamelstaat!$J$65","","Paramedische hulp- logopedie- geaccepteerd","zvkx07","a623","","TY0V01"]
[null,null,null,null,"zvkx07_a623__TY1V01","*=Kostenverzamelstaat!$L$65","","Paramedische hulp- logopedie- geaccepteerd","zvkx07","a623","","TY1V01"]
[null,null,null,null,"zvkx07_a623__TY2V01","*=Kostenverzamelstaat!$N$65","","Paramedische hulp- logopedie- geaccepteerd","zvkx07","a623","","TY2V01"]
[null,null,null,null,"zvkx07_a624__TY0V01","*=Kostenverzamelstaat!$J$66","","Paramedische hulp- ergotherapie- geaccepteerd","zvkx07","a624","","TY0V01"]
[null,null,null,null,"zvkx07_a624__TY1V01","*=Kostenverzamelstaat!$L$66","","Paramedische hulp- ergotherapie- geaccepteerd","zvkx07","a624","","TY1V01"]
[null,null,null,null,"zvkx07_a624__TY2V01","*=Kostenverzamelstaat!$N$66","","Paramedische hulp- ergotherapie- geaccepteerd","zvkx07","a624","","TY2V01"]
[null,null,null,null,"zvkx07_a625__TY0V01","*=Kostenverzamelstaat!$J$67","","Paramedische hulp- dieetadvisering- geaccepteerd","zvkx07","a625","","TY0V01"]
[null,null,null,null,"zvkx07_a625__TY1V01","*=Kostenverzamelstaat!$L$67","","Paramedische hulp- dieetadvisering- geaccepteerd","zvkx07","a625","","TY1V01"]
[null,null,null,null,"zvkx07_a625__TY2V01","*=Kostenverzamelstaat!$N$67","","Paramedische hulp- dieetadvisering- geaccepteerd","zvkx07","a625","","TY2V01"]
[null,null,null,null,"zvkx07_b620__TY0V01","*=Controleoverzicht!$L$46","","Paramedische hulp- fysiotherapie- balans","zvkx07","b620","","TY0V01"]
[null,null,null,null,"zvkx07_b620__TY1V01","*=Controleoverzicht!$K$46","","Paramedische hulp- fysiotherapie- balans","zvkx07","b620","","TY1V01"]
[null,null,null,null,"zvkx07_b620__TY2V01","*=Controleoverzicht!$J$46","","Paramedische hulp- fysiotherapie- balans","zvkx07","b620","","TY2V01"]
[null,null,null,null,"zvkx07_b621__TY0V01","*=Controleoverzicht!$L$47","","Paramedische hulp- Mensendieck/Cesar- balans","zvkx07","b621","","TY0V01"]
[null,null,null,null,"zvkx07_b621__TY1V01","*=Controleoverzicht!$K$47","","Paramedische hulp- Mensendieck/Cesar- balans","zvkx07","b621","","TY1V01"]
[null,null,null,null,"zvkx07_b621__TY2V01","*=Controleoverzicht!$J$47","","Paramedische hulp- Mensendieck/Cesar- balans","zvkx07","b621","","TY2V01"]
[null,null,null,null,"zvkx07_b623__TY0V01","*=Controleoverzicht!$L$48","","Paramedische hulp- logopedie- balans","zvkx07","b623","","TY0V01"]
[null,null,null,null,"zvkx07_b623__TY1V01","*=Controleoverzicht!$K$48","","Paramedische hulp- logopedie- balans","zvkx07","b623","","TY1V01"]
[null,null,null,null,"zvkx07_b623__TY2V01","*=Controleoverzicht!$J$48","","Paramedische hulp- logopedie- balans","zvkx07","b623","","TY2V01"]
[null,null,null,null,"zvkx07_b624__TY0V01","*=Controleoverzicht!$L$59","","Paramedische hulp- ergotherapie- balans","zvkx07","b624","","TY0V01"]
[null,null,null,null,"zvkx07_b624__TY1V01","*=Controleoverzicht!$K$59","","Paramedische hulp- ergotherapie- balans","zvkx07","b624","","TY1V01"]
[null,null,null,null,"zvkx07_b624__TY2V01","*=Controleoverzicht!$J$59","","Paramedische hulp- ergotherapie- balans","zvkx07","b624","","TY2V01"]
[null,null,null,null,"zvkx07_b625__TY0V01","*=Controleoverzicht!$L$60","","Paramedische hulp- dieetadvisering- balans","zvkx07","b625","","TY0V01"]
[null,null,null,null,"zvkx07_b625__TY1V01","*=Controleoverzicht!$K$60","","Paramedische hulp- dieetadvisering- balans","zvkx07","b625","","TY1V01"]
[null,null,null,null,"zvkx07_b625__TY2V01","*=Controleoverzicht!$J$60","","Paramedische hulp- dieetadvisering- balans","zvkx07","b625","","TY2V01"]
[null,null,null,null,"zvkx07_c__TY0V01","*=Kostenverzamelstaat!$I$68","","Paramedische hulp -Rtot- - incl balans","zvkx07","c","","TY0V01"]
[null,null,null,null,"zvkx07_c__TY1V01","*=Kostenverzamelstaat!$K$68","","Paramedische hulp -Rtot- - incl balans","zvkx07","c","","TY1V01"]
[null,null,null,null,"zvkx07_c__TY2V01","*=Kostenverzamelstaat!$M$68","","Paramedische hulp -Rtot- - incl balans","zvkx07","c","","TY2V01"]
[null,null,null,null,"zvkx07_c620__TY0V01","*=Kostenverzamelstaat!$I$63","","Paramedische hulp- fysiotherapie- incl balans","zvkx07","c620","","TY0V01"]
[null,null,null,null,"zvkx07_c620__TY1V01","*=Kostenverzamelstaat!$K$63","","Paramedische hulp- fysiotherapie- incl balans","zvkx07","c620","","TY1V01"]
[null,null,null,null,"zvkx07_c620__TY2V01","*=Kostenverzamelstaat!$M$63","","Paramedische hulp- fysiotherapie- incl balans","zvkx07","c620","","TY2V01"]
[null,null,null,null,"zvkx07_c621__TY0V01","*=Kostenverzamelstaat!$I$64","","Paramedische hulp- Mensendieck/Cesar- incl balans","zvkx07","c621","","TY0V01"]
[null,null,null,null,"zvkx07_c621__TY1V01","*=Kostenverzamelstaat!$K$64","","Paramedische hulp- Mensendieck/Cesar- incl balans","zvkx07","c621","","TY1V01"]
[null,null,null,null,"zvkx07_c621__TY2V01","*=Kostenverzamelstaat!$M$64","","Paramedische hulp- Mensendieck/Cesar- incl balans","zvkx07","c621","","TY2V01"]
[null,null,null,null,"zvkx07_c623__TY0V01","*=Kostenverzamelstaat!$I$65","","Paramedische hulp- logopedie- incl balans","zvkx07","c623","","TY0V01"]
[null,null,null,null,"zvkx07_c623__TY1V01","*=Kostenverzamelstaat!$K$65","","Paramedische hulp- logopedie- incl balans","zvkx07","c623","","TY1V01"]
[null,null,null,null,"zvkx07_c623__TY2V01","*=Kostenverzamelstaat!$M$65","","Paramedische hulp- logopedie- incl balans","zvkx07","c623","","TY2V01"]
[null,null,null,null,"zvkx07_c624__TY0V01","*=Kostenverzamelstaat!$I$66","","Paramedische hulp- ergotherapie- incl balans","zvkx07","c624","","TY0V01"]
[null,null,null,null,"zvkx07_c624__TY1V01","*=Kostenverzamelstaat!$K$66","","Paramedische hulp- ergotherapie- incl balans","zvkx07","c624","","TY1V01"]
[null,null,null,null,"zvkx07_c624__TY2V01","*=Kostenverzamelstaat!$M$66","","Paramedische hulp- ergotherapie- incl balans","zvkx07","c624","","TY2V01"]
[null,null,null,null,"zvkx07_c625__TY0V01","*=Kostenverzamelstaat!$I$67","","Paramedische hulp- dieetadvisering- incl balans","zvkx07","c625","","TY0V01"]
[null,null,null,null,"zvkx07_c625__TY1V01","*=Kostenverzamelstaat!$K$67","","Paramedische hulp- dieetadvisering- incl balans","zvkx07","c625","","TY1V01"]
[null,null,null,null,"zvkx07_c625__TY2V01","*=Kostenverzamelstaat!$M$67","","Paramedische hulp- dieetadvisering- incl balans","zvkx07","c625","","TY2V01"]
[null,null,null,null,"zvkx08_a__TY0V01","*=Kostenverzamelstaat!$J$70","","Hulpmiddelen -Rtot- - geaccepteerd","zvkx08","a","","TY0V01"]
[null,null,null,null,"zvkx08_a__TY1V01","*=Kostenverzamelstaat!$L$70","","Hulpmiddelen -Rtot- - geaccepteerd","zvkx08","a","","TY1V01"]
[null,null,null,null,"zvkx08_a__TY2V01","*=Kostenverzamelstaat!$N$70","","Hulpmiddelen -Rtot- - geaccepteerd","zvkx08","a","","TY2V01"]
[null,null,null,null,"zvkx08_a640__TY0V01","*=Kostenverzamelstaat!$J$70","","Hulpmiddelen-- geaccepteerd","zvkx08","a640","","TY0V01"]
[null,null,null,null,"zvkx08_a640__TY1V01","*=Kostenverzamelstaat!$L$70","","Hulpmiddelen-- geaccepteerd","zvkx08","a640","","TY1V01"]
[null,null,null,null,"zvkx08_a640__TY2V01","*=Kostenverzamelstaat!$N$70","","Hulpmiddelen-- geaccepteerd","zvkx08","a640","","TY2V01"]
[null,null,null,null,"zvkx08_b640__TY0V01","*=Controleoverzicht!$L$61","","Hulpmiddelen-- balans","zvkx08","b640","","TY0V01"]
[null,null,null,null,"zvkx08_b640__TY1V01","*=Controleoverzicht!$K$61","","Hulpmiddelen-- balans","zvkx08","b640","","TY1V01"]
[null,null,null,null,"zvkx08_b640__TY2V01","*=Controleoverzicht!$J$61","","Hulpmiddelen-- balans","zvkx08","b640","","TY2V01"]
[null,null,null,null,"zvkx08_c__TY0V01","*=Kostenverzamelstaat!$I$70","","Hulpmiddelen -Rtot- - incl balans","zvkx08","c","","TY0V01"]
[null,null,null,null,"zvkx08_c__TY1V01","*=Kostenverzamelstaat!$K$70","","Hulpmiddelen -Rtot- - incl balans","zvkx08","c","","TY1V01"]
[null,null,null,null,"zvkx08_c__TY2V01","*=Kostenverzamelstaat!$M$70","","Hulpmiddelen -Rtot- - incl balans","zvkx08","c","","TY2V01"]
[null,null,null,null,"zvkx08_c640__TY0V01","*=Kostenverzamelstaat!$I$70","","Hulpmiddelen-- incl balans","zvkx08","c640","","TY0V01"]
[null,null,null,null,"zvkx08_c640__TY1V01","*=Kostenverzamelstaat!$K$70","","Hulpmiddelen-- incl balans","zvkx08","c640","","TY1V01"]
[null,null,null,null,"zvkx08_c640__TY2V01","*=Kostenverzamelstaat!$M$70","","Hulpmiddelen-- incl balans","zvkx08","c640","","TY2V01"]
[null,null,null,null,"zvkx09_a__TY0V01","*=Kostenverzamelstaat!$J$75","","Ziekenvervoer -Rtot- - geaccepteerd","zvkx09","a","","TY0V01"]
[null,null,null,null,"zvkx09_a__TY1V01","*=Kostenverzamelstaat!$L$75","","Ziekenvervoer -Rtot- - geaccepteerd","zvkx09","a","","TY1V01"]
[null,null,null,null,"zvkx09_a__TY2V01","*=Kostenverzamelstaat!$N$75","","Ziekenvervoer -Rtot- - geaccepteerd","zvkx09","a","","TY2V01"]
[null,null,null,null,"zvkx09_a650__TY0V01","*=Kostenverzamelstaat!$J$72","","Ziekenvervoer- ambulance/helicopter- geaccepteerd","zvkx09","a650","","TY0V01"]
[null,null,null,null,"zvkx09_a650__TY1V01","*=Kostenverzamelstaat!$L$72","","Ziekenvervoer- ambulance/helicopter- geaccepteerd","zvkx09","a650","","TY1V01"]
[null,null,null,null,"zvkx09_a650__TY2V01","*=Kostenverzamelstaat!$N$72","","Ziekenvervoer- ambulance/helicopter- geaccepteerd","zvkx09","a650","","TY2V01"]
[null,null,null,null,"zvkx09_a6501__TY0V01","*=Kostenverzamelstaat!$J$73","","Ziekenvervoer- regionale ambulance- geaccepteerd","zvkx09","a6501","","TY0V01"]
[null,null,null,null,"zvkx09_a6501__TY1V01","*=Kostenverzamelstaat!$L$73","","Ziekenvervoer- regionale ambulance- geaccepteerd","zvkx09","a6501","","TY1V01"]
[null,null,null,null,"zvkx09_a6501__TY2V01","*=Kostenverzamelstaat!$N$73","","Ziekenvervoer- regionale ambulance- geaccepteerd","zvkx09","a6501","","TY2V01"]
[null,null,null,null,"zvkx09_a651__TY0V01","*=Kostenverzamelstaat!$J$74","","Ziekenvervoer- ov, taxi en eigen auto- geaccepteerd","zvkx09","a651","","TY0V01"]
[null,null,null,null,"zvkx09_a651__TY1V01","*=Kostenverzamelstaat!$L$74","","Ziekenvervoer- ov, taxi en eigen auto- geaccepteerd","zvkx09","a651","","TY1V01"]
[null,null,null,null,"zvkx09_a651__TY2V01","*=Kostenverzamelstaat!$N$74","","Ziekenvervoer- ov, taxi en eigen auto- geaccepteerd","zvkx09","a651","","TY2V01"]
[null,null,null,null,"zvkx09_b650__TY0V01","*=Controleoverzicht!$L$62","","Ziekenvervoer- ambulance/helicopter- balans","zvkx09","b650","","TY0V01"]
[null,null,null,null,"zvkx09_b650__TY1V01","*=Controleoverzicht!$K$62","","Ziekenvervoer- ambulance/helicopter- balans","zvkx09","b650","","TY1V01"]
[null,null,null,null,"zvkx09_b650__TY2V01","*=Controleoverzicht!$J$62","","Ziekenvervoer- ambulance/helicopter- balans","zvkx09","b650","","TY2V01"]
[null,null,null,null,"zvkx09_b6501__TY0V01","*=Controleoverzicht!$L$63","","Ziekenvervoer- regionale ambulance- balans","zvkx09","b6501","","TY0V01"]
[null,null,null,null,"zvkx09_b6501__TY1V01","*=Controleoverzicht!$K$63","","Ziekenvervoer- regionale ambulance- balans","zvkx09","b6501","","TY1V01"]
[null,null,null,null,"zvkx09_b6501__TY2V01","*=Controleoverzicht!$J$63","","Ziekenvervoer- regionale ambulance- balans","zvkx09","b6501","","TY2V01"]
[null,null,null,null,"zvkx09_b651__TY0V01","*=Controleoverzicht!$L$64","","Ziekenvervoer- ov, taxi en eigen auto- balans","zvkx09","b651","","TY0V01"]
[null,null,null,null,"zvkx09_b651__TY1V01","*=Controleoverzicht!$K$64","","Ziekenvervoer- ov, taxi en eigen auto- balans","zvkx09","b651","","TY1V01"]
[null,null,null,null,"zvkx09_b651__TY2V01","*=Controleoverzicht!$J$64","","Ziekenvervoer- ov, taxi en eigen auto- balans","zvkx09","b651","","TY2V01"]
[null,null,null,null,"zvkx09_c__TY0V01","*=Kostenverzamelstaat!$I$75","","Ziekenvervoer -Rtot- - incl balans","zvkx09","c","","TY0V01"]
[null,null,null,null,"zvkx09_c__TY1V01","*=Kostenverzamelstaat!$K$75","","Ziekenvervoer -Rtot- - incl balans","zvkx09","c","","TY1V01"]
[null,null,null,null,"zvkx09_c__TY2V01","*=Kostenverzamelstaat!$M$75","","Ziekenvervoer -Rtot- - incl balans","zvkx09","c","","TY2V01"]
[null,null,null,null,"zvkx09_c650__TY0V01","*=Kostenverzamelstaat!$I$72","","Ziekenvervoer- ambulance/helicopter- incl balans","zvkx09","c650","","TY0V01"]
[null,null,null,null,"zvkx09_c650__TY1V01","*=Kostenverzamelstaat!$K$72","","Ziekenvervoer- ambulance/helicopter- incl balans","zvkx09","c650","","TY1V01"]
[null,null,null,null,"zvkx09_c650__TY2V01","*=Kostenverzamelstaat!$M$72","","Ziekenvervoer- ambulance/helicopter- incl balans","zvkx09","c650","","TY2V01"]
[null,null,null,null,"zvkx09_c6501__TY0V01","*=Kostenverzamelstaat!$I$73","","Ziekenvervoer- regionale ambulance- incl balans","zvkx09","c6501","","TY0V01"]
[null,null,null,null,"zvkx09_c6501__TY1V01","*=Kostenverzamelstaat!$K$73","","Ziekenvervoer- regionale ambulance- incl balans","zvkx09","c6501","","TY1V01"]
[null,null,null,null,"zvkx09_c6501__TY2V01","*=Kostenverzamelstaat!$M$73","","Ziekenvervoer- regionale ambulance- incl balans","zvkx09","c6501","","TY2V01"]
[null,null,null,null,"zvkx09_c651__TY0V01","*=Kostenverzamelstaat!$I$74","","Ziekenvervoer- ov, taxi en eigen auto- incl balans","zvkx09","c651","","TY0V01"]
[null,null,null,null,"zvkx09_c651__TY1V01","*=Kostenverzamelstaat!$K$74","","Ziekenvervoer- ov, taxi en eigen auto- incl balans","zvkx09","c651","","TY1V01"]
[null,null,null,null,"zvkx09_c651__TY2V01","*=Kostenverzamelstaat!$M$74","","Ziekenvervoer- ov, taxi en eigen auto- incl balans","zvkx09","c651","","TY2V01"]
[null,null,null,null,"zvkx10_a__TY0V01","*=Kostenverzamelstaat!$J$92","","Geneeskundige GGZ -Rtot- - geaccepteerd","zvkx10","a","","TY0V01"]
[null,null,null,null,"zvkx10_a__TY1V01","*=Kostenverzamelstaat!$L$92","","Geneeskundige GGZ -Rtot- - geaccepteerd","zvkx10","a","","TY1V01"]
[null,null,null,null,"zvkx10_a__TY2V01","*=Kostenverzamelstaat!$N$92","","Geneeskundige GGZ -Rtot- - geaccepteerd","zvkx10","a","","TY2V01"]
[null,null,null,null,"zvkx10_a661__TY0V01","*=Kostenverzamelstaat!$J$88","","Geneeskundige GGZ- GGZ met verblijf- geaccepteerd","zvkx10","a661","","TY0V01"]
[null,null,null,null,"zvkx10_a661__TY1V01","*=Kostenverzamelstaat!$L$88","","Geneeskundige GGZ- GGZ met verblijf- geaccepteerd","zvkx10","a661","","TY1V01"]
[null,null,null,null,"zvkx10_a661__TY2V01","*=Kostenverzamelstaat!$N$88","","Geneeskundige GGZ- GGZ met verblijf- geaccepteerd","zvkx10","a661","","TY2V01"]
[null,null,null,null,"zvkx10_a6611__TY0V01","*=Kostenverzamelstaat!$J$89","","Geneeskundige GGZ- GGZ jaar 2 en 3- geaccepteerd","zvkx10","a6611","","TY0V01"]
[null,null,null,null,"zvkx10_a6611__TY1V01","*=Kostenverzamelstaat!$L$89","","Geneeskundige GGZ- GGZ jaar 2 en 3- geaccepteerd","zvkx10","a6611","","TY1V01"]
[null,null,null,null,"zvkx10_a6611__TY2V01","*=Kostenverzamelstaat!$N$89","","Geneeskundige GGZ- GGZ jaar 2 en 3- geaccepteerd","zvkx10","a6611","","TY2V01"]
[null,null,null,null,"zvkx10_a662__TY0V01","*=Kostenverzamelstaat!$J$90","","Geneeskundige GGZ- GGZ zonder verblijf- geaccepteerd","zvkx10","a662","","TY0V01"]
[null,null,null,null,"zvkx10_a662__TY1V01","*=Kostenverzamelstaat!$L$90","","Geneeskundige GGZ- GGZ zonder verblijf- geaccepteerd","zvkx10","a662","","TY1V01"]
[null,null,null,null,"zvkx10_a662__TY2V01","*=Kostenverzamelstaat!$N$90","","Geneeskundige GGZ- GGZ zonder verblijf- geaccepteerd","zvkx10","a662","","TY2V01"]
[null,null,null,null,"zvkx10_a665__TY0V01","*=Kostenverzamelstaat!$J$91","","Geneeskundige GGZ- basis GGZ- geaccepteerd","zvkx10","a665","","TY0V01"]
[null,null,null,null,"zvkx10_a665__TY1V01","*=Kostenverzamelstaat!$L$91","","Geneeskundige GGZ- basis GGZ- geaccepteerd","zvkx10","a665","","TY1V01"]
[null,null,null,null,"zvkx10_a665__TY2V01","*=Kostenverzamelstaat!$N$91","","Geneeskundige GGZ- basis GGZ- geaccepteerd","zvkx10","a665","","TY2V01"]
[null,null,null,null,"zvkx10_b661__TY0V01","*=Controleoverzicht!$L$65","","Geneeskundige GGZ- GGZ met verblijf- balans","zvkx10","b661","","TY0V01"]
[null,null,null,null,"zvkx10_b661__TY1V01","*=Controleoverzicht!$K$65","","Geneeskundige GGZ- GGZ met verblijf- balans","zvkx10","b661","","TY1V01"]
[null,null,null,null,"zvkx10_b661__TY2V01","*=Controleoverzicht!$J$65","","Geneeskundige GGZ- GGZ met verblijf- balans","zvkx10","b661","","TY2V01"]
[null,null,null,null,"zvkx10_b6611__TY0V01","*=Controleoverzicht!$L$66","","Geneeskundige GGZ- GGZ jaar 2 en 3- balans","zvkx10","b6611","","TY0V01"]
[null,null,null,null,"zvkx10_b6611__TY1V01","*=Controleoverzicht!$K$66","","Geneeskundige GGZ- GGZ jaar 2 en 3- balans","zvkx10","b6611","","TY1V01"]
[null,null,null,null,"zvkx10_b6611__TY2V01","*=Controleoverzicht!$J$66","","Geneeskundige GGZ- GGZ jaar 2 en 3- balans","zvkx10","b6611","","TY2V01"]
[null,null,null,null,"zvkx10_b662__TY0V01","*=Controleoverzicht!$L$67","","Geneeskundige GGZ- GGZ zonder verblijf- balans","zvkx10","b662","","TY0V01"]
[null,null,null,null,"zvkx10_b662__TY1V01","*=Controleoverzicht!$K$67","","Geneeskundige GGZ- GGZ zonder verblijf- balans","zvkx10","b662","","TY1V01"]
[null,null,null,null,"zvkx10_b662__TY2V01","*=Controleoverzicht!$J$67","","Geneeskundige GGZ- GGZ zonder verblijf- balans","zvkx10","b662","","TY2V01"]
[null,null,null,null,"zvkx10_b665__TY0V01","*=Controleoverzicht!$L$68","","Geneeskundige GGZ- basis GGZ- balans","zvkx10","b665","","TY0V01"]
[null,null,null,null,"zvkx10_b665__TY1V01","*=Controleoverzicht!$K$68","","Geneeskundige GGZ- basis GGZ- balans","zvkx10","b665","","TY1V01"]
[null,null,null,null,"zvkx10_b665__TY2V01","*=Controleoverzicht!$J$68","","Geneeskundige GGZ- basis GGZ- balans","zvkx10","b665","","TY2V01"]
[null,null,null,null,"zvkx10_c__TY0V01","*=Kostenverzamelstaat!$I$92","","Geneeskundige GGZ -Rtot- - incl balans","zvkx10","c","","TY0V01"]
[null,null,null,null,"zvkx10_c__TY1V01","*=Kostenverzamelstaat!$K$92","","Geneeskundige GGZ -Rtot- - incl balans","zvkx10","c","","TY1V01"]
[null,null,null,null,"zvkx10_c__TY2V01","*=Kostenverzamelstaat!$M$92","","Geneeskundige GGZ -Rtot- - incl balans","zvkx10","c","","TY2V01"]
[null,null,null,null,"zvkx10_c661__TY0V01","*=Kostenverzamelstaat!$I$88","","Geneeskundige GGZ- GGZ met verblijf- incl balans","zvkx10","c661","","TY0V01"]
[null,null,null,null,"zvkx10_c661__TY1V01","*=Kostenverzamelstaat!$K$88","","Geneeskundige GGZ- GGZ met verblijf- incl balans","zvkx10","c661","","TY1V01"]
[null,null,null,null,"zvkx10_c661__TY2V01","*=Kostenverzamelstaat!$M$88","","Geneeskundige GGZ- GGZ met verblijf- incl balans","zvkx10","c661","","TY2V01"]
[null,null,null,null,"zvkx10_c6611__TY0V01","*=Kostenverzamelstaat!$I$89","","Geneeskundige GGZ- GGZ jaar 2 en 3- incl balans","zvkx10","c6611","","TY0V01"]
[null,null,null,null,"zvkx10_c6611__TY1V01","*=Kostenverzamelstaat!$K$89","","Geneeskundige GGZ- GGZ jaar 2 en 3- incl balans","zvkx10","c6611","","TY1V01"]
[null,null,null,null,"zvkx10_c6611__TY2V01","*=Kostenverzamelstaat!$M$89","","Geneeskundige GGZ- GGZ jaar 2 en 3- incl balans","zvkx10","c6611","","TY2V01"]
[null,null,null,null,"zvkx10_c662__TY0V01","*=Kostenverzamelstaat!$I$90","","Geneeskundige GGZ- GGZ zonder verblijf- incl balans","zvkx10","c662","","TY0V01"]
[null,null,null,null,"zvkx10_c662__TY1V01","*=Kostenverzamelstaat!$K$90","","Geneeskundige GGZ- GGZ zonder verblijf- incl balans","zvkx10","c662","","TY1V01"]
[null,null,null,null,"zvkx10_c662__TY2V01","*=Kostenverzamelstaat!$M$90","","Geneeskundige GGZ- GGZ zonder verblijf- incl balans","zvkx10","c662","","TY2V01"]
[null,null,null,null,"zvkx10_c665__TY0V01","*=Kostenverzamelstaat!$I$91","","Geneeskundige GGZ- basis GGZ- incl balans","zvkx10","c665","","TY0V01"]
[null,null,null,null,"zvkx10_c665__TY1V01","*=Kostenverzamelstaat!$K$91","","Geneeskundige GGZ- basis GGZ- incl balans","zvkx10","c665","","TY1V01"]
[null,null,null,null,"zvkx10_c665__TY2V01","*=Kostenverzamelstaat!$M$91","","Geneeskundige GGZ- basis GGZ- incl balans","zvkx10","c665","","TY2V01"]
[null,null,null,null,"zvkx11_a__TY0V01","*=Kostenverzamelstaat!$J$96","","Geriatische revalidatiezorg -Rtot- - geaccepteerd","zvkx11","a","","TY0V01"]
[null,null,null,null,"zvkx11_a__TY1V01","*=Kostenverzamelstaat!$L$96","","Geriatische revalidatiezorg -Rtot- - geaccepteerd","zvkx11","a","","TY1V01"]
[null,null,null,null,"zvkx11_a__TY2V01","*=Kostenverzamelstaat!$N$96","","Geriatische revalidatiezorg -Rtot- - geaccepteerd","zvkx11","a","","TY2V01"]
[null,null,null,null,"zvkx11_a670__TY0V01","*=Kostenverzamelstaat!$J$94","","Geriatische revalidatiezorg-- geaccepteerd","zvkx11","a670","","TY0V01"]
[null,null,null,null,"zvkx11_a670__TY1V01","*=Kostenverzamelstaat!$L$94","","Geriatische revalidatiezorg-- geaccepteerd","zvkx11","a670","","TY1V01"]
[null,null,null,null,"zvkx11_a670__TY2V01","*=Kostenverzamelstaat!$N$94","","Geriatische revalidatiezorg-- geaccepteerd","zvkx11","a670","","TY2V01"]
[null,null,null,null,"zvkx11_a671__TY0V01","*=Kostenverzamelstaat!$J$95","","Geriatische revalidatiezorg- Eerstelijnsverblijf- geaccepteerd","zvkx11","a671","","TY0V01"]
[null,null,null,null,"zvkx11_a671__TY1V01","*=Kostenverzamelstaat!$L$95","","Geriatische revalidatiezorg- Eerstelijnsverblijf- geaccepteerd","zvkx11","a671","","TY1V01"]
[null,null,null,null,"zvkx11_b670__TY0V01","*=Controleoverzicht!$L$69","","Geriatische revalidatiezorg-- balans","zvkx11","b670","","TY0V01"]
[null,null,null,null,"zvkx11_b670__TY1V01","*=Controleoverzicht!$K$69","","Geriatische revalidatiezorg-- balans","zvkx11","b670","","TY1V01"]
[null,null,null,null,"zvkx11_b670__TY2V01","*=Controleoverzicht!$J$69","","Geriatische revalidatiezorg-- balans","zvkx11","b670","","TY2V01"]
[null,null,null,null,"zvkx11_b671__TY0V01","*=Controleoverzicht!$L$70","","Geriatische revalidatiezorg- Eerstelijnsverblijf- balans","zvkx11","b671","","TY0V01"]
[null,null,null,null,"zvkx11_b671__TY1V01","*=Controleoverzicht!$K$70","","Geriatische revalidatiezorg- Eerstelijnsverblijf- balans","zvkx11","b671","","TY1V01"]
[null,null,null,null,"zvkx11_c__TY0V01","*=Kostenverzamelstaat!$I$96","","Geriatische revalidatiezorg -Rtot- - incl balans","zvkx11","c","","TY0V01"]
[null,null,null,null,"zvkx11_c__TY1V01","*=Kostenverzamelstaat!$K$96","","Geriatische revalidatiezorg -Rtot- - incl balans","zvkx11","c","","TY1V01"]
[null,null,null,null,"zvkx11_c__TY2V01","*=Kostenverzamelstaat!$M$96","","Geriatische revalidatiezorg -Rtot- - incl balans","zvkx11","c","","TY2V01"]
[null,null,null,null,"zvkx11_c670__TY0V01","*=Kostenverzamelstaat!$I$94","","Geriatische revalidatiezorg-- incl balans","zvkx11","c670","","TY0V01"]
[null,null,null,null,"zvkx11_c670__TY1V01","*=Kostenverzamelstaat!$K$94","","Geriatische revalidatiezorg-- incl balans","zvkx11","c670","","TY1V01"]
[null,null,null,null,"zvkx11_c670__TY2V01","*=Kostenverzamelstaat!$M$94","","Geriatische revalidatiezorg-- incl balans","zvkx11","c670","","TY2V01"]
[null,null,null,null,"zvkx11_c671__TY0V01","*=Kostenverzamelstaat!$I$95","","Geriatische revalidatiezorg- Eerstelijnsverblijf- incl balans","zvkx11","c671","","TY0V01"]
[null,null,null,null,"zvkx11_c671__TY1V01","*=Kostenverzamelstaat!$K$95","","Geriatische revalidatiezorg- Eerstelijnsverblijf- incl balans","zvkx11","c671","","TY1V01"]
[null,null,null,null,"zvkx12_a__TY0V01","*=Kostenverzamelstaat!$J$98","","Kraamzorg -Rtot- - geaccepteerd","zvkx12","a","","TY0V01"]
[null,null,null,null,"zvkx12_a__TY1V01","*=Kostenverzamelstaat!$L$98","","Kraamzorg -Rtot- - geaccepteerd","zvkx12","a","","TY1V01"]
[null,null,null,null,"zvkx12_a__TY2V01","*=Kostenverzamelstaat!$N$98","","Kraamzorg -Rtot- - geaccepteerd","zvkx12","a","","TY2V01"]
[null,null,null,null,"zvkx12_a680__TY0V01","*=Kostenverzamelstaat!$J$98","","Kraamzorg-- geaccepteerd","zvkx12","a680","","TY0V01"]
[null,null,null,null,"zvkx12_a680__TY1V01","*=Kostenverzamelstaat!$L$98","","Kraamzorg-- geaccepteerd","zvkx12","a680","","TY1V01"]
[null,null,null,null,"zvkx12_a680__TY2V01","*=Kostenverzamelstaat!$N$98","","Kraamzorg-- geaccepteerd","zvkx12","a680","","TY2V01"]
[null,null,null,null,"zvkx12_b680__TY0V01","*=Controleoverzicht!$L$71","","Kraamzorg-- balans","zvkx12","b680","","TY0V01"]
[null,null,null,null,"zvkx12_b680__TY1V01","*=Controleoverzicht!$K$71","","Kraamzorg-- balans","zvkx12","b680","","TY1V01"]
[null,null,null,null,"zvkx12_b680__TY2V01","*=Controleoverzicht!$J$71","","Kraamzorg-- balans","zvkx12","b680","","TY2V01"]
[null,null,null,null,"zvkx12_c__TY0V01","*=Kostenverzamelstaat!$I$98","","Kraamzorg -Rtot- - incl balans","zvkx12","c","","TY0V01"]
[null,null,null,null,"zvkx12_c__TY1V01","*=Kostenverzamelstaat!$K$98","","Kraamzorg -Rtot- - incl balans","zvkx12","c","","TY1V01"]
[null,null,null,null,"zvkx12_c__TY2V01","*=Kostenverzamelstaat!$M$98","","Kraamzorg -Rtot- - incl balans","zvkx12","c","","TY2V01"]
[null,null,null,null,"zvkx12_c680__TY0V01","*=Kostenverzamelstaat!$I$98","","Kraamzorg-- incl balans","zvkx12","c680","","TY0V01"]
[null,null,null,null,"zvkx12_c680__TY1V01","*=Kostenverzamelstaat!$K$98","","Kraamzorg-- incl balans","zvkx12","c680","","TY1V01"]
[null,null,null,null,"zvkx12_c680__TY2V01","*=Kostenverzamelstaat!$M$98","","Kraamzorg-- incl balans","zvkx12","c680","","TY2V01"]
[null,null,null,null,"zvkx13_a__TY0V01","*=Kostenverzamelstaat!$J$103","","Overige kosten -Rtot- - geaccepteerd","zvkx13","a","","TY0V01"]
[null,null,null,null,"zvkx13_a__TY1V01","*=Kostenverzamelstaat!$L$103","","Overige kosten -Rtot- - geaccepteerd","zvkx13","a","","TY1V01"]
[null,null,null,null,"zvkx13_a__TY2V01","*=Kostenverzamelstaat!$N$103","","Overige kosten -Rtot- - geaccepteerd","zvkx13","a","","TY2V01"]
[null,null,null,null,"zvkx13_a700__TY0V01","*=Kostenverzamelstaat!$J$100","","Overige kosten-- geaccepteerd","zvkx13","a700","","TY0V01"]
[null,null,null,null,"zvkx13_a700__TY1V01","*=Kostenverzamelstaat!$L$100","","Overige kosten-- geaccepteerd","zvkx13","a700","","TY1V01"]
[null,null,null,null,"zvkx13_a700__TY2V01","*=Kostenverzamelstaat!$N$100","","Overige kosten-- geaccepteerd","zvkx13","a700","","TY2V01"]
[null,null,null,null,"zvkx13_a701__TY0V01","*=Kostenverzamelstaat!$J$101","","Overige kosten- geneeskundige zorg- geaccepteerd","zvkx13","a701","","TY0V01"]
[null,null,null,null,"zvkx13_a701__TY1V01","*=Kostenverzamelstaat!$L$101","","Overige kosten- geneeskundige zorg- geaccepteerd","zvkx13","a701","","TY1V01"]
[null,null,null,null,"zvkx13_a701__TY2V01","*=Kostenverzamelstaat!$N$101","","Overige kosten- geneeskundige zorg- geaccepteerd","zvkx13","a701","","TY2V01"]
[null,null,null,null,"zvkx13_a702__TY0V01","*=Kostenverzamelstaat!$J$102","","Overige kosten- zintuiglijk gehandicapten- geaccepteerd","zvkx13","a702","","TY0V01"]
[null,null,null,null,"zvkx13_a702__TY1V01","*=Kostenverzamelstaat!$L$102","","Overige kosten- zintuiglijk gehandicapten- geaccepteerd","zvkx13","a702","","TY1V01"]
[null,null,null,null,"zvkx13_a702__TY2V01","*=Kostenverzamelstaat!$N$102","","Overige kosten- zintuiglijk gehandicapten- geaccepteerd","zvkx13","a702","","TY2V01"]
[null,null,null,null,"zvkx13_b700__TY0V01","*=Controleoverzicht!$L$72","","Overige kosten-- balans","zvkx13","b700","","TY0V01"]
[null,null,null,null,"zvkx13_b700__TY1V01","*=Controleoverzicht!$K$72","","Overige kosten-- balans","zvkx13","b700","","TY1V01"]
[null,null,null,null,"zvkx13_b700__TY2V01","*=Controleoverzicht!$J$72","","Overige kosten-- balans","zvkx13","b700","","TY2V01"]
[null,null,null,null,"zvkx13_b701__TY0V01","*=Controleoverzicht!$L$73","","Overige kosten- geneeskundige zorg- balans","zvkx13","b701","","TY0V01"]
[null,null,null,null,"zvkx13_b701__TY1V01","*=Controleoverzicht!$K$73","","Overige kosten- geneeskundige zorg- balans","zvkx13","b701","","TY1V01"]
[null,null,null,null,"zvkx13_b701__TY2V01","*=Controleoverzicht!$J$73","","Overige kosten- geneeskundige zorg- balans","zvkx13","b701","","TY2V01"]
[null,null,null,null,"zvkx13_b702__TY0V01","*=Controleoverzicht!$L$74","","Overige kosten- zintuiglijk gehandicapten- balans","zvkx13","b702","","TY0V01"]
[null,null,null,null,"zvkx13_b702__TY1V01","*=Controleoverzicht!$K$74","","Overige kosten- zintuiglijk gehandicapten- balans","zvkx13","b702","","TY1V01"]
[null,null,null,null,"zvkx13_b702__TY2V01","*=Controleoverzicht!$J$74","","Overige kosten- zintuiglijk gehandicapten- balans","zvkx13","b702","","TY2V01"]
[null,null,null,null,"zvkx13_c__TY0V01","*=Kostenverzamelstaat!$I$103","","Overige kosten -Rtot- - incl balans","zvkx13","c","","TY0V01"]
[null,null,null,null,"zvkx13_c__TY1V01","*=Kostenverzamelstaat!$K$103","","Overige kosten -Rtot- - incl balans","zvkx13","c","","TY1V01"]
[null,null,null,null,"zvkx13_c__TY2V01","*=Kostenverzamelstaat!$M$103","","Overige kosten -Rtot- - incl balans","zvkx13","c","","TY2V01"]
[null,null,null,null,"zvkx13_c700__TY0V01","*=Kostenverzamelstaat!$I$100","","Overige kosten-- incl balans","zvkx13","c700","","TY0V01"]
[null,null,null,null,"zvkx13_c700__TY1V01","*=Kostenverzamelstaat!$K$100","","Overige kosten-- incl balans","zvkx13","c700","","TY1V01"]
[null,null,null,null,"zvkx13_c700__TY2V01","*=Kostenverzamelstaat!$M$100","","Overige kosten-- incl balans","zvkx13","c700","","TY2V01"]
[null,null,null,null,"zvkx13_c701__TY0V01","*=Kostenverzamelstaat!$I$101","","Overige kosten- geneeskundige zorg- incl balans","zvkx13","c701","","TY0V01"]
[null,null,null,null,"zvkx13_c701__TY1V01","*=Kostenverzamelstaat!$K$101","","Overige kosten- geneeskundige zorg- incl balans","zvkx13","c701","","TY1V01"]
[null,null,null,null,"zvkx13_c701__TY2V01","*=Kostenverzamelstaat!$M$101","","Overige kosten- geneeskundige zorg- incl balans","zvkx13","c701","","TY2V01"]
[null,null,null,null,"zvkx13_c702__TY0V01","*=Kostenverzamelstaat!$I$102","","Overige kosten- zintuiglijk gehandicapten- incl balans","zvkx13","c702","","TY0V01"]
[null,null,null,null,"zvkx13_c702__TY1V01","*=Kostenverzamelstaat!$K$102","","Overige kosten- zintuiglijk gehandicapten- incl balans","zvkx13","c702","","TY1V01"]
[null,null,null,null,"zvkx13_c702__TY2V01","*=Kostenverzamelstaat!$M$102","","Overige kosten- zintuiglijk gehandicapten- incl balans","zvkx13","c702","","TY2V01"]
[null,null,null,null,"zvkx15_a__TY0V01","*=Kostenverzamelstaat!$J$107","","Grensoverschrijdende zorg -Rtot- - geaccepteerd","zvkx15","a","","TY0V01"]
[null,null,null,null,"zvkx15_a__TY1V01","*=Kostenverzamelstaat!$L$107","","Grensoverschrijdende zorg -Rtot- - geaccepteerd","zvkx15","a","","TY1V01"]
[null,null,null,null,"zvkx15_a__TY2V01","*=Kostenverzamelstaat!$N$107","","Grensoverschrijdende zorg -Rtot- - geaccepteerd","zvkx15","a","","TY2V01"]
[null,null,null,null,"zvkx15_a720__TY0V01","*=Kostenverzamelstaat!$J$105","","Grensoverschrijdende zorg- via verzekeraar- geaccepteerd","zvkx15","a720","","TY0V01"]
[null,null,null,null,"zvkx15_a720__TY1V01","*=Kostenverzamelstaat!$L$105","","Grensoverschrijdende zorg- via verzekeraar- geaccepteerd","zvkx15","a720","","TY1V01"]
[null,null,null,null,"zvkx15_a720__TY2V01","*=Kostenverzamelstaat!$N$105","","Grensoverschrijdende zorg- via verzekeraar- geaccepteerd","zvkx15","a720","","TY2V01"]
[null,null,null,null,"zvkx15_a721__TY0V01","*=Kostenverzamelstaat!$J$106","","Grensoverschrijdende zorg- via verbindingsorgaan- geaccepteerd","zvkx15","a721","","TY0V01"]
[null,null,null,null,"zvkx15_a721__TY1V01","*=Kostenverzamelstaat!$L$106","","Grensoverschrijdende zorg- via verbindingsorgaan- geaccepteerd","zvkx15","a721","","TY1V01"]
[null,null,null,null,"zvkx15_a721__TY2V01","*=Kostenverzamelstaat!$N$106","","Grensoverschrijdende zorg- via verbindingsorgaan- geaccepteerd","zvkx15","a721","","TY2V01"]
[null,null,null,null,"zvkx15_b720__TY0V01","*=Controleoverzicht!$L$75","","Grensoverschrijdende zorg- *- balans","zvkx15","b720","","TY0V01"]
[null,null,null,null,"zvkx15_b720__TY1V01","*=Controleoverzicht!$K$75","","Grensoverschrijdende zorg- *- balans","zvkx15","b720","","TY1V01"]
[null,null,null,null,"zvkx15_b720__TY2V01","*=Controleoverzicht!$J$75","","Grensoverschrijdende zorg- *- balans","zvkx15","b720","","TY2V01"]
[null,null,null,null,"zvkx15_b721__TY0V01","*=Controleoverzicht!$L$76","","Grensoverschrijdende zorg- via verbindingsorgaan- balans","zvkx15","b721","","TY0V01"]
[null,null,null,null,"zvkx15_b721__TY1V01","*=Controleoverzicht!$K$76","","Grensoverschrijdende zorg- via verbindingsorgaan- balans","zvkx15","b721","","TY1V01"]
[null,null,null,null,"zvkx15_b721__TY2V01","*=Controleoverzicht!$J$76","","Grensoverschrijdende zorg- via verbindingsorgaan- balans","zvkx15","b721","","TY2V01"]
[null,null,null,null,"zvkx15_c__TY0V01","*=Kostenverzamelstaat!$I$107","","Grensoverschrijdende zorg -Rtot- - incl balans","zvkx15","c","","TY0V01"]
[null,null,null,null,"zvkx15_c__TY1V01","*=Kostenverzamelstaat!$K$107","","Grensoverschrijdende zorg -Rtot- - incl balans","zvkx15","c","","TY1V01"]
[null,null,null,null,"zvkx15_c__TY2V01","*=Kostenverzamelstaat!$M$107","","Grensoverschrijdende zorg -Rtot- - incl balans","zvkx15","c","","TY2V01"]
[null,null,null,null,"zvkx15_c720__TY0V01","*=Kostenverzamelstaat!$I$105","","Grensoverschrijdende zorg- via verzekeraar- incl balans","zvkx15","c720","","TY0V01"]
[null,null,null,null,"zvkx15_c720__TY1V01","*=Kostenverzamelstaat!$K$105","","Grensoverschrijdende zorg- via verzekeraar- incl balans","zvkx15","c720","","TY1V01"]
[null,null,null,null,"zvkx15_c720__TY2V01","*=Kostenverzamelstaat!$M$105","","Grensoverschrijdende zorg- via verzekeraar- incl balans","zvkx15","c720","","TY2V01"]
[null,null,null,null,"zvkx15_c721__TY0V01","*=Kostenverzamelstaat!$I$106","","Grensoverschrijdende zorg- via verbindingsorgaan- incl balans","zvkx15","c721","","TY0V01"]
[null,null,null,null,"zvkx15_c721__TY1V01","*=Kostenverzamelstaat!$K$106","","Grensoverschrijdende zorg- via verbindingsorgaan- incl balans","zvkx15","c721","","TY1V01"]
[null,null,null,null,"zvkx15_c721__TY2V01","*=Kostenverzamelstaat!$M$106","","Grensoverschrijdende zorg- via verbindingsorgaan- incl balans","zvkx15","c721","","TY2V01"]
[null,null,null,null,"zvkx16_a__TY0V01","*=Kostenverzamelstaat!$J$109","","Kwaliteitsgelden -Rtot- - geaccepteerd","zvkx16","a","","TY0V01"]
[null,null,null,null,"zvkx16_a__TY1V01","*=Kostenverzamelstaat!$L$109","","Kwaliteitsgelden -Rtot- - geaccepteerd","zvkx16","a","","TY1V01"]
[null,null,null,null,"zvkx16_a__TY2V01","*=Kostenverzamelstaat!$N$109","","Kwaliteitsgelden -Rtot- - geaccepteerd","zvkx16","a","","TY2V01"]
[null,null,null,null,"zvkx16_a730__TY0V01","*=Kostenverzamelstaat!$J$109","","Kwaliteitsgelden-- geaccepteerd","zvkx16","a730","","TY0V01"]
[null,null,null,null,"zvkx16_a730__TY1V01","*=Kostenverzamelstaat!$L$109","","Kwaliteitsgelden-- geaccepteerd","zvkx16","a730","","TY1V01"]
[null,null,null,null,"zvkx16_a730__TY2V01","*=Kostenverzamelstaat!$N$109","","Kwaliteitsgelden-- geaccepteerd","zvkx16","a730","","TY2V01"]
[null,null,null,null,"zvkx16_b730__TY0V01","*=Controleoverzicht!$L$77","","Kwaliteitsgelden-- balans","zvkx16","b730","","TY0V01"]
[null,null,null,null,"zvkx16_b730__TY1V01","*=Controleoverzicht!$K$77","","Kwaliteitsgelden-- balans","zvkx16","b730","","TY1V01"]
[null,null,null,null,"zvkx16_b730__TY2V01","*=Controleoverzicht!$J$77","","Kwaliteitsgelden-- balans","zvkx16","b730","","TY2V01"]
[null,null,null,null,"zvkx16_c__TY0V01","*=Kostenverzamelstaat!$I$109","","Kwaliteitsgelden -Rtot- - incl balans","zvkx16","c","","TY0V01"]
[null,null,null,null,"zvkx16_c__TY1V01","*=Kostenverzamelstaat!$K$109","","Kwaliteitsgelden -Rtot- - incl balans","zvkx16","c","","TY1V01"]
[null,null,null,null,"zvkx16_c__TY2V01","*=Kostenverzamelstaat!$M$109","","Kwaliteitsgelden -Rtot- - incl balans","zvkx16","c","","TY2V01"]
[null,null,null,null,"zvkx16_c730__TY0V01","*=Kostenverzamelstaat!$I$109","","Kwaliteitsgelden-- incl balans","zvkx16","c730","","TY0V01"]
[null,null,null,null,"zvkx16_c730__TY1V01","*=Kostenverzamelstaat!$K$109","","Kwaliteitsgelden-- incl balans","zvkx16","c730","","TY1V01"]
[null,null,null,null,"zvkx16_c730__TY2V01","*=Kostenverzamelstaat!$M$109","","Kwaliteitsgelden-- incl balans","zvkx16","c730","","TY2V01"]
[null,null,null,null,"zvkxdnb_a8901__TY0V01","*=Kostenverzamelstaat!$J$122","","Verschilposten DNB- Opbrengsten verhaal- geaccepteerd","zvkxdnb","a8901","","TY0V01"]
[null,null,null,null,"zvkxdnb_a8901__TY1V01","*=Kostenverzamelstaat!$L$122","","Verschilposten DNB- Opbrengsten verhaal- geaccepteerd","zvkxdnb","a8901","","TY1V01"]
[null,null,null,null,"zvkxdnb_a8901__TY2V01","*=Kostenverzamelstaat!$N$122","","Verschilposten DNB- Opbrengsten verhaal- geaccepteerd","zvkxdnb","a8901","","TY2V01"]
[null,null,null,null,"zvkxdnb_a910__TY0V01","*=Kostenverzamelstaat!$J$123","","Verschilposten DNB- Schade tlv het vrijwillig eigen risico- geaccepteerd","zvkxdnb","a910","","TY0V01"]
[null,null,null,null,"zvkxdnb_a910__TY1V01","*=Kostenverzamelstaat!$L$123","","Verschilposten DNB- Schade tlv het vrijwillig eigen risico- geaccepteerd","zvkxdnb","a910","","TY1V01"]
[null,null,null,null,"zvkxdnb_a910__TY2V01","*=Kostenverzamelstaat!$N$123","","Verschilposten DNB- Schade tlv het vrijwillig eigen risico- geaccepteerd","zvkxdnb","a910","","TY2V01"]
[null,null,null,null,"zvkxdnb_a915__TY0V01","*=Kostenverzamelstaat!$J$124","","Verschilposten DNB- Schade tlv het verplicht eigen risico- geaccepteerd","zvkxdnb","a915","","TY0V01"]
[null,null,null,null,"zvkxdnb_a915__TY1V01","*=Kostenverzamelstaat!$L$124","","Verschilposten DNB- Schade tlv het verplicht eigen risico- geaccepteerd","zvkxdnb","a915","","TY1V01"]
[null,null,null,null,"zvkxdnb_a915__TY2V01","*=Kostenverzamelstaat!$N$124","","Verschilposten DNB- Schade tlv het verplicht eigen risico- geaccepteerd","zvkxdnb","a915","","TY2V01"]
[null,null,null,null,"zvkxdnb_a940__TY0V01","*=Kostenverzamelstaat!$J$125","","Verschilposten DNB- Netto Premieopbrengsten- geaccepteerd","zvkxdnb","a940","","TY0V01"]
[null,null,null,null,"zvkxdnb_a940__TY1V01","*=Kostenverzamelstaat!$L$125","","Verschilposten DNB- Netto Premieopbrengsten- geaccepteerd","zvkxdnb","a940","","TY1V01"]
[null,null,null,null,"zvkxdnb_a940__TY2V01","*=Kostenverzamelstaat!$N$125","","Verschilposten DNB- Netto Premieopbrengsten- geaccepteerd","zvkxdnb","a940","","TY2V01"]
[null,null,null,null,"zvkxdnb_c8901__TY0V01","*=Kostenverzamelstaat!$I$122","","Verschilposten DNB- Opbrengsten verhaal- incl balans","zvkxdnb","c8901","","TY0V01"]
[null,null,null,null,"zvkxdnb_c8901__TY1V01","*=Kostenverzamelstaat!$K$122","","Verschilposten DNB- Opbrengsten verhaal- incl balans","zvkxdnb","c8901","","TY1V01"]
[null,null,null,null,"zvkxdnb_c8901__TY2V01","*=Kostenverzamelstaat!$M$122","","Verschilposten DNB- Opbrengsten verhaal- incl balans","zvkxdnb","c8901","","TY2V01"]
[null,null,null,null,"zvkxdnb_c910__TY0V01","*=Kostenverzamelstaat!$I$123","","Verschilposten DNB- Schade tlv het vrijwillig eigen risico- incl balans","zvkxdnb","c910","","TY0V01"]
[null,null,null,null,"zvkxdnb_c910__TY1V01","*=Kostenverzamelstaat!$K$123","","Verschilposten DNB- Schade tlv het vrijwillig eigen risico- incl balans","zvkxdnb","c910","","TY1V01"]
[null,null,null,null,"zvkxdnb_c910__TY2V01","*=Kostenverzamelstaat!$M$123","","Verschilposten DNB- Schade tlv het vrijwillig eigen risico- incl balans","zvkxdnb","c910","","TY2V01"]
[null,null,null,null,"zvkxdnb_c915__TY0V01","*=Kostenverzamelstaat!$I$124","","Verschilposten DNB- Schade tlv het verplicht eigen risico- incl balans","zvkxdnb","c915","","TY0V01"]
[null,null,null,null,"zvkxdnb_c915__TY1V01","*=Kostenverzamelstaat!$K$124","","Verschilposten DNB- Schade tlv het verplicht eigen risico- incl balans","zvkxdnb","c915","","TY1V01"]
[null,null,null,null,"zvkxdnb_c915__TY2V01","*=Kostenverzamelstaat!$M$124","","Verschilposten DNB- Schade tlv het verplicht eigen risico- incl balans","zvkxdnb","c915","","TY2V01"]
[null,null,null,null,"zvkxdnb_c940__TY0V01","*=Kostenverzamelstaat!$I$125","","Verschilposten DNB- Netto Premieopbrengsten- incl balans","zvkxdnb","c940","","TY0V01"]
[null,null,null,null,"zvkxdnb_c940__TY1V01","*=Kostenverzamelstaat!$K$125","","Verschilposten DNB- Netto Premieopbrengsten- incl balans","zvkxdnb","c940","","TY1V01"]
[null,null,null,null,"zvkxdnb_c940__TY2V01","*=Kostenverzamelstaat!$M$125","","Verschilposten DNB- Netto Premieopbrengsten- incl balans","zvkxdnb","c940","","TY2V01"]
[null,null,null,null,"zvpxlft_m981_lft_m11V01","*='Specifieke informatie A'!$J$79","","Verzekerden risicoklasse - Man","zvpxlft","m981","lft","m11V01"]
[null,null,null,null,"zvpxlft_m981_lft_m12V01","*='Specifieke informatie A'!$J$124","","Verzekerden risicoklasse - Man","zvpxlft","m981","lft","m12V01"]
[null,null,null,null,"zvpxlft_m981_lft01a_m11V01","*='Specifieke informatie A'!$J$59","","Verzekerden risicoklasse- 00 t/m 01- man","zvpxlft","m981","lft01a","m11V01"]
[null,null,null,null,"zvpxlft_m981_lft01a_m12V01","*='Specifieke informatie A'!$J$104","","Verzekerden risicoklasse- 00 t/m 01- man","zvpxlft","m981","lft01a","m12V01"]
[null,null,null,null,"zvpxlft_m981_lft01b_m11V01","*='Specifieke informatie A'!$J$60","","Verzekerden risicoklasse- 02 t/m 04- man","zvpxlft","m981","lft01b","m11V01"]
[null,null,null,null,"zvpxlft_m981_lft01b_m12V01","*='Specifieke informatie A'!$J$105","","Verzekerden risicoklasse- 02 t/m 04- man","zvpxlft","m981","lft01b","m12V01"]
[null,null,null,null,"zvpxlft_m981_lft02_m11V01","*='Specifieke informatie A'!$J$61","","Verzekerden risicoklasse- 05 t/m 09- man","zvpxlft","m981","lft02","m11V01"]
[null,null,null,null,"zvpxlft_m981_lft02_m12V01","*='Specifieke informatie A'!$J$106","","Verzekerden risicoklasse- 05 t/m 09- man","zvpxlft","m981","lft02","m12V01"]
[null,null,null,null,"zvpxlft_m981_lft03_m11V01","*='Specifieke informatie A'!$J$62","","Verzekerden risicoklasse- 10 t/m 14- man","zvpxlft","m981","lft03","m11V01"]
[null,null,null,null,"zvpxlft_m981_lft03_m12V01","*='Specifieke informatie A'!$J$107","","Verzekerden risicoklasse- 10 t/m 14- man","zvpxlft","m981","lft03","m12V01"]
[null,null,null,null,"zvpxlft_m981_lft04_m11V01","*='Specifieke informatie A'!$J$63","","Verzekerden risicoklasse- 15 t/m 19- man","zvpxlft","m981","lft04","m11V01"]
[null,null,null,null,"zvpxlft_m981_lft04_m12V01","*='Specifieke informatie A'!$J$108","","Verzekerden risicoklasse- 15 t/m 19- man","zvpxlft","m981","lft04","m12V01"]
[null,null,null,null,"zvpxlft_m981_lft05_m11V01","*='Specifieke informatie A'!$J$64","","Verzekerden risicoklasse- 20 t/m 24- man","zvpxlft","m981","lft05","m11V01"]
[null,null,null,null,"zvpxlft_m981_lft05_m12V01","*='Specifieke informatie A'!$J$109","","Verzekerden risicoklasse- 20 t/m 24- man","zvpxlft","m981","lft05","m12V01"]
[null,null,null,null,"zvpxlft_m981_lft06_m11V01","*='Specifieke informatie A'!$J$65","","Verzekerden risicoklasse- 25 t/m 29- man","zvpxlft","m981","lft06","m11V01"]
[null,null,null,null,"zvpxlft_m981_lft06_m12V01","*='Specifieke informatie A'!$J$110","","Verzekerden risicoklasse- 25 t/m 29- man","zvpxlft","m981","lft06","m12V01"]
[null,null,null,null,"zvpxlft_m981_lft07_m11V01","*='Specifieke informatie A'!$J$66","","Verzekerden risicoklasse- 30 t/m 34- man","zvpxlft","m981","lft07","m11V01"]
[null,null,null,null,"zvpxlft_m981_lft07_m12V01","*='Specifieke informatie A'!$J$111","","Verzekerden risicoklasse- 30 t/m 34- man","zvpxlft","m981","lft07","m12V01"]
[null,null,null,null,"zvpxlft_m981_lft08_m11V01","*='Specifieke informatie A'!$J$67","","Verzekerden risicoklasse- 35 t/m 39- man","zvpxlft","m981","lft08","m11V01"]
[null,null,null,null,"zvpxlft_m981_lft08_m12V01","*='Specifieke informatie A'!$J$112","","Verzekerden risicoklasse- 35 t/m 39- man","zvpxlft","m981","lft08","m12V01"]
[null,null,null,null,"zvpxlft_m981_lft09_m11V01","*='Specifieke informatie A'!$J$68","","Verzekerden risicoklasse- 40 t/m 44- man","zvpxlft","m981","lft09","m11V01"]
[null,null,null,null,"zvpxlft_m981_lft09_m12V01","*='Specifieke informatie A'!$J$113","","Verzekerden risicoklasse- 40 t/m 44- man","zvpxlft","m981","lft09","m12V01"]
[null,null,null,null,"zvpxlft_m981_lft10_m11V01","*='Specifieke informatie A'!$J$69","","Verzekerden risicoklasse- 45 t/m 49- man","zvpxlft","m981","lft10","m11V01"]
[null,null,null,null,"zvpxlft_m981_lft10_m12V01","*='Specifieke informatie A'!$J$114","","Verzekerden risicoklasse- 45 t/m 49- man","zvpxlft","m981","lft10","m12V01"]
[null,null,null,null,"zvpxlft_m981_lft11_m11V01","*='Specifieke informatie A'!$J$70","","Verzekerden risicoklasse- 50 t/m 54- man","zvpxlft","m981","lft11","m11V01"]
[null,null,null,null,"zvpxlft_m981_lft11_m12V01","*='Specifieke informatie A'!$J$115","","Verzekerden risicoklasse- 50 t/m 54- man","zvpxlft","m981","lft11","m12V01"]
[null,null,null,null,"zvpxlft_m981_lft12_m11V01","*='Specifieke informatie A'!$J$71","","Verzekerden risicoklasse- 55 t/m 59- man","zvpxlft","m981","lft12","m11V01"]
[null,null,null,null,"zvpxlft_m981_lft12_m12V01","*='Specifieke informatie A'!$J$116","","Verzekerden risicoklasse- 55 t/m 59- man","zvpxlft","m981","lft12","m12V01"]
[null,null,null,null,"zvpxlft_m981_lft13_m11V01","*='Specifieke informatie A'!$J$72","","Verzekerden risicoklasse- 60 t/m 64- man","zvpxlft","m981","lft13","m11V01"]
[null,null,null,null,"zvpxlft_m981_lft13_m12V01","*='Specifieke informatie A'!$J$117","","Verzekerden risicoklasse- 60 t/m 64- man","zvpxlft","m981","lft13","m12V01"]
[null,null,null,null,"zvpxlft_m981_lft14_m11V01","*='Specifieke informatie A'!$J$73","","Verzekerden risicoklasse- 65 t/m 69- man","zvpxlft","m981","lft14","m11V01"]
[null,null,null,null,"zvpxlft_m981_lft14_m12V01","*='Specifieke informatie A'!$J$118","","Verzekerden risicoklasse- 65 t/m 69- man","zvpxlft","m981","lft14","m12V01"]
[null,null,null,null,"zvpxlft_m981_lft15_m11V01","*='Specifieke informatie A'!$J$74","","Verzekerden risicoklasse- 70 t/m 74- man","zvpxlft","m981","lft15","m11V01"]
[null,null,null,null,"zvpxlft_m981_lft15_m12V01","*='Specifieke informatie A'!$J$119","","Verzekerden risicoklasse- 70 t/m 74- man","zvpxlft","m981","lft15","m12V01"]
[null,null,null,null,"zvpxlft_m981_lft16_m11V01","*='Specifieke informatie A'!$J$75","","Verzekerden risicoklasse- 75 t/m 79- man","zvpxlft","m981","lft16","m11V01"]
[null,null,null,null,"zvpxlft_m981_lft16_m12V01","*='Specifieke informatie A'!$J$120","","Verzekerden risicoklasse- 75 t/m 79- man","zvpxlft","m981","lft16","m12V01"]
[null,null,null,null,"zvpxlft_m981_lft17_m11V01","*='Specifieke informatie A'!$J$76","","Verzekerden risicoklasse- 80 t/m 84- man","zvpxlft","m981","lft17","m11V01"]
[null,null,null,null,"zvpxlft_m981_lft17_m12V01","*='Specifieke informatie A'!$J$121","","Verzekerden risicoklasse- 80 t/m 84- man","zvpxlft","m981","lft17","m12V01"]
[null,null,null,null,"zvpxlft_m981_lft18_m11V01","*='Specifieke informatie A'!$J$77","","Verzekerden risicoklasse- 85 t/m 89- man","zvpxlft","m981","lft18","m11V01"]
[null,null,null,null,"zvpxlft_m981_lft18_m12V01","*='Specifieke informatie A'!$J$122","","Verzekerden risicoklasse- 85 t/m 89- man","zvpxlft","m981","lft18","m12V01"]
[null,null,null,null,"zvpxlft_m981_lft19_m11V01","*='Specifieke informatie A'!$J$78","","Verzekerden risicoklasse- 90 en ouder- man","zvpxlft","m981","lft19","m11V01"]
[null,null,null,null,"zvpxlft_m981_lft19_m12V01","*='Specifieke informatie A'!$J$123","","Verzekerden risicoklasse- 90 en ouder- man","zvpxlft","m981","lft19","m12V01"]
[null,null,null,null,"zvpxlft_s981_lft_m11V01","*='Specifieke informatie A'!$L$79","","Verzekerden risicoklasse","zvpxlft","s981","lft","m11V01"]
[null,null,null,null,"zvpxlft_s981_lft_m12V01","*='Specifieke informatie A'!$L$124","","Verzekerden risicoklasse","zvpxlft","s981","lft","m12V01"]
[null,null,null,null,"zvpxlft_s981_lft01a_m11V01","*='Specifieke informatie A'!$L$59","","Verzekerden risicoklasse -00 t/m 01","zvpxlft","s981","lft01a","m11V01"]
[null,null,null,null,"zvpxlft_s981_lft01a_m12V01","*='Specifieke informatie A'!$L$104","","Verzekerden risicoklasse -00 t/m 01","zvpxlft","s981","lft01a","m12V01"]
[null,null,null,null,"zvpxlft_s981_lft01b_m11V01","*='Specifieke informatie A'!$L$60","","Verzekerden risicoklasse -02 t/m 04","zvpxlft","s981","lft01b","m11V01"]
[null,null,null,null,"zvpxlft_s981_lft01b_m12V01","*='Specifieke informatie A'!$L$105","","Verzekerden risicoklasse -02 t/m 04","zvpxlft","s981","lft01b","m12V01"]
[null,null,null,null,"zvpxlft_s981_lft02_m11V01","*='Specifieke informatie A'!$L$61","","Verzekerden risicoklasse -05 t/m 09","zvpxlft","s981","lft02","m11V01"]
[null,null,null,null,"zvpxlft_s981_lft02_m12V01","*='Specifieke informatie A'!$L$106","","Verzekerden risicoklasse -05 t/m 09","zvpxlft","s981","lft02","m12V01"]
[null,null,null,null,"zvpxlft_s981_lft03_m11V01","*='Specifieke informatie A'!$L$62","","Verzekerden risicoklasse -10 t/m 14","zvpxlft","s981","lft03","m11V01"]
[null,null,null,null,"zvpxlft_s981_lft03_m12V01","*='Specifieke informatie A'!$L$107","","Verzekerden risicoklasse -10 t/m 14","zvpxlft","s981","lft03","m12V01"]
[null,null,null,null,"zvpxlft_s981_lft04_m11V01","*='Specifieke informatie A'!$L$63","","Verzekerden risicoklasse -15 t/m 19","zvpxlft","s981","lft04","m11V01"]
[null,null,null,null,"zvpxlft_s981_lft04_m12V01","*='Specifieke informatie A'!$L$108","","Verzekerden risicoklasse -15 t/m 19","zvpxlft","s981","lft04","m12V01"]
[null,null,null,null,"zvpxlft_s981_lft05_m11V01","*='Specifieke informatie A'!$L$64","","Verzekerden risicoklasse -20 t/m 24","zvpxlft","s981","lft05","m11V01"]
[null,null,null,null,"zvpxlft_s981_lft05_m12V01","*='Specifieke informatie A'!$L$109","","Verzekerden risicoklasse -20 t/m 24","zvpxlft","s981","lft05","m12V01"]
[null,null,null,null,"zvpxlft_s981_lft06_m11V01","*='Specifieke informatie A'!$L$65","","Verzekerden risicoklasse -25 t/m 29","zvpxlft","s981","lft06","m11V01"]
[null,null,null,null,"zvpxlft_s981_lft06_m12V01","*='Specifieke informatie A'!$L$110","","Verzekerden risicoklasse -25 t/m 29","zvpxlft","s981","lft06","m12V01"]
[null,null,null,null,"zvpxlft_s981_lft07_m11V01","*='Specifieke informatie A'!$L$66","","Verzekerden risicoklasse -30 t/m 34","zvpxlft","s981","lft07","m11V01"]
[null,null,null,null,"zvpxlft_s981_lft07_m12V01","*='Specifieke informatie A'!$L$111","","Verzekerden risicoklasse -30 t/m 34","zvpxlft","s981","lft07","m12V01"]
[null,null,null,null,"zvpxlft_s981_lft08_m11V01","*='Specifieke informatie A'!$L$67","","Verzekerden risicoklasse -35 t/m 39","zvpxlft","s981","lft08","m11V01"]
[null,null,null,null,"zvpxlft_s981_lft08_m12V01","*='Specifieke informatie A'!$L$112","","Verzekerden risicoklasse -35 t/m 39","zvpxlft","s981","lft08","m12V01"]
[null,null,null,null,"zvpxlft_s981_lft09_m11V01","*='Specifieke informatie A'!$L$68","","Verzekerden risicoklasse -40 t/m 44","zvpxlft","s981","lft09","m11V01"]
[null,null,null,null,"zvpxlft_s981_lft09_m12V01","*='Specifieke informatie A'!$L$113","","Verzekerden risicoklasse -40 t/m 44","zvpxlft","s981","lft09","m12V01"]
[null,null,null,null,"zvpxlft_s981_lft10_m11V01","*='Specifieke informatie A'!$L$69","","Verzekerden risicoklasse -45 t/m 49","zvpxlft","s981","lft10","m11V01"]
[null,null,null,null,"zvpxlft_s981_lft10_m12V01","*='Specifieke informatie A'!$L$114","","Verzekerden risicoklasse -45 t/m 49","zvpxlft","s981","lft10","m12V01"]
[null,null,null,null,"zvpxlft_s981_lft11_m11V01","*='Specifieke informatie A'!$L$70","","Verzekerden risicoklasse -50 t/m 54","zvpxlft","s981","lft11","m11V01"]
[null,null,null,null,"zvpxlft_s981_lft11_m12V01","*='Specifieke informatie A'!$L$115","","Verzekerden risicoklasse -50 t/m 54","zvpxlft","s981","lft11","m12V01"]
[null,null,null,null,"zvpxlft_s981_lft12_m11V01","*='Specifieke informatie A'!$L$71","","Verzekerden risicoklasse -55 t/m 59","zvpxlft","s981","lft12","m11V01"]
[null,null,null,null,"zvpxlft_s981_lft12_m12V01","*='Specifieke informatie A'!$L$116","","Verzekerden risicoklasse -55 t/m 59","zvpxlft","s981","lft12","m12V01"]
[null,null,null,null,"zvpxlft_s981_lft13_m11V01","*='Specifieke informatie A'!$L$72","","Verzekerden risicoklasse -60 t/m 64","zvpxlft","s981","lft13","m11V01"]
[null,null,null,null,"zvpxlft_s981_lft13_m12V01","*='Specifieke informatie A'!$L$117","","Verzekerden risicoklasse -60 t/m 64","zvpxlft","s981","lft13","m12V01"]
[null,null,null,null,"zvpxlft_s981_lft14_m11V01","*='Specifieke informatie A'!$L$73","","Verzekerden risicoklasse -65 t/m 69","zvpxlft","s981","lft14","m11V01"]
[null,null,null,null,"zvpxlft_s981_lft14_m12V01","*='Specifieke informatie A'!$L$118","","Verzekerden risicoklasse -65 t/m 69","zvpxlft","s981","lft14","m12V01"]
[null,null,null,null,"zvpxlft_s981_lft15_m11V01","*='Specifieke informatie A'!$L$74","","Verzekerden risicoklasse -70 t/m 74","zvpxlft","s981","lft15","m11V01"]
[null,null,null,null,"zvpxlft_s981_lft15_m12V01","*='Specifieke informatie A'!$L$119","","Verzekerden risicoklasse -70 t/m 74","zvpxlft","s981","lft15","m12V01"]
[null,null,null,null,"zvpxlft_s981_lft16_m11V01","*='Specifieke informatie A'!$L$75","","Verzekerden risicoklasse -75 t/m 79","zvpxlft","s981","lft16","m11V01"]
[null,null,null,null,"zvpxlft_s981_lft16_m12V01","*='Specifieke informatie A'!$L$120","","Verzekerden risicoklasse -75 t/m 79","zvpxlft","s981","lft16","m12V01"]
[null,null,null,null,"zvpxlft_s981_lft17_m11V01","*='Specifieke informatie A'!$L$76","","Verzekerden risicoklasse -80 t/m 84","zvpxlft","s981","lft17","m11V01"]
[null,null,null,null,"zvpxlft_s981_lft17_m12V01","*='Specifieke informatie A'!$L$121","","Verzekerden risicoklasse -80 t/m 84","zvpxlft","s981","lft17","m12V01"]
[null,null,null,null,"zvpxlft_s981_lft18_m11V01","*='Specifieke informatie A'!$L$77","","Verzekerden risicoklasse -85 t/m 89","zvpxlft","s981","lft18","m11V01"]
[null,null,null,null,"zvpxlft_s981_lft18_m12V01","*='Specifieke informatie A'!$L$122","","Verzekerden risicoklasse -85 t/m 89","zvpxlft","s981","lft18","m12V01"]
[null,null,null,null,"zvpxlft_s981_lft19_m11V01","*='Specifieke informatie A'!$L$78","","Verzekerden risicoklasse -90 en ouder","zvpxlft","s981","lft19","m11V01"]
[null,null,null,null,"zvpxlft_s981_lft19_m12V01","*='Specifieke informatie A'!$L$123","","Verzekerden risicoklasse -90 en ouder","zvpxlft","s981","lft19","m12V01"]
[null,null,null,null,"zvpxlft_v981_lft_m11V01","*='Specifieke informatie A'!$K$79","","Verzekerden risicoklasse - Vrouw","zvpxlft","v981","lft","m11V01"]
[null,null,null,null,"zvpxlft_v981_lft_m12V01","*='Specifieke informatie A'!$K$124","","Verzekerden risicoklasse - Vrouw","zvpxlft","v981","lft","m12V01"]
[null,null,null,null,"zvpxlft_v981_lft01a_m11V01","*='Specifieke informatie A'!$K$59","","Verzekerden risicoklasse- 00 t/m 01- vrouw","zvpxlft","v981","lft01a","m11V01"]
[null,null,null,null,"zvpxlft_v981_lft01a_m12V01","*='Specifieke informatie A'!$K$104","","Verzekerden risicoklasse- 00 t/m 01- vrouw","zvpxlft","v981","lft01a","m12V01"]
[null,null,null,null,"zvpxlft_v981_lft01b_m11V01","*='Specifieke informatie A'!$K$60","","Verzekerden risicoklasse- 02 t/m 04- vrouw","zvpxlft","v981","lft01b","m11V01"]
[null,null,null,null,"zvpxlft_v981_lft01b_m12V01","*='Specifieke informatie A'!$K$105","","Verzekerden risicoklasse- 02 t/m 04- vrouw","zvpxlft","v981","lft01b","m12V01"]
[null,null,null,null,"zvpxlft_v981_lft02_m11V01","*='Specifieke informatie A'!$K$61","","Verzekerden risicoklasse- 05 t/m 09- vrouw","zvpxlft","v981","lft02","m11V01"]
[null,null,null,null,"zvpxlft_v981_lft02_m12V01","*='Specifieke informatie A'!$K$106","","Verzekerden risicoklasse- 05 t/m 09- vrouw","zvpxlft","v981","lft02","m12V01"]
[null,null,null,null,"zvpxlft_v981_lft03_m11V01","*='Specifieke informatie A'!$K$62","","Verzekerden risicoklasse- 10 t/m 14- vrouw","zvpxlft","v981","lft03","m11V01"]
[null,null,null,null,"zvpxlft_v981_lft03_m12V01","*='Specifieke informatie A'!$K$107","","Verzekerden risicoklasse- 10 t/m 14- vrouw","zvpxlft","v981","lft03","m12V01"]
[null,null,null,null,"zvpxlft_v981_lft04_m11V01","*='Specifieke informatie A'!$K$63","","Verzekerden risicoklasse- 15 t/m 19- vrouw","zvpxlft","v981","lft04","m11V01"]
[null,null,null,null,"zvpxlft_v981_lft04_m12V01","*='Specifieke informatie A'!$K$108","","Verzekerden risicoklasse- 15 t/m 19- vrouw","zvpxlft","v981","lft04","m12V01"]
[null,null,null,null,"zvpxlft_v981_lft05_m11V01","*='Specifieke informatie A'!$K$64","","Verzekerden risicoklasse- 20 t/m 24- vrouw","zvpxlft","v981","lft05","m11V01"]
[null,null,null,null,"zvpxlft_v981_lft05_m12V01","*='Specifieke informatie A'!$K$109","","Verzekerden risicoklasse- 20 t/m 24- vrouw","zvpxlft","v981","lft05","m12V01"]
[null,null,null,null,"zvpxlft_v981_lft06_m11V01","*='Specifieke informatie A'!$K$65","","Verzekerden risicoklasse- 25 t/m 29- vrouw","zvpxlft","v981","lft06","m11V01"]
[null,null,null,null,"zvpxlft_v981_lft06_m12V01","*='Specifieke informatie A'!$K$110","","Verzekerden risicoklasse- 25 t/m 29- vrouw","zvpxlft","v981","lft06","m12V01"]
[null,null,null,null,"zvpxlft_v981_lft07_m11V01","*='Specifieke informatie A'!$K$66","","Verzekerden risicoklasse- 30 t/m 34- vrouw","zvpxlft","v981","lft07","m11V01"]
[null,null,null,null,"zvpxlft_v981_lft07_m12V01","*='Specifieke informatie A'!$K$111","","Verzekerden risicoklasse- 30 t/m 34- vrouw","zvpxlft","v981","lft07","m12V01"]
[null,null,null,null,"zvpxlft_v981_lft08_m11V01","*='Specifieke informatie A'!$K$67","","Verzekerden risicoklasse- 35 t/m 39- vrouw","zvpxlft","v981","lft08","m11V01"]
[null,null,null,null,"zvpxlft_v981_lft08_m12V01","*='Specifieke informatie A'!$K$112","","Verzekerden risicoklasse- 35 t/m 39- vrouw","zvpxlft","v981","lft08","m12V01"]
[null,null,null,null,"zvpxlft_v981_lft09_m11V01","*='Specifieke informatie A'!$K$68","","Verzekerden risicoklasse- 40 t/m 44- vrouw","zvpxlft","v981","lft09","m11V01"]
[null,null,null,null,"zvpxlft_v981_lft09_m12V01","*='Specifieke informatie A'!$K$113","","Verzekerden risicoklasse- 40 t/m 44- vrouw","zvpxlft","v981","lft09","m12V01"]
[null,null,null,null,"zvpxlft_v981_lft10_m11V01","*='Specifieke informatie A'!$K$69","","Verzekerden risicoklasse- 45 t/m 49- vrouw","zvpxlft","v981","lft10","m11V01"]
[null,null,null,null,"zvpxlft_v981_lft10_m12V01","*='Specifieke informatie A'!$K$114","","Verzekerden risicoklasse- 45 t/m 49- vrouw","zvpxlft","v981","lft10","m12V01"]
[null,null,null,null,"zvpxlft_v981_lft11_m11V01","*='Specifieke informatie A'!$K$70","","Verzekerden risicoklasse- 50 t/m 54- vrouw","zvpxlft","v981","lft11","m11V01"]
[null,null,null,null,"zvpxlft_v981_lft11_m12V01","*='Specifieke informatie A'!$K$115","","Verzekerden risicoklasse- 50 t/m 54- vrouw","zvpxlft","v981","lft11","m12V01"]
[null,null,null,null,"zvpxlft_v981_lft12_m11V01","*='Specifieke informatie A'!$K$71","","Verzekerden risicoklasse- 55 t/m 59- vrouw","zvpxlft","v981","lft12","m11V01"]
[null,null,null,null,"zvpxlft_v981_lft12_m12V01","*='Specifieke informatie A'!$K$116","","Verzekerden risicoklasse- 55 t/m 59- vrouw","zvpxlft","v981","lft12","m12V01"]
[null,null,null,null,"zvpxlft_v981_lft13_m11V01","*='Specifieke informatie A'!$K$72","","Verzekerden risicoklasse- 60 t/m 64- vrouw","zvpxlft","v981","lft13","m11V01"]
[null,null,null,null,"zvpxlft_v981_lft13_m12V01","*='Specifieke informatie A'!$K$117","","Verzekerden risicoklasse- 60 t/m 64- vrouw","zvpxlft","v981","lft13","m12V01"]
[null,null,null,null,"zvpxlft_v981_lft14_m11V01","*='Specifieke informatie A'!$K$73","","Verzekerden risicoklasse- 65 t/m 69- vrouw","zvpxlft","v981","lft14","m11V01"]
[null,null,null,null,"zvpxlft_v981_lft14_m12V01","*='Specifieke informatie A'!$K$118","","Verzekerden risicoklasse- 65 t/m 69- vrouw","zvpxlft","v981","lft14","m12V01"]
[null,null,null,null,"zvpxlft_v981_lft15_m11V01","*='Specifieke informatie A'!$K$74","","Verzekerden risicoklasse- 70 t/m 74- vrouw","zvpxlft","v981","lft15","m11V01"]
[null,null,null,null,"zvpxlft_v981_lft15_m12V01","*='Specifieke informatie A'!$K$119","","Verzekerden risicoklasse- 70 t/m 74- vrouw","zvpxlft","v981","lft15","m12V01"]
[null,null,null,null,"zvpxlft_v981_lft16_m11V01","*='Specifieke informatie A'!$K$75","","Verzekerden risicoklasse- 75 t/m 79- vrouw","zvpxlft","v981","lft16","m11V01"]
[null,null,null,null,"zvpxlft_v981_lft16_m12V01","*='Specifieke informatie A'!$K$120","","Verzekerden risicoklasse- 75 t/m 79- vrouw","zvpxlft","v981","lft16","m12V01"]
[null,null,null,null,"zvpxlft_v981_lft17_m11V01","*='Specifieke informatie A'!$K$76","","Verzekerden risicoklasse- 80 t/m 84- vrouw","zvpxlft","v981","lft17","m11V01"]
[null,null,null,null,"zvpxlft_v981_lft17_m12V01","*='Specifieke informatie A'!$K$121","","Verzekerden risicoklasse- 80 t/m 84- vrouw","zvpxlft","v981","lft17","m12V01"]
[null,null,null,null,"zvpxlft_v981_lft18_m11V01","*='Specifieke informatie A'!$K$77","","Verzekerden risicoklasse- 85 t/m 89- vrouw","zvpxlft","v981","lft18","m11V01"]
[null,null,null,null,"zvpxlft_v981_lft18_m12V01","*='Specifieke informatie A'!$K$122","","Verzekerden risicoklasse- 85 t/m 89- vrouw","zvpxlft","v981","lft18","m12V01"]
[null,null,null,null,"zvpxlft_v981_lft19_m11V01","*='Specifieke informatie A'!$K$78","","Verzekerden risicoklasse- 90 en ouder- vrouw","zvpxlft","v981","lft19","m11V01"]
[null,null,null,null,"zvpxlft_v981_lft19_m12V01","*='Specifieke informatie A'!$K$123","","Verzekerden risicoklasse- 90 en ouder- vrouw","zvpxlft","v981","lft19","m12V01"]
[null,null,null,null,"zvpxprm_s981_nom_m11V01","*='Specifieke informatie A'!$L$86","","Verzekerden premiekenmerk- met en zonder nominale premie ZVW","zvpxprm","s981","nom","m11V01"]
[null,null,null,null,"zvpxprm_s981_nom_m12V01","*='Specifieke informatie A'!$L$131","","Verzekerden premiekenmerk- met en zonder nominale premie ZVW","zvpxprm","s981","nom","m12V01"]
[null,null,null,null,"zvpxprm_s981_nomn_m11V01","*='Specifieke informatie A'!$L$85","","Verzekerden premiekenmerk- zonder nominale premie ZVW","zvpxprm","s981","nomn","m11V01"]
[null,null,null,null,"zvpxprm_s981_nomn_m12V01","*='Specifieke informatie A'!$L$130","","Verzekerden premiekenmerk- zonder nominale premie ZVW","zvpxprm","s981","nomn","m12V01"]
[null,null,null,null,"zvpxprm_s981_nomy_m11V01","*='Specifieke informatie A'!$L$84","","Verzekerden premiekenmerk- met nominale premie ZVW","zvpxprm","s981","nomy","m11V01"]
[null,null,null,null,"zvpxprm_s981_nomy_m12V01","*='Specifieke informatie A'!$L$129","","Verzekerden premiekenmerk- met nominale premie ZVW","zvpxprm","s981","nomy","m12V01"]
[null,null,null,null,"zvpxwnb_s982_d2m_m10V01","*=Wanbetalers!$I$12","","Wanbetalers- achterstand 2 of 3 maanden","zvpxwnb","s982","d2m","m10V01"]
[null,null,null,null,"zvpxwnb_s982_d2m_m11V01","*=Wanbetalers!$J$12","","Wanbetalers- achterstand 2 of 3 maanden","zvpxwnb","s982","d2m","m11V01"]
[null,null,null,null,"zvpxwnb_s982_d2m_m12V01","*=Wanbetalers!$K$12","","Wanbetalers- achterstand 2 of 3 maanden","zvpxwnb","s982","d2m","m12V01"]
[null,null,null,null,"zvpxwnb_s982_d4m_m10V01","*=Wanbetalers!$I$13","","Wanbetalers- achterstand 4 of 5 maanden","zvpxwnb","s982","d4m","m10V01"]
[null,null,null,null,"zvpxwnb_s982_d4m_m11V01","*=Wanbetalers!$J$13","","Wanbetalers- achterstand 4 of 5 maanden","zvpxwnb","s982","d4m","m11V01"]
[null,null,null,null,"zvpxwnb_s982_d4m_m12V01","*=Wanbetalers!$K$13","","Wanbetalers- achterstand 4 of 5 maanden","zvpxwnb","s982","d4m","m12V01"]
[null,null,null,null,"zvpxwnb_s982_d6m_m10V01","*=Wanbetalers!$I$14","","Wanbetalers- achterstand 6 of meer maanden","zvpxwnb","s982","d6m","m10V01"]
[null,null,null,null,"zvpxwnb_s982_d6m_m11V01","*=Wanbetalers!$J$14","","Wanbetalers- achterstand 6 of meer maanden","zvpxwnb","s982","d6m","m11V01"]
[null,null,null,null,"zvpxwnb_s982_d6m_m12V01","*=Wanbetalers!$K$14","","Wanbetalers- achterstand 6 of meer maanden","zvpxwnb","s982","d6m","m12V01"]
[null,null,null,null,"zvpxwnb_s982_dm2b_m10V01","*=Wanbetalers!$I$17","","Wanbetalers- tweedemaandsbrieven","zvpxwnb","s982","dm2b","m10V01"]
[null,null,null,null,"zvpxwnb_s982_dm2b_m11V01","*=Wanbetalers!$J$17","","Wanbetalers- tweedemaandsbrieven","zvpxwnb","s982","dm2b","m11V01"]
[null,null,null,null,"zvpxwnb_s982_dm2b_m12V01","*=Wanbetalers!$K$17","","Wanbetalers- tweedemaandsbrieven","zvpxwnb","s982","dm2b","m12V01"]
[null,null,null,null,"zvpxwnb_s982_dm4b_m10V01","*=Wanbetalers!$I$18","","Wanbetalers- vierdemaandsbrieven","zvpxwnb","s982","dm4b","m10V01"]
[null,null,null,null,"zvpxwnb_s982_dm4b_m11V01","*=Wanbetalers!$J$18","","Wanbetalers- vierdemaandsbrieven","zvpxwnb","s982","dm4b","m11V01"]
[null,null,null,null,"zvpxwnb_s982_dm4b_m12V01","*=Wanbetalers!$K$18","","Wanbetalers- vierdemaandsbrieven","zvpxwnb","s982","dm4b","m12V01"]
[null,null,null,null,"zvpxwnb_s982_dr0e_m10V01","*=Wanbetalers!$I$22","","Wanbetalers- externe betalingsregeling","zvpxwnb","s982","dr0e","m10V01"]
[null,null,null,null,"zvpxwnb_s982_dr0e_m11V01","*=Wanbetalers!$J$22","","Wanbetalers- externe betalingsregeling","zvpxwnb","s982","dr0e","m11V01"]
[null,null,null,null,"zvpxwnb_s982_dr0e_m12V01","*=Wanbetalers!$K$22","","Wanbetalers- externe betalingsregeling","zvpxwnb","s982","dr0e","m12V01"]
[null,null,null,null,"zvpxwnb_s982_dr0i_m10V01","*=Wanbetalers!$I$21","","Wanbetalers- interne betalingsregeling","zvpxwnb","s982","dr0i","m10V01"]
[null,null,null,null,"zvpxwnb_s982_dr0i_m11V01","*=Wanbetalers!$J$21","","Wanbetalers- interne betalingsregeling","zvpxwnb","s982","dr0i","m11V01"]
[null,null,null,null,"zvpxwnb_s982_dr0i_m12V01","*=Wanbetalers!$K$21","","Wanbetalers- interne betalingsregeling","zvpxwnb","s982","dr0i","m12V01"]
[null,null,null,null,"zvpxwnb_s982_dr0s_m10V01","*=Wanbetalers!$I$23","","Wanbetalers- stabilisatieovereenkomst","zvpxwnb","s982","dr0s","m10V01"]
[null,null,null,null,"zvpxwnb_s982_dr0s_m11V01","*=Wanbetalers!$J$23","","Wanbetalers- stabilisatieovereenkomst","zvpxwnb","s982","dr0s","m11V01"]
[null,null,null,null,"zvpxwnb_s982_dr0s_m12V01","*=Wanbetalers!$K$23","","Wanbetalers- stabilisatieovereenkomst","zvpxwnb","s982","dr0s","m12V01"]
[null,null,null,null,"zvpxwnb_s982_dr81_m10V01","*=Wanbetalers!$I$26","","Wanbetalers- cak bdr < 250","zvpxwnb","s982","dr81","m10V01"]
[null,null,null,null,"zvpxwnb_s982_dr81_m11V01","*=Wanbetalers!$J$26","","Wanbetalers- cak bdr < 250","zvpxwnb","s982","dr81","m11V01"]
[null,null,null,null,"zvpxwnb_s982_dr81_m12V01","*=Wanbetalers!$K$26","","Wanbetalers- cak bdr < 250","zvpxwnb","s982","dr81","m12V01"]
[null,null,null,null,"zvpxwnb_s982_dr82_m10V01","*=Wanbetalers!$I$27","","Wanbetalers- cak 250 < bdr < 750","zvpxwnb","s982","dr82","m10V01"]
[null,null,null,null,"zvpxwnb_s982_dr82_m11V01","*=Wanbetalers!$J$27","","Wanbetalers- cak 250 < bdr < 750","zvpxwnb","s982","dr82","m11V01"]
[null,null,null,null,"zvpxwnb_s982_dr82_m12V01","*=Wanbetalers!$K$27","","Wanbetalers- cak 250 < bdr < 750","zvpxwnb","s982","dr82","m12V01"]
[null,null,null,null,"zvpxwnb_s982_dr83_m10V01","*=Wanbetalers!$I$28","","Wanbetalers- cak 750 < bdr","zvpxwnb","s982","dr83","m10V01"]
[null,null,null,null,"zvpxwnb_s982_dr83_m11V01","*=Wanbetalers!$J$28","","Wanbetalers- cak 750 < bdr","zvpxwnb","s982","dr83","m11V01"]
[null,null,null,null,"zvpxwnb_s982_dr83_m12V01","*=Wanbetalers!$K$28","","Wanbetalers- cak 750 < bdr","zvpxwnb","s982","dr83","m12V01"]
[null,null,null,null,"zvrxsg_c978_dl_TY0V01","*='Specifieke informatie A'!$L$17","","Kosten naar deelbijdrage -Totaal","zvrxsg","c978","dl","TY0V01"]
[null,null,null,null,"zvrxsg_c978_dl101_TY0V01","*='Specifieke informatie A'!$L$14","","Kosten naar deelbijdrage- Variabele zorgkosten- incl balans","zvrxsg","c978","dl101","TY0V01"]
[null,null,null,null,"zvrxsg_c978_dl102_TY0V01","*='Specifieke informatie A'!$L$15","","Kosten naar deelbijdrage- Vaste zorgkosten- incl balans","zvrxsg","c978","dl102","TY0V01"]
[null,null,null,null,"zvrxsg_c978_dl152_TY0V01","*='Specifieke informatie A'!$L$16","","Kosten naar deelbijdrage- Geneeskundige GGZ- incl balans","zvrxsg","c978","dl152","TY0V01"]
[null,null,null,null,"zvsx01k_a503_ma_TY0V01","*='Specifieke informatie C'!$L$13","","C503 Huisartsen zorg- achterstandsfonds- geaccepteerd","zvsx01k","a503","ma","TY0V01"]
[null,null,null,null,"zvsx01k_a503_mi_TY0V01","*='Specifieke informatie C'!$L$14","","C503 Huisartsen zorg- modernisering en innovatie- geaccepteerd","zvsx01k","a503","mi","TY0V01"]
[null,null,null,null,"zvsx01k_a503_o_TY0V01","*='Specifieke informatie C'!$L$15","","C503 Huisartsen zorg- Overige kosten- geaccepteerd","zvsx01k","a503","o","TY0V01"]
[null,null,null,null,"zvsx01k_a506_c520_TY0V01","*='Specifieke informatie C'!$L$21","","C506 Huisartsen consult- consulten - van 5 tot 20 m- geaccepteerd","zvsx01k","a506","c520","TY0V01"]
[null,null,null,null,"zvsx01k_a506_ck05_TY0V01","*='Specifieke informatie C'!$L$20","","C506 Huisartsen consult- consulten - korter dan 5 m- geaccepteerd","zvsx01k","a506","ck05","TY0V01"]
[null,null,null,null,"zvsx01k_a506_cl20_TY0V01","*='Specifieke informatie C'!$L$22","","C506 Huisartsen consult- consulten - 20 m en langer- geaccepteerd","zvsx01k","a506","cl20","TY0V01"]
[null,null,null,null,"zvsx01k_a506_ei_TY0V01","*='Specifieke informatie C'!$L$26","","C506 Huisartsen consult- ELV en Intensieve- geaccepteerd","zvsx01k","a506","ei","TY0V01"]
[null,null,null,null,"zvsx01k_a506_pggz_TY0V01","*='Specifieke informatie C'!$L$25","","C506 Huisartsen consult- POH GGZ- geaccepteerd","zvsx01k","a506","pggz","TY0V01"]
[null,null,null,null,"zvsx01k_a506_vk20_TY0V01","*='Specifieke informatie C'!$L$23","","C506 Huisartsen consult- visite minder of gelijk aan 20 m- geaccepteerd","zvsx01k","a506","vk20","TY0V01"]
[null,null,null,null,"zvsx01k_a506_vl20_TY0V01","*='Specifieke informatie C'!$L$24","","C506 Huisartsen consult- visite langer dan 20 m- geaccepteerd","zvsx01k","a506","vl20","TY0V01"]
[null,null,null,null,"zvsx01k_a507_pggz_TY0V01","*='Specifieke informatie C'!$L$31","","C507 Huisartsen overig- Module POH GGZ- geaccepteerd","zvsx01k","a507","pggz","TY0V01"]
[null,null,null,null,"zvsx01k_a507_psnt_TY0V01","*='Specifieke informatie C'!$L$34","","C507 Huisartsen overig- Passantentarieven- geaccepteerd","zvsx01k","a507","psnt","TY0V01"]
[null,null,null,null,"zvsx01k_a507_s1vr_TY0V01","*='Specifieke informatie C'!$L$32","","C507 Huisartsen overig- S1 Verrichtingen- geaccepteerd","zvsx01k","a507","s1vr","TY0V01"]
[null,null,null,null,"zvsx01k_a507_vacc_TY0V01","*='Specifieke informatie C'!$L$33","","C507 Huisartsen overig- Vaccinaties- geaccepteerd","zvsx01k","a507","vacc","TY0V01"]
[null,null,null,null,"zvsx01k_a507_vrlk_TY0V01","*='Specifieke informatie C'!$L$35","","C507 Huisartsen overig- verloskundige zorg- geaccepteerd","zvsx01k","a507","vrlk","TY0V01"]
[null,null,null,null,"zvsx01k_a510_astm_TY0V01","*='Specifieke informatie C'!$L$41","","C510 MDZ- COPD (vergoedingscomponent) en astma- geaccepteerd","zvsx01k","a510","astm","TY0V01"]
[null,null,null,null,"zvsx01k_a510_dbca_TY0V01","*='Specifieke informatie C'!$L$40","","C510 MDZ- Diabetes type 2 en Cardiovasculair- geaccepteerd","zvsx01k","a510","dbca","TY0V01"]
[null,null,null,null,"zvsx01k_a510_infr_TY0V01","*='Specifieke informatie C'!$L$42","","C510 MDZ- Ondersteuning en infrastructuur- geaccepteerd","zvsx01k","a510","infr","TY0V01"]
[null,null,null,null,"zvsx01k_a510_srk_TY0V01","*='Specifieke informatie C'!$L$43","","C510 MDZ- stoppen met roken- geaccepteerd","zvsx01k","a510","srk","TY0V01"]
[null,null,null,null,"zvsx01k_a515_rslt_TY0V01","*='Specifieke informatie C'!$L$55","","C515 Resultaatbeloning en zorgvernieuwing huisartsen- resultaatbeloning- geaccepteerd","zvsx01k","a515","rslt","TY0V01"]
[null,null,null,null,"zvsx01k_a515_vrnw_TY0V01","*='Specifieke informatie C'!$L$56","","C515 Resultaatbeloning en zorgvernieuwing huisartsen- zorgvernieuwing- geaccepteerd","zvsx01k","a515","vrnw","TY0V01"]
[null,null,null,null,"zvsx01k_a516_rslt_TY0V01","*='Specifieke informatie C'!$L$61","","C516 Resultaatbeloning en zorgvernieuwing MDZ- resultaatbeloning- geaccepteerd","zvsx01k","a516","rslt","TY0V01"]
[null,null,null,null,"zvsx01k_a516_vrnw_TY0V01","*='Specifieke informatie C'!$L$62","","C516 Resultaatbeloning en zorgvernieuwing MDZ- zorgvernieuwing- geaccepteerd","zvsx01k","a516","vrnw","TY0V01"]
[null,null,null,null,"zvsx03i_n530_jidg_TY0V01","*='Specifieke informatie C'!$L$82","","C530 Verpleging en verzorging- verpleging- (n) geteld","zvsx03i","n530","jidg","TY0V01"]
[null,null,null,null,"zvsx03i_n530_jplg_TY0V01","*='Specifieke informatie C'!$L$83","","C530 Verpleging en verzorging- verzorging- (n) geteld","zvsx03i","n530","jplg","TY0V01"]
[null,null,null,null,"zvsx03i_n530_pgb_TY0V01","*='Specifieke informatie C'!$L$81","","C530 Verpleging en verzorging- PGB- (n) geteld","zvsx03i","n530","pgb","TY0V01"]
[null,null,null,null,"zvsx03i_n530_vplg_TY0V01","*='Specifieke informatie C'!$L$79","","C530 Verpleging en verzorging- verpleging- (n) geteld","zvsx03i","n530","vplg","TY0V01"]
[null,null,null,null,"zvsx03i_n530_vzrg_TY0V01","*='Specifieke informatie C'!$L$80","","C530 Verpleging en verzorging- verzorging- (n) geteld","zvsx03i","n530","vzrg","TY0V01"]
[null,null,null,null,"zvsx03k_a530_jidg_TY0V01","*='Specifieke informatie C'!$L$73","","C530 Verpleging en verzorging- verpleging- geaccepteerd","zvsx03k","a530","jidg","TY0V01"]
[null,null,null,null,"zvsx03k_a530_jplg_TY0V01","*='Specifieke informatie C'!$L$74","","C530 Verpleging en verzorging- verzorging- geaccepteerd","zvsx03k","a530","jplg","TY0V01"]
[null,null,null,null,"zvsx03k_a530_odmnt_TY0V01","*='Specifieke informatie C'!$L$72","","C530 Verpleging en verzorging- Overig: Wijkgericht, Experimenten: regelarm,beschikbaarheidsfunctie,kentenzorg- geaccepteerd","zvsx03k","a530","odmnt","TY0V01"]
[null,null,null,null,"zvsx03k_a530_opmte_TY0V01","*='Specifieke informatie C'!$L$71","","C530 Verpleging en verzorging- Overig: Prestaties AIV, Beloning op maat, Experiment VenV- geaccepteerd","zvsx03k","a530","opmte","TY0V01"]
[null,null,null,null,"zvsx03k_a530_pgb_TY0V01","*='Specifieke informatie C'!$L$70","","C530 Verpleging en verzorging- PGB- geaccepteerd","zvsx03k","a530","pgb","TY0V01"]
[null,null,null,null,"zvsx03k_a530_vplg_TY0V01","*='Specifieke informatie C'!$L$68","","C530 Verpleging en verzorging- verpleging- geaccepteerd","zvsx03k","a530","vplg","TY0V01"]
[null,null,null,null,"zvsx03k_a530_vzrg_TY0V01","*='Specifieke informatie C'!$L$69","","C530 Verpleging en verzorging- verzorging- geaccepteerd","zvsx03k","a530","vzrg","TY0V01"]
[null,null,null,null,"zvsx04i_n5601_u02_TY0V01","*='Specifieke informatie C'!$L$107","","C560.1 Mondzorg volwassen verzekerden- Implantaten- (n) geteld","zvsx04i","n5601","u02","TY0V01"]
[null,null,null,null,"zvsx04i_n5602_c11_TY0V01","*='Specifieke informatie C'!$L$130","","C560.2 Mondzorg voor jeugdige verzekerden- Periodieke controle- (n) geteld","zvsx04i","n5602","c11","TY0V01"]
[null,null,null,null,"zvsx04i_n5602_m01_TY0V01","*='Specifieke informatie C'!$L$131","","C560.2 Mondzorg voor jeugdige verzekerden- voorlichting en/of instructie- (n) geteld","zvsx04i","n5602","m01","TY0V01"]
[null,null,null,null,"zvsx04i_n5602_m02_TY0V01","*='Specifieke informatie C'!$L$132","","C560.2 Mondzorg voor jeugdige verzekerden- evaluatie van preventie- (n) geteld","zvsx04i","n5602","m02","TY0V01"]
[null,null,null,null,"zvsx04i_n561_u22_TY0V01","*='Specifieke informatie C'!$L$151","","C561 Gebitsprothesen, details- Volledige gebitsprothesen voor onder- of bovenkaak- (n) geteld","zvsx04i","n561","u22","TY0V01"]
[null,null,null,null,"zvsx04i_n561_u23_TY0V01","*='Specifieke informatie C'!$L$150","","C561 Gebitsprothesen, details- Volledige gebitsprothesen voor onder- en bovenkaak- (n) geteld","zvsx04i","n561","u23","TY0V01"]
[null,null,null,null,"zvsx04i_n561_u31_TY0V01","*='Specifieke informatie C'!$L$153","","C561 Gebitsprothesen, details- implantaat gedragen gebitsprothesen onder- of bovenkaak- (n) geteld","zvsx04i","n561","u31","TY0V01"]
[null,null,null,null,"zvsx04i_n561_u32_TY0V01","*='Specifieke informatie C'!$L$152","","C561 Gebitsprothesen, details- Volledige implantaat gedragen gebitsprothesen onder- en bovenkaak- (n) geteld","zvsx04i","n561","u32","TY0V01"]
[null,null,null,null,"zvsx04k_a5601_o01_TY0V01","*='Specifieke informatie C'!$L$102","","C560.1 Mondzorg volwassen verzekerden- Orthodontie- geaccepteerd","zvsx04k","a5601","o01","TY0V01"]
[null,null,null,null,"zvsx04k_a5601_o12_TY0V01","*='Specifieke informatie C'!$L$101","","C560.1 Mondzorg volwassen verzekerden- sub b en c)- geaccepteerd","zvsx04k","a5601","o12","TY0V01"]
[null,null,null,null,"zvsx04k_a5601_o13_TY0V01","*='Specifieke informatie C'!$L$100","","C560.1 Mondzorg volwassen verzekerden- sub a) - Overig- geaccepteerd","zvsx04k","a5601","o13","TY0V01"]
[null,null,null,null,"zvsx04k_a5601_u02_TY0V01","*='Specifieke informatie C'!$L$99","","C560.1 Mondzorg volwassen verzekerden- Implantaten- geaccepteerd","zvsx04k","a5601","u02","TY0V01"]
[null,null,null,null,"zvsx04k_a5601_x01_TY0V01","*='Specifieke informatie C'!$L$98","","C560.1 Mondzorg volwassen verzekerden- X Röntgendiagnostiek- geaccepteerd","zvsx04k","a5601","x01","TY0V01"]
[null,null,null,null,"zvsx04k_a5602_c01_TY0V01","*='Specifieke informatie C'!$L$111","","C560.2 Mondzorg voor jeugdige verzekerden- Consultatie en diagnostiek- geaccepteerd","zvsx04k","a5602","c01","TY0V01"]
[null,null,null,null,"zvsx04k_a5602_e01_TY0V01","*='Specifieke informatie C'!$L$121","","C560.2 Mondzorg voor jeugdige verzekerden- Tandvleesbehandelingen- geaccepteerd","zvsx04k","a5602","e01","TY0V01"]
[null,null,null,null,"zvsx04k_a5602_e02_TY0V01","*='Specifieke informatie C'!$L$116","","C560.2 Mondzorg voor jeugdige verzekerden- Wortelkanaalbehandelingen- geaccepteerd","zvsx04k","a5602","e02","TY0V01"]
[null,null,null,null,"zvsx04k_a5602_e03_TY0V01","*='Specifieke informatie C'!$L$118","","C560.2 Mondzorg voor jeugdige verzekerden- Kaakgewrichtsbehandelingen- geaccepteerd","zvsx04k","a5602","e03","TY0V01"]
[null,null,null,null,"zvsx04k_a5602_m11_TY0V01","*='Specifieke informatie C'!$L$113","","C560.2 Mondzorg voor jeugdige verzekerden- Preventieve mondzorg- geaccepteerd","zvsx04k","a5602","m11","TY0V01"]
[null,null,null,null,"zvsx04k_a5602_o01_TY0V01","*='Specifieke informatie C'!$L$125","","C560.2 Mondzorg voor jeugdige verzekerden- Orthodontie- geaccepteerd","zvsx04k","a5602","o01","TY0V01"]
[null,null,null,null,"zvsx04k_a5602_o02_TY0V01","*='Specifieke informatie C'!$L$119","","C560.2 Mondzorg voor jeugdige verzekerden- Chirurgische ingrepen- geaccepteerd","zvsx04k","a5602","o02","TY0V01"]
[null,null,null,null,"zvsx04k_a5602_o10_TY0V01","*='Specifieke informatie C'!$L$124","","C560.2 Mondzorg voor jeugdige verzekerden- sub a,b en c)- geaccepteerd","zvsx04k","a5602","o10","TY0V01"]
[null,null,null,null,"zvsx04k_a5602_p01_TY0V01","*='Specifieke informatie C'!$L$123","","C560.2 Mondzorg voor jeugdige verzekerden- Abbonementstarieven- geaccepteerd","zvsx04k","a5602","p01","TY0V01"]
[null,null,null,null,"zvsx04k_a5602_r01_TY0V01","*='Specifieke informatie C'!$L$115","","C560.2 Mondzorg voor jeugdige verzekerden- Vullingen- geaccepteerd","zvsx04k","a5602","r01","TY0V01"]
[null,null,null,null,"zvsx04k_a5602_r02_TY0V01","*='Specifieke informatie C'!$L$117","","C560.2 Mondzorg voor jeugdige verzekerden- Kronen en bruggen- geaccepteerd","zvsx04k","a5602","r02","TY0V01"]
[null,null,null,null,"zvsx04k_a5602_u01_TY0V01","*='Specifieke informatie C'!$L$120","","C560.2 Mondzorg voor jeugdige verzekerden- Uitneembare prothetische- geaccepteerd","zvsx04k","a5602","u01","TY0V01"]
[null,null,null,null,"zvsx04k_a5602_u02_TY0V01","*='Specifieke informatie C'!$L$122","","C560.2 Mondzorg voor jeugdige verzekerden- Implantaten- geaccepteerd","zvsx04k","a5602","u02","TY0V01"]
[null,null,null,null,"zvsx04k_a5602_v01_TY0V01","*='Specifieke informatie C'!$L$114","","C560.2 Mondzorg voor jeugdige verzekerden- Verdoving- geaccepteerd","zvsx04k","a5602","v01","TY0V01"]
[null,null,null,null,"zvsx04k_a5602_x01_TY0V01","*='Specifieke informatie C'!$L$112","","C560.2 Mondzorg voor jeugdige verzekerden- X Röntgendiagnostiek- geaccepteerd","zvsx04k","a5602","x01","TY0V01"]
[null,null,null,null,"zvsx04k_a561_u21_TY0V01","*='Specifieke informatie C'!$L$142","","C561 Gebitsprothesen, details- Volledige prothesen voor onder- en/of bovenkaak- geaccepteerd","zvsx04k","a561","u21","TY0V01"]
[null,null,null,null,"zvsx04k_a561_u31_TY0V01","*='Specifieke informatie C'!$L$144","","C561 Gebitsprothesen, details- implantaat gedragen gebitsprothesen onder- of bovenkaak- geaccepteerd","zvsx04k","a561","u31","TY0V01"]
[null,null,null,null,"zvsx04k_a561_u41_TY0V01","*='Specifieke informatie C'!$L$143","","C561 Gebitsprothesen, details- prothesen, rebasings en reparaties- geaccepteerd","zvsx04k","a561","u41","TY0V01"]
[null,null,null,null,"zvsx04k_a561_u43_TY0V01","*='Specifieke informatie C'!$L$145","","C561 Gebitsprothesen, details- ebasings en reparaties implantaat gedragen gebitsprothesen- geaccepteerd","zvsx04k","a561","u43","TY0V01"]
[null,null,null,null,"zvsx06k_a610_d1l_TY0V01","*='Specifieke informatie C'!$H$159","","C610 Overige kosten ziekenhuiszorg en curatieve zorg- eerstelijnsdiagnostiek eerstelijnszorgaanbieders - huisartslab- geaccepteerd","zvsx06k","a610","d1l","TY0V01"]
[null,null,null,null,"zvsx06k_a610_d1l_TY1V01","*='Specifieke informatie C'!$J$159","","C610 Overige kosten ziekenhuiszorg en curatieve zorg- eerstelijnsdiagnostiek eerstelijnszorgaanbieders - huisartslab- geaccepteerd","zvsx06k","a610","d1l","TY1V01"]
[null,null,null,null,"zvsx06k_a610_d1l_TY2V01","*='Specifieke informatie C'!$L$159","","C610 Overige kosten ziekenhuiszorg en curatieve zorg- eerstelijnsdiagnostiek eerstelijnszorgaanbieders - huisartslab- geaccepteerd","zvsx06k","a610","d1l","TY2V01"]
[null,null,null,null,"zvsx06k_a610_sknt_TY0V01","*='Specifieke informatie C'!$H$161","","C610 Overige kosten ziekenhuiszorg en curatieve zorg- SKION en NTS- geaccepteerd","zvsx06k","a610","sknt","TY0V01"]
[null,null,null,null,"zvsx06k_a610_sknt_TY1V01","*='Specifieke informatie C'!$J$161","","C610 Overige kosten ziekenhuiszorg en curatieve zorg- SKION en NTS- geaccepteerd","zvsx06k","a610","sknt","TY1V01"]
[null,null,null,null,"zvsx06k_a610_sknt_TY2V01","*='Specifieke informatie C'!$L$161","","C610 Overige kosten ziekenhuiszorg en curatieve zorg- SKION en NTS- geaccepteerd","zvsx06k","a610","sknt","TY2V01"]
[null,null,null,null,"zvsx06k_a610_trmb_TY0V01","*='Specifieke informatie C'!$H$160","","C610 Overige kosten ziekenhuiszorg en curatieve zorg- Trombosediensten- geaccepteerd","zvsx06k","a610","trmb","TY0V01"]
[null,null,null,null,"zvsx06k_a610_trmb_TY1V01","*='Specifieke informatie C'!$J$160","","C610 Overige kosten ziekenhuiszorg en curatieve zorg- Trombosediensten- geaccepteerd","zvsx06k","a610","trmb","TY1V01"]
[null,null,null,null,"zvsx06k_a610_trmb_TY2V01","*='Specifieke informatie C'!$L$160","","C610 Overige kosten ziekenhuiszorg en curatieve zorg- Trombosediensten- geaccepteerd","zvsx06k","a610","trmb","TY2V01"]
[null,null,null,null,"zvsx06k_a611_az_TY0V01","*='Specifieke informatie C'!$H$168","","C611 Naar Instelling- Academische ziekenhuizen- geaccepteerd","zvsx06k","a611","az","TY0V01"]
[null,null,null,null,"zvsx06k_a611_az_TY1V01","*='Specifieke informatie C'!$J$168","","C611 Naar Instelling- Academische ziekenhuizen- geaccepteerd","zvsx06k","a611","az","TY1V01"]
[null,null,null,null,"zvsx06k_a611_az_TY2V01","*='Specifieke informatie C'!$L$168","","C611 Naar Instelling- Academische ziekenhuizen- geaccepteerd","zvsx06k","a611","az","TY2V01"]
[null,null,null,null,"zvsx06k_a611_ov_TY0V01","*='Specifieke informatie C'!$H$171","","C611 Naar Instelling- Overige zorgaanbieders- geaccepteerd","zvsx06k","a611","ov","TY0V01"]
[null,null,null,null,"zvsx06k_a611_ov_TY1V01","*='Specifieke informatie C'!$J$171","","C611 Naar Instelling- Overige zorgaanbieders- geaccepteerd","zvsx06k","a611","ov","TY1V01"]
[null,null,null,null,"zvsx06k_a611_ov_TY2V01","*='Specifieke informatie C'!$L$171","","C611 Naar Instelling- Overige zorgaanbieders- geaccepteerd","zvsx06k","a611","ov","TY2V01"]
[null,null,null,null,"zvsx06k_a611_sz_TY0V01","*='Specifieke informatie C'!$H$169","","C611 Naar Instelling- Algemene ziekenhuizen- geaccepteerd","zvsx06k","a611","sz","TY0V01"]
[null,null,null,null,"zvsx06k_a611_sz_TY1V01","*='Specifieke informatie C'!$J$169","","C611 Naar Instelling- Algemene ziekenhuizen- geaccepteerd","zvsx06k","a611","sz","TY1V01"]
[null,null,null,null,"zvsx06k_a611_sz_TY2V01","*='Specifieke informatie C'!$L$169","","C611 Naar Instelling- Algemene ziekenhuizen- geaccepteerd","zvsx06k","a611","sz","TY2V01"]
[null,null,null,null,"zvsx06k_a611_zb_TY0V01","*='Specifieke informatie C'!$H$170","","C611 Naar Instelling- Zelfstandige behandelcentra- geaccepteerd","zvsx06k","a611","zb","TY0V01"]
[null,null,null,null,"zvsx06k_a611_zb_TY1V01","*='Specifieke informatie C'!$J$170","","C611 Naar Instelling- Zelfstandige behandelcentra- geaccepteerd","zvsx06k","a611","zb","TY1V01"]
[null,null,null,null,"zvsx06k_a611_zb_TY2V01","*='Specifieke informatie C'!$L$170","","C611 Naar Instelling- Zelfstandige behandelcentra- geaccepteerd","zvsx06k","a611","zb","TY2V01"]
[null,null,null,null,"zvsx06k_a6121_az_TY0V01","*='Specifieke informatie C'!$H$190","","C612.1 Kosten add-ons dure geneesmiddelen naar instelling- Academische ziekenhuizen- geaccepteerd","zvsx06k","a6121","az","TY0V01"]
[null,null,null,null,"zvsx06k_a6121_az_TY1V01","*='Specifieke informatie C'!$J$190","","C612.1 Kosten add-ons dure geneesmiddelen naar instelling- Academische ziekenhuizen- geaccepteerd","zvsx06k","a6121","az","TY1V01"]
[null,null,null,null,"zvsx06k_a6121_az_TY2V01","*='Specifieke informatie C'!$L$190","","C612.1 Kosten add-ons dure geneesmiddelen naar instelling- Academische ziekenhuizen- geaccepteerd","zvsx06k","a6121","az","TY2V01"]
[null,null,null,null,"zvsx06k_a6121_ov_TY0V01","*='Specifieke informatie C'!$H$193","","C612.1 Kosten add-ons dure geneesmiddelen naar instelling- Overige zorgaanbieders- geaccepteerd","zvsx06k","a6121","ov","TY0V01"]
[null,null,null,null,"zvsx06k_a6121_ov_TY1V01","*='Specifieke informatie C'!$J$193","","C612.1 Kosten add-ons dure geneesmiddelen naar instelling- Overige zorgaanbieders- geaccepteerd","zvsx06k","a6121","ov","TY1V01"]
[null,null,null,null,"zvsx06k_a6121_ov_TY2V01","*='Specifieke informatie C'!$L$193","","C612.1 Kosten add-ons dure geneesmiddelen naar instelling- Overige zorgaanbieders- geaccepteerd","zvsx06k","a6121","ov","TY2V01"]
[null,null,null,null,"zvsx06k_a6121_sz_TY0V01","*='Specifieke informatie C'!$H$191","","C612.1 Kosten add-ons dure geneesmiddelen naar instelling- Algemene ziekenhuizen- geaccepteerd","zvsx06k","a6121","sz","TY0V01"]
[null,null,null,null,"zvsx06k_a6121_sz_TY1V01","*='Specifieke informatie C'!$J$191","","C612.1 Kosten add-ons dure geneesmiddelen naar instelling- Algemene ziekenhuizen- geaccepteerd","zvsx06k","a6121","sz","TY1V01"]
[null,null,null,null,"zvsx06k_a6121_sz_TY2V01","*='Specifieke informatie C'!$L$191","","C612.1 Kosten add-ons dure geneesmiddelen naar instelling- Algemene ziekenhuizen- geaccepteerd","zvsx06k","a6121","sz","TY2V01"]
[null,null,null,null,"zvsx06k_a6121_zb_TY0V01","*='Specifieke informatie C'!$H$192","","C612.1 Kosten add-ons dure geneesmiddelen naar instelling- Zelfstandige behandelcentra- geaccepteerd","zvsx06k","a6121","zb","TY0V01"]
[null,null,null,null,"zvsx06k_a6121_zb_TY1V01","*='Specifieke informatie C'!$J$192","","C612.1 Kosten add-ons dure geneesmiddelen naar instelling- Zelfstandige behandelcentra- geaccepteerd","zvsx06k","a6121","zb","TY1V01"]
[null,null,null,null,"zvsx06k_a6121_zb_TY2V01","*='Specifieke informatie C'!$L$192","","C612.1 Kosten add-ons dure geneesmiddelen naar instelling- Zelfstandige behandelcentra- geaccepteerd","zvsx06k","a6121","zb","TY2V01"]
[null,null,null,null,"zvsx06k_a6122_az_TY0V01","*='Specifieke informatie C'!$H$199","","C612.2 Kosten add-ons IC naar instelling- Academische ziekenhuizen- geaccepteerd","zvsx06k","a6122","az","TY0V01"]
[null,null,null,null,"zvsx06k_a6122_az_TY1V01","*='Specifieke informatie C'!$J$199","","C612.2 Kosten add-ons IC naar instelling- Academische ziekenhuizen- geaccepteerd","zvsx06k","a6122","az","TY1V01"]
[null,null,null,null,"zvsx06k_a6122_az_TY2V01","*='Specifieke informatie C'!$L$199","","C612.2 Kosten add-ons IC naar instelling- Academische ziekenhuizen- geaccepteerd","zvsx06k","a6122","az","TY2V01"]
[null,null,null,null,"zvsx06k_a6122_ov_TY0V01","*='Specifieke informatie C'!$H$202","","C612.2 Kosten add-ons IC naar instelling- Overige zorgaanbieders- geaccepteerd","zvsx06k","a6122","ov","TY0V01"]
[null,null,null,null,"zvsx06k_a6122_ov_TY1V01","*='Specifieke informatie C'!$J$202","","C612.2 Kosten add-ons IC naar instelling- Overige zorgaanbieders- geaccepteerd","zvsx06k","a6122","ov","TY1V01"]
[null,null,null,null,"zvsx06k_a6122_ov_TY2V01","*='Specifieke informatie C'!$L$202","","C612.2 Kosten add-ons IC naar instelling- Overige zorgaanbieders- geaccepteerd","zvsx06k","a6122","ov","TY2V01"]
[null,null,null,null,"zvsx06k_a6122_sz_TY0V01","*='Specifieke informatie C'!$H$200","","C612.2 Kosten add-ons IC naar instelling- Algemene ziekenhuizen- geaccepteerd","zvsx06k","a6122","sz","TY0V01"]
[null,null,null,null,"zvsx06k_a6122_sz_TY1V01","*='Specifieke informatie C'!$J$200","","C612.2 Kosten add-ons IC naar instelling- Algemene ziekenhuizen- geaccepteerd","zvsx06k","a6122","sz","TY1V01"]
[null,null,null,null,"zvsx06k_a6122_sz_TY2V01","*='Specifieke informatie C'!$L$200","","C612.2 Kosten add-ons IC naar instelling- Algemene ziekenhuizen- geaccepteerd","zvsx06k","a6122","sz","TY2V01"]
[null,null,null,null,"zvsx06k_a6122_zb_TY0V01","*='Specifieke informatie C'!$H$201","","C612.2 Kosten add-ons IC naar instelling- Zelfstandige behandelcentra- geaccepteerd","zvsx06k","a6122","zb","TY0V01"]
[null,null,null,null,"zvsx06k_a6122_zb_TY1V01","*='Specifieke informatie C'!$J$201","","C612.2 Kosten add-ons IC naar instelling- Zelfstandige behandelcentra- geaccepteerd","zvsx06k","a6122","zb","TY1V01"]
[null,null,null,null,"zvsx06k_a6122_zb_TY2V01","*='Specifieke informatie C'!$L$201","","C612.2 Kosten add-ons IC naar instelling- Zelfstandige behandelcentra- geaccepteerd","zvsx06k","a6122","zb","TY2V01"]
[null,null,null,null,"zvsx06k_a6131_az_TY0V01","*='Specifieke informatie C'!$H$209","","C613.1 Integrale kosten DBC-zorgproducten gereguleerde segment- Academische ziekenhuizen- geaccepteerd","zvsx06k","a6131","az","TY0V01"]
[null,null,null,null,"zvsx06k_a6131_az_TY1V01","*='Specifieke informatie C'!$J$209","","C613.1 Integrale kosten DBC-zorgproducten gereguleerde segment- Academische ziekenhuizen- geaccepteerd","zvsx06k","a6131","az","TY1V01"]
[null,null,null,null,"zvsx06k_a6131_az_TY2V01","*='Specifieke informatie C'!$L$209","","C613.1 Integrale kosten DBC-zorgproducten gereguleerde segment- Academische ziekenhuizen- geaccepteerd","zvsx06k","a6131","az","TY2V01"]
[null,null,null,null,"zvsx06k_a6131_ov_TY0V01","*='Specifieke informatie C'!$H$212","","C613.1 Integrale kosten DBC-zorgproducten gereguleerde segment- Overige zorgaanbieders- geaccepteerd","zvsx06k","a6131","ov","TY0V01"]
[null,null,null,null,"zvsx06k_a6131_ov_TY1V01","*='Specifieke informatie C'!$J$212","","C613.1 Integrale kosten DBC-zorgproducten gereguleerde segment- Overige zorgaanbieders- geaccepteerd","zvsx06k","a6131","ov","TY1V01"]
[null,null,null,null,"zvsx06k_a6131_ov_TY2V01","*='Specifieke informatie C'!$L$212","","C613.1 Integrale kosten DBC-zorgproducten gereguleerde segment- Overige zorgaanbieders- geaccepteerd","zvsx06k","a6131","ov","TY2V01"]
[null,null,null,null,"zvsx06k_a6131_sz_TY0V01","*='Specifieke informatie C'!$H$210","","C613.1 Integrale kosten DBC-zorgproducten gereguleerde segment- Algemene ziekenhuizen- geaccepteerd","zvsx06k","a6131","sz","TY0V01"]
[null,null,null,null,"zvsx06k_a6131_sz_TY1V01","*='Specifieke informatie C'!$J$210","","C613.1 Integrale kosten DBC-zorgproducten gereguleerde segment- Algemene ziekenhuizen- geaccepteerd","zvsx06k","a6131","sz","TY1V01"]
[null,null,null,null,"zvsx06k_a6131_sz_TY2V01","*='Specifieke informatie C'!$L$210","","C613.1 Integrale kosten DBC-zorgproducten gereguleerde segment- Algemene ziekenhuizen- geaccepteerd","zvsx06k","a6131","sz","TY2V01"]
[null,null,null,null,"zvsx06k_a6131_zb_TY0V01","*='Specifieke informatie C'!$H$211","","C613.1 Integrale kosten DBC-zorgproducten gereguleerde segment- Zelfstandige behandelcentra- geaccepteerd","zvsx06k","a6131","zb","TY0V01"]
[null,null,null,null,"zvsx06k_a6131_zb_TY1V01","*='Specifieke informatie C'!$J$211","","C613.1 Integrale kosten DBC-zorgproducten gereguleerde segment- Zelfstandige behandelcentra- geaccepteerd","zvsx06k","a6131","zb","TY1V01"]
[null,null,null,null,"zvsx06k_a6131_zb_TY2V01","*='Specifieke informatie C'!$L$211","","C613.1 Integrale kosten DBC-zorgproducten gereguleerde segment- Zelfstandige behandelcentra- geaccepteerd","zvsx06k","a6131","zb","TY2V01"]
[null,null,null,null,"zvsx06k_a6151_az_TY0V01","*='Specifieke informatie C'!$H$234","","C615.1 Integrale kosten DBC-zorgproduct vrije segment- Academische ziekenhuizen- geaccepteerd","zvsx06k","a6151","az","TY0V01"]
[null,null,null,null,"zvsx06k_a6151_az_TY1V01","*='Specifieke informatie C'!$J$234","","C615.1 Integrale kosten DBC-zorgproduct vrije segment- Academische ziekenhuizen- geaccepteerd","zvsx06k","a6151","az","TY1V01"]
[null,null,null,null,"zvsx06k_a6151_az_TY2V01","*='Specifieke informatie C'!$L$234","","C615.1 Integrale kosten DBC-zorgproduct vrije segment- Academische ziekenhuizen- geaccepteerd","zvsx06k","a6151","az","TY2V01"]
[null,null,null,null,"zvsx06k_a6151_ov_TY0V01","*='Specifieke informatie C'!$H$237","","C615.1 Integrale kosten DBC-zorgproduct vrije segment- Overige zorgaanbieders- geaccepteerd","zvsx06k","a6151","ov","TY0V01"]
[null,null,null,null,"zvsx06k_a6151_ov_TY1V01","*='Specifieke informatie C'!$J$237","","C615.1 Integrale kosten DBC-zorgproduct vrije segment- Overige zorgaanbieders- geaccepteerd","zvsx06k","a6151","ov","TY1V01"]
[null,null,null,null,"zvsx06k_a6151_ov_TY2V01","*='Specifieke informatie C'!$L$237","","C615.1 Integrale kosten DBC-zorgproduct vrije segment- Overige zorgaanbieders- geaccepteerd","zvsx06k","a6151","ov","TY2V01"]
[null,null,null,null,"zvsx06k_a6151_sz_TY0V01","*='Specifieke informatie C'!$H$235","","C615.1 Integrale kosten DBC-zorgproduct vrije segment- Algemene ziekenhuizen- geaccepteerd","zvsx06k","a6151","sz","TY0V01"]
[null,null,null,null,"zvsx06k_a6151_sz_TY1V01","*='Specifieke informatie C'!$J$235","","C615.1 Integrale kosten DBC-zorgproduct vrije segment- Algemene ziekenhuizen- geaccepteerd","zvsx06k","a6151","sz","TY1V01"]
[null,null,null,null,"zvsx06k_a6151_sz_TY2V01","*='Specifieke informatie C'!$L$235","","C615.1 Integrale kosten DBC-zorgproduct vrije segment- Algemene ziekenhuizen- geaccepteerd","zvsx06k","a6151","sz","TY2V01"]
[null,null,null,null,"zvsx06k_a6151_zb_TY0V01","*='Specifieke informatie C'!$H$236","","C615.1 Integrale kosten DBC-zorgproduct vrije segment- Zelfstandige behandelcentra- geaccepteerd","zvsx06k","a6151","zb","TY0V01"]
[null,null,null,null,"zvsx06k_a6151_zb_TY1V01","*='Specifieke informatie C'!$J$236","","C615.1 Integrale kosten DBC-zorgproduct vrije segment- Zelfstandige behandelcentra- geaccepteerd","zvsx06k","a6151","zb","TY1V01"]
[null,null,null,null,"zvsx06k_a6151_zb_TY2V01","*='Specifieke informatie C'!$L$236","","C615.1 Integrale kosten DBC-zorgproduct vrije segment- Zelfstandige behandelcentra- geaccepteerd","zvsx06k","a6151","zb","TY2V01"]
[null,null,null,null,"zvsx06k_c610_d1l_TY0V01","*='Specifieke informatie C'!$G$159","","C610 Overige kosten ziekenhuiszorg en curatieve zorg- eerstelijnsdiagnostiek eerstelijnszorgaanbieders - huisartslab- incl balans","zvsx06k","c610","d1l","TY0V01"]
[null,null,null,null,"zvsx06k_c610_d1l_TY1V01","*='Specifieke informatie C'!$I$159","","C610 Overige kosten ziekenhuiszorg en curatieve zorg- eerstelijnsdiagnostiek eerstelijnszorgaanbieders - huisartslab- incl balans","zvsx06k","c610","d1l","TY1V01"]
[null,null,null,null,"zvsx06k_c610_d1l_TY2V01","*='Specifieke informatie C'!$K$159","","C610 Overige kosten ziekenhuiszorg en curatieve zorg- eerstelijnsdiagnostiek eerstelijnszorgaanbieders - huisartslab- incl balans","zvsx06k","c610","d1l","TY2V01"]
[null,null,null,null,"zvsx06k_c610_sknt_TY0V01","*='Specifieke informatie C'!$G$161","","C610 Overige kosten ziekenhuiszorg en curatieve zorg- SKION en NTS- incl balans","zvsx06k","c610","sknt","TY0V01"]
[null,null,null,null,"zvsx06k_c610_sknt_TY1V01","*='Specifieke informatie C'!$I$161","","C610 Overige kosten ziekenhuiszorg en curatieve zorg- SKION en NTS- incl balans","zvsx06k","c610","sknt","TY1V01"]
[null,null,null,null,"zvsx06k_c610_sknt_TY2V01","*='Specifieke informatie C'!$K$161","","C610 Overige kosten ziekenhuiszorg en curatieve zorg- SKION en NTS- incl balans","zvsx06k","c610","sknt","TY2V01"]
[null,null,null,null,"zvsx06k_c610_trmb_TY0V01","*='Specifieke informatie C'!$G$160","","C610 Overige kosten ziekenhuiszorg en curatieve zorg- Trombosediensten- incl balans","zvsx06k","c610","trmb","TY0V01"]
[null,null,null,null,"zvsx06k_c610_trmb_TY1V01","*='Specifieke informatie C'!$I$160","","C610 Overige kosten ziekenhuiszorg en curatieve zorg- Trombosediensten- incl balans","zvsx06k","c610","trmb","TY1V01"]
[null,null,null,null,"zvsx06k_c610_trmb_TY2V01","*='Specifieke informatie C'!$K$160","","C610 Overige kosten ziekenhuiszorg en curatieve zorg- Trombosediensten- incl balans","zvsx06k","c610","trmb","TY2V01"]
[null,null,null,null,"zvsx06k_c611_az_TY0V01","*='Specifieke informatie C'!$G$168","","C611 Naar Instelling- Academische ziekenhuizen- incl balans","zvsx06k","c611","az","TY0V01"]
[null,null,null,null,"zvsx06k_c611_az_TY1V01","*='Specifieke informatie C'!$I$168","","C611 Naar Instelling- Academische ziekenhuizen- incl balans","zvsx06k","c611","az","TY1V01"]
[null,null,null,null,"zvsx06k_c611_az_TY2V01","*='Specifieke informatie C'!$K$168","","C611 Naar Instelling- Academische ziekenhuizen- incl balans","zvsx06k","c611","az","TY2V01"]
[null,null,null,null,"zvsx06k_c611_ov_TY0V01","*='Specifieke informatie C'!$G$171","","C611 Naar Instelling- Overige zorgaanbieders- incl balans","zvsx06k","c611","ov","TY0V01"]
[null,null,null,null,"zvsx06k_c611_ov_TY1V01","*='Specifieke informatie C'!$I$171","","C611 Naar Instelling- Overige zorgaanbieders- incl balans","zvsx06k","c611","ov","TY1V01"]
[null,null,null,null,"zvsx06k_c611_ov_TY2V01","*='Specifieke informatie C'!$K$171","","C611 Naar Instelling- Overige zorgaanbieders- incl balans","zvsx06k","c611","ov","TY2V01"]
[null,null,null,null,"zvsx06k_c611_sz_TY0V01","*='Specifieke informatie C'!$G$169","","C611 Naar Instelling- Algemene ziekenhuizen- incl balans","zvsx06k","c611","sz","TY0V01"]
[null,null,null,null,"zvsx06k_c611_sz_TY1V01","*='Specifieke informatie C'!$I$169","","C611 Naar Instelling- Algemene ziekenhuizen- incl balans","zvsx06k","c611","sz","TY1V01"]
[null,null,null,null,"zvsx06k_c611_sz_TY2V01","*='Specifieke informatie C'!$K$169","","C611 Naar Instelling- Algemene ziekenhuizen- incl balans","zvsx06k","c611","sz","TY2V01"]
[null,null,null,null,"zvsx06k_c611_zb_TY0V01","*='Specifieke informatie C'!$G$170","","C611 Naar Instelling- Zelfstandige behandelcentra- incl balans","zvsx06k","c611","zb","TY0V01"]
[null,null,null,null,"zvsx06k_c611_zb_TY1V01","*='Specifieke informatie C'!$I$170","","C611 Naar Instelling- Zelfstandige behandelcentra- incl balans","zvsx06k","c611","zb","TY1V01"]
[null,null,null,null,"zvsx06k_c611_zb_TY2V01","*='Specifieke informatie C'!$K$170","","C611 Naar Instelling- Zelfstandige behandelcentra- incl balans","zvsx06k","c611","zb","TY2V01"]
[null,null,null,null,"zvsx06k_c6121_az_TY0V01","*='Specifieke informatie C'!$G$190","","C612.1 Kosten add-ons dure geneesmiddelen naar instelling- Academische ziekenhuizen- incl balans","zvsx06k","c6121","az","TY0V01"]
[null,null,null,null,"zvsx06k_c6121_az_TY1V01","*='Specifieke informatie C'!$I$190","","C612.1 Kosten add-ons dure geneesmiddelen naar instelling- Academische ziekenhuizen- incl balans","zvsx06k","c6121","az","TY1V01"]
[null,null,null,null,"zvsx06k_c6121_az_TY2V01","*='Specifieke informatie C'!$K$190","","C612.1 Kosten add-ons dure geneesmiddelen naar instelling- Academische ziekenhuizen- incl balans","zvsx06k","c6121","az","TY2V01"]
[null,null,null,null,"zvsx06k_c6121_ov_TY0V01","*='Specifieke informatie C'!$G$193","","C612.1 Kosten add-ons dure geneesmiddelen naar instelling- Overige zorgaanbieders- incl balans","zvsx06k","c6121","ov","TY0V01"]
[null,null,null,null,"zvsx06k_c6121_ov_TY1V01","*='Specifieke informatie C'!$I$193","","C612.1 Kosten add-ons dure geneesmiddelen naar instelling- Overige zorgaanbieders- incl balans","zvsx06k","c6121","ov","TY1V01"]
[null,null,null,null,"zvsx06k_c6121_ov_TY2V01","*='Specifieke informatie C'!$K$193","","C612.1 Kosten add-ons dure geneesmiddelen naar instelling- Overige zorgaanbieders- incl balans","zvsx06k","c6121","ov","TY2V01"]
[null,null,null,null,"zvsx06k_c6121_sz_TY0V01","*='Specifieke informatie C'!$G$191","","C612.1 Kosten add-ons dure geneesmiddelen naar instelling- Algemene ziekenhuizen- incl balans","zvsx06k","c6121","sz","TY0V01"]
[null,null,null,null,"zvsx06k_c6121_sz_TY1V01","*='Specifieke informatie C'!$I$191","","C612.1 Kosten add-ons dure geneesmiddelen naar instelling- Algemene ziekenhuizen- incl balans","zvsx06k","c6121","sz","TY1V01"]
[null,null,null,null,"zvsx06k_c6121_sz_TY2V01","*='Specifieke informatie C'!$K$191","","C612.1 Kosten add-ons dure geneesmiddelen naar instelling- Algemene ziekenhuizen- incl balans","zvsx06k","c6121","sz","TY2V01"]
[null,null,null,null,"zvsx06k_c6121_zb_TY0V01","*='Specifieke informatie C'!$G$192","","C612.1 Kosten add-ons dure geneesmiddelen naar instelling- Zelfstandige behandelcentra- incl balans","zvsx06k","c6121","zb","TY0V01"]
[null,null,null,null,"zvsx06k_c6121_zb_TY1V01","*='Specifieke informatie C'!$I$192","","C612.1 Kosten add-ons dure geneesmiddelen naar instelling- Zelfstandige behandelcentra- incl balans","zvsx06k","c6121","zb","TY1V01"]
[null,null,null,null,"zvsx06k_c6121_zb_TY2V01","*='Specifieke informatie C'!$K$192","","C612.1 Kosten add-ons dure geneesmiddelen naar instelling- Zelfstandige behandelcentra- incl balans","zvsx06k","c6121","zb","TY2V01"]
[null,null,null,null,"zvsx06k_c6122_az_TY0V01","*='Specifieke informatie C'!$G$199","","C612.2 Kosten add-ons IC naar instelling- Academische ziekenhuizen- incl balans","zvsx06k","c6122","az","TY0V01"]
[null,null,null,null,"zvsx06k_c6122_az_TY1V01","*='Specifieke informatie C'!$I$199","","C612.2 Kosten add-ons IC naar instelling- Academische ziekenhuizen- incl balans","zvsx06k","c6122","az","TY1V01"]
[null,null,null,null,"zvsx06k_c6122_az_TY2V01","*='Specifieke informatie C'!$K$199","","C612.2 Kosten add-ons IC naar instelling- Academische ziekenhuizen- incl balans","zvsx06k","c6122","az","TY2V01"]
[null,null,null,null,"zvsx06k_c6122_ov_TY0V01","*='Specifieke informatie C'!$G$202","","C612.2 Kosten add-ons IC naar instelling- Overige zorgaanbieders- incl balans","zvsx06k","c6122","ov","TY0V01"]
[null,null,null,null,"zvsx06k_c6122_ov_TY1V01","*='Specifieke informatie C'!$I$202","","C612.2 Kosten add-ons IC naar instelling- Overige zorgaanbieders- incl balans","zvsx06k","c6122","ov","TY1V01"]
[null,null,null,null,"zvsx06k_c6122_ov_TY2V01","*='Specifieke informatie C'!$K$202","","C612.2 Kosten add-ons IC naar instelling- Overige zorgaanbieders- incl balans","zvsx06k","c6122","ov","TY2V01"]
[null,null,null,null,"zvsx06k_c6122_sz_TY0V01","*='Specifieke informatie C'!$G$200","","C612.2 Kosten add-ons IC naar instelling- Algemene ziekenhuizen- incl balans","zvsx06k","c6122","sz","TY0V01"]
[null,null,null,null,"zvsx06k_c6122_sz_TY1V01","*='Specifieke informatie C'!$I$200","","C612.2 Kosten add-ons IC naar instelling- Algemene ziekenhuizen- incl balans","zvsx06k","c6122","sz","TY1V01"]
[null,null,null,null,"zvsx06k_c6122_sz_TY2V01","*='Specifieke informatie C'!$K$200","","C612.2 Kosten add-ons IC naar instelling- Algemene ziekenhuizen- incl balans","zvsx06k","c6122","sz","TY2V01"]
[null,null,null,null,"zvsx06k_c6122_zb_TY0V01","*='Specifieke informatie C'!$G$201","","C612.2 Kosten add-ons IC naar instelling- Zelfstandige behandelcentra- incl balans","zvsx06k","c6122","zb","TY0V01"]
[null,null,null,null,"zvsx06k_c6122_zb_TY1V01","*='Specifieke informatie C'!$I$201","","C612.2 Kosten add-ons IC naar instelling- Zelfstandige behandelcentra- incl balans","zvsx06k","c6122","zb","TY1V01"]
[null,null,null,null,"zvsx06k_c6122_zb_TY2V01","*='Specifieke informatie C'!$K$201","","C612.2 Kosten add-ons IC naar instelling- Zelfstandige behandelcentra- incl balans","zvsx06k","c6122","zb","TY2V01"]
[null,null,null,null,"zvsx06k_c6131_az_TY0V01","*='Specifieke informatie C'!$G$209","","C613.1 Integrale kosten DBC-zorgproducten gereguleerde segment- Academische ziekenhuizen- incl balans","zvsx06k","c6131","az","TY0V01"]
[null,null,null,null,"zvsx06k_c6131_az_TY1V01","*='Specifieke informatie C'!$I$209","","C613.1 Integrale kosten DBC-zorgproducten gereguleerde segment- Academische ziekenhuizen- incl balans","zvsx06k","c6131","az","TY1V01"]
[null,null,null,null,"zvsx06k_c6131_az_TY2V01","*='Specifieke informatie C'!$K$209","","C613.1 Integrale kosten DBC-zorgproducten gereguleerde segment- Academische ziekenhuizen- incl balans","zvsx06k","c6131","az","TY2V01"]
[null,null,null,null,"zvsx06k_c6131_ov_TY0V01","*='Specifieke informatie C'!$G$212","","C613.1 Integrale kosten DBC-zorgproducten gereguleerde segment- Overige zorgaanbieders- incl balans","zvsx06k","c6131","ov","TY0V01"]
[null,null,null,null,"zvsx06k_c6131_ov_TY1V01","*='Specifieke informatie C'!$I$212","","C613.1 Integrale kosten DBC-zorgproducten gereguleerde segment- Overige zorgaanbieders- incl balans","zvsx06k","c6131","ov","TY1V01"]
[null,null,null,null,"zvsx06k_c6131_ov_TY2V01","*='Specifieke informatie C'!$K$212","","C613.1 Integrale kosten DBC-zorgproducten gereguleerde segment- Overige zorgaanbieders- incl balans","zvsx06k","c6131","ov","TY2V01"]
[null,null,null,null,"zvsx06k_c6131_sz_TY0V01","*='Specifieke informatie C'!$G$210","","C613.1 Integrale kosten DBC-zorgproducten gereguleerde segment- Algemene ziekenhuizen- incl balans","zvsx06k","c6131","sz","TY0V01"]
[null,null,null,null,"zvsx06k_c6131_sz_TY1V01","*='Specifieke informatie C'!$I$210","","C613.1 Integrale kosten DBC-zorgproducten gereguleerde segment- Algemene ziekenhuizen- incl balans","zvsx06k","c6131","sz","TY1V01"]
[null,null,null,null,"zvsx06k_c6131_sz_TY2V01","*='Specifieke informatie C'!$K$210","","C613.1 Integrale kosten DBC-zorgproducten gereguleerde segment- Algemene ziekenhuizen- incl balans","zvsx06k","c6131","sz","TY2V01"]
[null,null,null,null,"zvsx06k_c6131_zb_TY0V01","*='Specifieke informatie C'!$G$211","","C613.1 Integrale kosten DBC-zorgproducten gereguleerde segment- Zelfstandige behandelcentra- incl balans","zvsx06k","c6131","zb","TY0V01"]
[null,null,null,null,"zvsx06k_c6131_zb_TY1V01","*='Specifieke informatie C'!$I$211","","C613.1 Integrale kosten DBC-zorgproducten gereguleerde segment- Zelfstandige behandelcentra- incl balans","zvsx06k","c6131","zb","TY1V01"]
[null,null,null,null,"zvsx06k_c6131_zb_TY2V01","*='Specifieke informatie C'!$K$211","","C613.1 Integrale kosten DBC-zorgproducten gereguleerde segment- Zelfstandige behandelcentra- incl balans","zvsx06k","c6131","zb","TY2V01"]
[null,null,null,null,"zvsx06k_c6151_az_TY0V01","*='Specifieke informatie C'!$G$234","","C615.1 Integrale kosten DBC-zorgproduct vrije segment- Academische ziekenhuizen- incl balans","zvsx06k","c6151","az","TY0V01"]
[null,null,null,null,"zvsx06k_c6151_az_TY1V01","*='Specifieke informatie C'!$I$234","","C615.1 Integrale kosten DBC-zorgproduct vrije segment- Academische ziekenhuizen- incl balans","zvsx06k","c6151","az","TY1V01"]
[null,null,null,null,"zvsx06k_c6151_az_TY2V01","*='Specifieke informatie C'!$K$234","","C615.1 Integrale kosten DBC-zorgproduct vrije segment- Academische ziekenhuizen- incl balans","zvsx06k","c6151","az","TY2V01"]
[null,null,null,null,"zvsx06k_c6151_ov_TY0V01","*='Specifieke informatie C'!$G$237","","C615.1 Integrale kosten DBC-zorgproduct vrije segment- Overige zorgaanbieders- incl balans","zvsx06k","c6151","ov","TY0V01"]
[null,null,null,null,"zvsx06k_c6151_ov_TY1V01","*='Specifieke informatie C'!$I$237","","C615.1 Integrale kosten DBC-zorgproduct vrije segment- Overige zorgaanbieders- incl balans","zvsx06k","c6151","ov","TY1V01"]
[null,null,null,null,"zvsx06k_c6151_ov_TY2V01","*='Specifieke informatie C'!$K$237","","C615.1 Integrale kosten DBC-zorgproduct vrije segment- Overige zorgaanbieders- incl balans","zvsx06k","c6151","ov","TY2V01"]
[null,null,null,null,"zvsx06k_c6151_sz_TY0V01","*='Specifieke informatie C'!$G$235","","C615.1 Integrale kosten DBC-zorgproduct vrije segment- Algemene ziekenhuizen- incl balans","zvsx06k","c6151","sz","TY0V01"]
[null,null,null,null,"zvsx06k_c6151_sz_TY1V01","*='Specifieke informatie C'!$I$235","","C615.1 Integrale kosten DBC-zorgproduct vrije segment- Algemene ziekenhuizen- incl balans","zvsx06k","c6151","sz","TY1V01"]
[null,null,null,null,"zvsx06k_c6151_sz_TY2V01","*='Specifieke informatie C'!$K$235","","C615.1 Integrale kosten DBC-zorgproduct vrije segment- Algemene ziekenhuizen- incl balans","zvsx06k","c6151","sz","TY2V01"]
[null,null,null,null,"zvsx06k_c6151_zb_TY0V01","*='Specifieke informatie C'!$G$236","","C615.1 Integrale kosten DBC-zorgproduct vrije segment- Zelfstandige behandelcentra- incl balans","zvsx06k","c6151","zb","TY0V01"]
[null,null,null,null,"zvsx06k_c6151_zb_TY1V01","*='Specifieke informatie C'!$I$236","","C615.1 Integrale kosten DBC-zorgproduct vrije segment- Zelfstandige behandelcentra- incl balans","zvsx06k","c6151","zb","TY1V01"]
[null,null,null,null,"zvsx06k_c6151_zb_TY2V01","*='Specifieke informatie C'!$K$236","","C615.1 Integrale kosten DBC-zorgproduct vrije segment- Zelfstandige behandelcentra- incl balans","zvsx06k","c6151","zb","TY2V01"]
[null,null,null,null,"zvsx10i_n665_e51_TY0V01","*='Specifieke informatie C'!$L$276","","C665 Generalistische basis GGZ- Kort- (n) geteld","zvsx10i","n665","e51","TY0V01"]
[null,null,null,null,"zvsx10i_n665_e52_TY0V01","*='Specifieke informatie C'!$L$277","","C665 Generalistische basis GGZ- Middel- (n) geteld","zvsx10i","n665","e52","TY0V01"]
[null,null,null,null,"zvsx10i_n665_e53_TY0V01","*='Specifieke informatie C'!$L$278","","C665 Generalistische basis GGZ- Intensief- (n) geteld","zvsx10i","n665","e53","TY0V01"]
[null,null,null,null,"zvsx10i_n665_e54_TY0V01","*='Specifieke informatie C'!$L$279","","C665 Generalistische basis GGZ- Chronisch- (n) geteld","zvsx10i","n665","e54","TY0V01"]
[null,null,null,null,"zvsx10i_n665_e55_TY0V01","*='Specifieke informatie C'!$L$280","","C665 Generalistische basis GGZ- Onvolledig behandeltraject- (n) geteld","zvsx10i","n665","e55","TY0V01"]
[null,null,null,null,"zvsx10k_a662_e42_TY0V01","*='Specifieke informatie C'!$L$243","","C662 - GGZ zonder verblijf- Instellingen- geaccepteerd","zvsx10k","a662","e42","TY0V01"]
[null,null,null,null,"zvsx10k_a662_e43_TY0V01","*='Specifieke informatie C'!$L$244","","C662 - GGZ zonder verblijf- Zelfstandig gevestigden- geaccepteerd","zvsx10k","a662","e43","TY0V01"]
[null,null,null,null,"zvsx10k_a665_e42_TY0V01","*='Specifieke informatie C'!$L$249","","C665 Generalistische basis GGZ- Instellingen- geaccepteerd","zvsx10k","a665","e42","TY0V01"]
[null,null,null,null,"zvsx10k_a665_e43_TY0V01","*='Specifieke informatie C'!$L$250","","C665 Generalistische basis GGZ- Zelfstandig gevestigden- geaccepteerd","zvsx10k","a665","e43","TY0V01"]
[null,null,null,null,"zvsx10k_a665_e51_TY0V01","*='Specifieke informatie C'!$L$255","","C665 Generalistische basis GGZ- Kort- geaccepteerd","zvsx10k","a665","e51","TY0V01"]
[null,null,null,null,"zvsx10k_a665_e52_TY0V01","*='Specifieke informatie C'!$L$256","","C665 Generalistische basis GGZ- Middel- geaccepteerd","zvsx10k","a665","e52","TY0V01"]
[null,null,null,null,"zvsx10k_a665_e53_TY0V01","*='Specifieke informatie C'!$L$257","","C665 Generalistische basis GGZ- Intensief- geaccepteerd","zvsx10k","a665","e53","TY0V01"]
[null,null,null,null,"zvsx10k_a665_e54_TY0V01","*='Specifieke informatie C'!$L$258","","C665 Generalistische basis GGZ- Chronisch- geaccepteerd","zvsx10k","a665","e54","TY0V01"]
[null,null,null,null,"zvsx10k_a665_e55_TY0V01","*='Specifieke informatie C'!$L$259","","C665 Generalistische basis GGZ- Onvolledig behandeltraject- geaccepteerd","zvsx10k","a665","e55","TY0V01"]
[null,null,null,null,"zvsx13k_a700_g73_TY0V01","*='Specifieke informatie C'!$L$287","","C700 Overige Kosten- Kosten gecombineerde Leefstijl Interventie- geaccepteerd","zvsx13k","a700","g73","TY0V01"]
[null,null,null,null,"zvsx13k_a700_i11_TY0V01","*='Specifieke informatie C'!$L$285","","C700 Overige Kosten- innovatie nieuwe producten- geaccepteerd","zvsx13k","a700","i11","TY0V01"]
[null,null,null,null,"zvsx13k_a700_n07_TY0V01","*='Specifieke informatie C'!$L$286","","C700 Overige Kosten- Integrale geboortezorg- geaccepteerd","zvsx13k","a700","n07","TY0V01"]
[null,null,null,null,"zvsx13k_a701_g21_TY0V01","*='Specifieke informatie C'!$L$292","","C701 Overige geneeskundige zorg- Kort- geaccepteerd","zvsx13k","a701","g21","TY0V01"]
[null,null,null,null,"zvsx13k_a701_g22_TY0V01","*='Specifieke informatie C'!$L$293","","C701 Overige geneeskundige zorg- Huidtherapie- geaccepteerd","zvsx13k","a701","g22","TY0V01"]
[null,null,null,null,"zvsx13k_a701_g23_TY0V01","*='Specifieke informatie C'!$L$294","","C701 Overige geneeskundige zorg- Orthoptie- geaccepteerd","zvsx13k","a701","g23","TY0V01"]
[null,null,null,null,"zvsx13k_a701_g24_TY0V01","*='Specifieke informatie C'!$L$295","","C701 Overige geneeskundige zorg- Optometrie- geaccepteerd","zvsx13k","a701","g24","TY0V01"]
[null,null,null,null,"zvsx13k_a701_g25_TY0V01","*='Specifieke informatie C'!$L$296","","C701 Overige geneeskundige zorg- voetzorg bij Diabetes Mellitus type 2- geaccepteerd","zvsx13k","a701","g25","TY0V01"]
[null,null,null,null,"zvsx13k_a701_g26_TY0V01","*='Specifieke informatie C'!$L$297","","C701 Overige geneeskundige zorg- Koemelkallergietest (niet horend bij Multidisciplinaire Zorg)- geaccepteerd","zvsx13k","a701","g26","TY0V01"]
[null,null,null,null,"zvsx13k_a701_g27_TY0V01","*='Specifieke informatie C'!$L$298","","C701 Overige geneeskundige zorg- Regiefunctie complexe wondzorgt- geaccepteerd","zvsx13k","a701","g27","TY0V01"]
[null,null,null,null,"zvsx13k_a702_g01_TY0V01","*='Specifieke informatie C'!$L$303","","C702 Zintuiglijk gehandicapten- visuele beperking- geaccepteerd","zvsx13k","a702","g01","TY0V01"]
[null,null,null,null,"zvsx13k_a702_g02_TY0V01","*='Specifieke informatie C'!$L$304","","C702 Zintuiglijk gehandicapten- auditieve beperking- geaccepteerd","zvsx13k","a702","g02","TY0V01"]
[null,null,null,null,"zvsx13k_a702_g03_TY0V01","*='Specifieke informatie C'!$L$305","","C702 Zintuiglijk gehandicapten- taalontwikkelingsstoornis- geaccepteerd","zvsx13k","a702","g03","TY0V01"]
[null,null,null,null,"zvox01_c97101_o01mdz_TF1V01","*=Contractinformatie!$K$17",null,"Huisartsenzorg en Multidisciplinaire zorg, (code 510 en 516)- Gecontracteerd 510,516- incl balans","zvox01","c97101","o01mdz","TF1V01"]
[null,null,null,null,"zvox01_c97101_o01trf_TF1V01","*=Contractinformatie!$K$12",null,"Huisartsenzorg en Multidisciplinaire zorg, (code 503,504,505,506,507,515)- Gecontracteerd 503,504,505,506,507,515- incl balans","zvox01","c97101","o01trf","TF1V01"]
[null,null,null,null,"zvox01_c97101_o31mdz_TF1V01","*=Contractinformatie!$K$18",null,"Huisartsenzorg en Multidisciplinaire zorg, (code 510 en 516)- Lopende onderhandelingen 510,516- incl balans","zvox01","c97101","o31mdz","TF1V01"]
[null,null,null,null,"zvox01_c97101_o31trf_TF1V01","*=Contractinformatie!$K$13",null,"Huisartsenzorg en Multidisciplinaire zorg, (code 503,504,505,506,507,515)- Lopende onderhandelingen 503,504,505,506,507,515- incl balans","zvox01","c97101","o31trf","TF1V01"]
[null,null,null,null,"zvox01_c97101_o52mdz_TF1V01","*=Contractinformatie!$K$19",null,"Huisartsenzorg en Multidisciplinaire zorg, (code 510 en 516)- Niet gecontracteerd  510,516- incl balans","zvox01","c97101","o52mdz","TF1V01"]
[null,null,null,null,"zvox01_c97101_o52trf_TF1V01","*=Contractinformatie!$K$14",null,"Huisartsenzorg en Multidisciplinaire zorg, (code 503,504,505,506,507,515)- Niet gecontracteerd 503,504,505,506,507,515- incl balans","zvox01","c97101","o52trf","TF1V01"]
[null,null,null,null,"zvox03_c97103_o01_TF1V01","*=Contractinformatie!$K$25",null,"Contractinformatie Verpleging en Verzorging- Gecontracteerd- incl balans","zvox03","c97103","o01","TF1V01"]
[null,null,null,null,"zvox03_c97103_o08_TF1V01","*=Contractinformatie!$K$28",null,"Contractinformatie Verpleging en Verzorging- PGB- incl balans","zvox03","c97103","o08","TF1V01"]
[null,null,null,null,"zvox03_c97103_o31_TF1V01","*=Contractinformatie!$K$26",null,"Contractinformatie Verpleging en Verzorging- Lopende onderhandelingen- incl balans","zvox03","c97103","o31","TF1V01"]
[null,null,null,null,"zvox03_c97103_o52_TF1V01","*=Contractinformatie!$K$27",null,"Contractinformatie Verpleging en Verzorging- Niet gecontracteerd- incl balans","zvox03","c97103","o52","TF1V01"]
[null,null,null,null,"zvox06_c97106_o02_TF1V01","*=Contractinformatie!$K$33",null,"Medisch Specialistische Zorg- aanneemsom- incl balans","zvox06","c97106","o02","TF1V01"]
[null,null,null,null,"zvox06_c97106_o03_TF1V01","*=Contractinformatie!$K$34",null,"Medisch Specialistische Zorg- plafond- incl balans","zvox06","c97106","o03","TF1V01"]
[null,null,null,null,"zvox06_c97106_o04_TF1V01","*=Contractinformatie!$K$35",null,"Medisch Specialistische Zorg- nacalculatie- incl balans","zvox06","c97106","o04","TF1V01"]
[null,null,null,null,"zvox06_c97106_o05_TF1V01","*=Contractinformatie!$K$36",null,"Medisch Specialistische Zorg- open einde contract- incl balans","zvox06","c97106","o05","TF1V01"]
[null,null,null,null,"zvox06_c97106_o31_TF1V01","*=Contractinformatie!$K$38",null,"Medisch Specialistische Zorg- Lopende onderhandelingen- incl balans","zvox06","c97106","o31","TF1V01"]
[null,null,null,null,"zvox06_c97106_o52_TF1V01","*=Contractinformatie!$K$39",null,"Medisch Specialistische Zorg- Niet gecontracteerd- incl balans","zvox06","c97106","o52","TF1V01"]
[null,null,null,null,"zvox06_c97106_o91_TF1V01","*=Contractinformatie!$K$43",null,"Medisch Specialistische Zorg- totaal plafond- incl balans","zvox06","c97106","o91","TF1V01"]
[null,null,null,null,"zvox10_c97110_o02_TF1V01","*=Contractinformatie!$K$52",null,"Geneeskundige GGZ- aanneemsom- incl balans","zvox10","c97110","o02","TF1V01"]
[null,null,null,null,"zvox10_c97110_o03_TF1V01","*=Contractinformatie!$K$53",null,"Geneeskundige GGZ- plafond- incl balans","zvox10","c97110","o03","TF1V01"]
[null,null,null,null,"zvox10_c97110_o04_TF1V01","*=Contractinformatie!$K$54",null,"Geneeskundige GGZ- nacalculatie- incl balans","zvox10","c97110","o04","TF1V01"]
[null,null,null,null,"zvox10_c97110_o05_TF1V01","*=Contractinformatie!$K$55",null,"Geneeskundige GGZ- open einde contract- incl balans","zvox10","c97110","o05","TF1V01"]
[null,null,null,null,"zvox10_c97110_o31_TF1V01","*=Contractinformatie!$K$57",null,"Geneeskundige GGZ- Lopende onderhandelingen- incl balans","zvox10","c97110","o31","TF1V01"]
[null,null,null,null,"zvox10_c97110_o52_TF1V01","*=Contractinformatie!$K$58",null,"Geneeskundige GGZ- Niet gecontracteerd- incl balans","zvox10","c97110","o52","TF1V01"]
[null,null,null,null,"zvox10_c97110_o91_TF1V01","*=Contractinformatie!$K$62",null,"Geneeskundige GGZ- totaal plafond- incl balans","zvox10","c97110","o91","TF1V01"]
[null,null,null,null,"zvox11_c97111_o01ln1_TF1V01","*=Contractinformatie!$K$79",null,"Geriatrische Revalidatiezorg 670 en Eerstelijnsverblijf 671,  Geneeskundige Zorg Specifieke Patiëntgroepen (code 671)- Gecontracteerd 671- incl balans","zvox11","c97111","o01ln1","TF1V01"]
[null,null,null,null,"zvox11_c97111_o01rvl_TF1V01","*=Contractinformatie!$K$74",null,"Geriatrische Revalidatiezorg 670 en Eerstelijnsverblijf 671,  Geneeskundige Zorg Specifieke Patiëntgroepen (code 670)- Gecontracteerd  670- incl balans","zvox11","c97111","o01rvl","TF1V01"]
[null,null,null,null,"zvox11_c97111_o01gzsp_TF1V01","*=Contractinformatie!$K$84",null,"Geriatrische Revalidatiezorg 670 en Eerstelijnsverblijf 671,  Geneeskundige Zorg Specifieke Patiëntgroepen (code 672)- Gecontracteerd 672- incl balans","zvox11","c97111","o01gzsp","TF1V01"]
[null,null,null,null,"zvox11_c97111_o31ln1_TF1V01","*=Contractinformatie!$K$80",null,"Geriatrische Revalidatiezorg 670 en Eerstelijnsverblijf 671,  Geneeskundige Zorg Specifieke Patiëntgroepen (code 671)- Lopende onderhandelingen 671- incl balans","zvox11","c97111","o31ln1","TF1V01"]
[null,null,null,null,"zvox11_c97111_o31rvl_TF1V01","*=Contractinformatie!$K$75",null,"Geriatrische Revalidatiezorg 670 en Eerstelijnsverblijf 671,  Geneeskundige Zorg Specifieke Patiëntgroepen (code 670)- Lopende onderhandelingen 670- incl balans","zvox11","c97111","o31rvl","TF1V01"]
[null,null,null,null,"zvox11_c97111_o31gzsp_TF1V01","*=Contractinformatie!$K$85",null,"Geriatrische Revalidatiezorg 670 en Eerstelijnsverblijf 671,  Geneeskundige Zorg Specifieke Patiëntgroepen (code 672)- Lopende onderhandelingen 672- incl balans","zvox11","c97111","o31gzsp","TF1V01"]
[null,null,null,null,"zvox11_c97111_o52ln1_TF1V01","*=Contractinformatie!$K$81",null,"Geriatrische Revalidatiezorg 670 en Eerstelijnsverblijf 671,  Geneeskundige Zorg Specifieke Patiëntgroepen (code 671)- Niet gecontracteerd 671- incl balans","zvox11","c97111","o52ln1","TF1V01"]
[null,null,null,null,"zvox11_c97111_o52rvl_TF1V01","*=Contractinformatie!$K$76",null,"Geriatrische Revalidatiezorg 670 en Eerstelijnsverblijf 671, Geneeskundige Zorg Specifieke Patiëntgroepen (code 670)- Niet gecontracteerd 670- incl balans","zvox11","c97111","o52rvl","TF1V01"]
[null,null,null,null,"zvox11_c97111_o52gzsp_TF1V01","*=Contractinformatie!$K$86",null,"Geriatrische Revalidatiezorg 670 en Eerstelijnsverblijf 671, Geneeskundige Zorg Specifieke Patiëntgroepen (code 672)- Niet gecontracteerd 672- incl balans","zvox11","c97111","o52gzsp","TF1V01"]
[null,null,null,null,"zvox13_c97113_bo01_TF1V01","*=Contractinformatie!$K$66",null,"Zintuiglijk gehandicapten- Gecontracteerd- incl balans","zvox13","c97113","bo01","TF1V01"]
[null,null,null,null,"zvox13_c97113_bo31_TF1V01","*=Contractinformatie!$K$67",null,"Zintuiglijk gehandicapten- Lopende onderhandelingen- incl balans","zvox13","c97113","bo31","TF1V01"]
[null,null,null,null,"zvox13_c97113_bo52_TF1V01","*=Contractinformatie!$K$68",null,"Zintuiglijk gehandicapten- Niet gecontracteerd- incl balans","zvox13","c97113","bo52","TF1V01"]

{"sheet":"Parameters","index":12,"n_rows":43,"n_cols":7,"rows_kept":43,"cut":false,"hidden":true,"merged":[[1,4,1,5]]}
[]
[null,"Kwartaal:",4,null,"HASHTOTALEN"]
[null,"Jaar:",2019,null,"Alle waarden tabblad specifieke informatie A",{"$f":"ROUND(SUM(alle_cellen_info_a),0)","v":{"$error":"#REF!"}},"Opm: kolom I..L"]
[null,"Wet:","ZVW",null,"Alle waarden tabblad specifieke informatie B",{"$f":"ROUND(SUM(alle_cellen_info_c),0)","v":175354},"Opm: kolom I..L"]
[null,"Document:",{"$f":"CONCATENATE(\"KS\",jaar_id,wet_id,\".\",kwartaal_id)","v":"KS2019ZVW.4"},null,"Alle waarden tabbladen specifieke informatie A en C",{"$f":"SUM(F3:F4)","v":{"$error":"#REF!"}},"Opm: kolom I..L"]
[null,"Revisie:","C"]
[null,"Revisiedatum:","2019-11-01"]
[null,"Versie:",{"$f":"F16","v":0}]
[null,"Ontvangst en acceptatie:",{"$f":"CONCATENATE(\"Ontvangen en geaccepteerde declaraties t/m\",\" \",kwartaal_id,\"e Kwartaal\",\" \",jaar_id)","v":"Ontvangen en geaccepteerde declaraties t/m 4e Kwartaal 2019"},"HE: formule generiek gemaakt 29/8/2019"]
[null,"Baten: ",{"$f":"CONCATENATE(\"waarvan ontvangen  t/m \",kwartaal_id,\"e Kwartaal\",\" \",jaar_id)","v":"waarvan ontvangen  t/m 4e Kwartaal 2019"},"HE: formule generiek gemaakt 29/8/2019"]
[null,"Aantal:",{"$f":"CONCATENATE(\"AANTAL tot en met \",\" \",kwartaal_id,\"e Kwartaal\",\" \",jaar_id)","v":"AANTAL tot en met  4e Kwartaal 2019"},"HE: formule generiek gemaakt 29/8/2019"]
[null,"Lasten",{"$f":"CONCATENATE(\"Lasten \",jaar_id,\"  t/m \",kwartaal_id,\"e Kwartaal\",)","v":"Lasten 2019  t/m 4e Kwartaal"},"HE: formule generiek gemaakt 29/8/2019"]
[]
[null,"NUMMER_UO","NAAM_UO","FORMAT_UO1"]
[null,"0000","KIES UW UZOVI-NUMMER",{"$f":"CONCATENATE(B15,\" \",C15)","v":"0000 KIES UW UZOVI-NUMMER"}]
[null,"0101","UNIVÉ ZORG","0101 UNIVÉ ZORG"]
[null,"0104","NATIONALE-NEDERLANDEN ZORG","0104 NATIONALE-NEDERLANDEN ZORG"]
[null,"0201","OHRA ZIEKTEKOSTENVERZEKERINGEN","0201 OHRA ZIEKTEKOSTENVERZEKERINGEN"]
[null,"0211","FBTO","0211 FBTO"]
[null,"0403","ASR ","0403 ASR "]
[null,"0420","CARES ","0420 CARES "]
[null,"0699","IZA","0699 IZA"]
[null,"0736","UMC","0736 UMC"]
[null,"3311","ZILVEREN KRUIS","3311 ZILVEREN KRUIS"]
[null,"3313","INTERPOLIS","3313 INTERPOLIS"]
[null,"3314","OZF","3314 OZF"]
[null,"3329","AVERO",{"$f":"CONCATENATE(B27,\" \",C27)","v":"3329 AVERO"}]
[null,"3332","MENZIS","3332 MENZIS"]
[null,"3333","ANDERZORG","3333 ANDERZORG"]
[null,"3343","ONVZ",{"$f":"CONCATENATE(B30,\" \",C30)","v":"3343 ONVZ"}]
[null,"3351","FBTO",{"$f":"CONCATENATE(B31,\" \",C31)","v":"3351 FBTO"}]
[null,"3352","IPTIQ",{"$f":"CONCATENATE(B32,\" \",C32)","v":"3352 IPTIQ"}]
[null,"3358","DE FRIESLAND",{"$f":"CONCATENATE(B33,\" \",C33)","v":"3358 DE FRIESLAND"}]
[null,"3359","EUCARE INSURANCE PCC LTD",{"$f":"CONCATENATE(B34,\" \",C34)","v":"3359 EUCARE INSURANCE PCC LTD"}]
[null,"7029","DSW","7029 DSW"]
[null,"7032","ENO","7032 ENO"]
[null,"7037","STAD HOLLAND","7037 STAD HOLLAND"]
[null,"7053","OHRA ZORGVERZEKERINGEN","7053 OHRA ZORGVERZEKERINGEN"]
[null,"7084","DE FRIESLAND","7084 DE FRIESLAND"]
[null,"7085","ZORG EN ZEKERHEID","7085 ZORG EN ZEKERHEID"]
[null,"7095","VGZ ZORGVERZEKERAAR","7095 VGZ ZORGVERZEKERAAR"]
[null,"7119","CZ","7119 CZ"]
[null,"9015","VGZ VOOR DE ZORG","9015 VGZ VOOR DE ZORG"]